{"text_format":"1","workbook":"xlsx","n_sheets":7,"sheets":["PARAMETRES","Salaries","Juin","Juillet","Aout","Pâques","Dialogue4"],"not_rendered":{"charts":0,"images":2,"macros":1,"external_links":1,"defined_names":9,"comments":0,"pivot_tables":0},"unopened":[{"sheet":"Dialogue4","index":6,"reason":"not_a_worksheet"}],"bounds":{"document_bytes":16777216,"sheet_cells":100000,"rows_first":2000,"rows_last":500,"rows_between":2000,"halvings":0,"cell_chars":16384,"cell_head_chars":4096},"cells_cut":0,"cells_raw":0,"read":"whole","date_system":"1900"}

{"sheet":"PARAMETRES","index":0,"n_rows":0,"n_cols":0,"rows_kept":0,"cut":false,"hidden":false,"merged":[]}

{"sheet":"Salaries","index":1,"n_rows":20,"n_cols":28,"rows_kept":20,"cut":false,"hidden":false,"merged":[[2,8,2,19]]}
[null,null,null,null,null,null,null,null,null,null,null,null,null,null,null,null,null,null,null,null,null,null,null,null,4,{"$f":"LOOKUP(Y1,AA5:AB104)","v":"Paul"}]
[]
[null,null,null,null,null,"H","H","H","HEURES TRAVAILLEES PAR MOIS"]
["N°","NOM",null,null,null,"Théo","Solde","Réel",6,7,8,9,10,11,12,1,2,3,4,5]
[1,"Albert",null,null,null,192,{"$f":"IF(F5=0,\"\",H5-F5)","v":0},{"$f":"IF(F5<>0,SUMIF(I5:T5,\"<>#N/A\"),\"\")","v":192},{"$f":"IF($B5=\"\",\" \",VLOOKUP($B5,Juin!$A$6:$AH$101,34,FALSE)+VLOOKUP($B5,Juin!$A$6:$DB$101,106,FALSE))","v":48},{"$f":"IF($B5=\"\",\" \",VLOOKUP($B5,Juillet!$A$6:$AH$89,34,FALSE)+VLOOKUP($B5,Juillet!$A$6:$DB$89,106,FALSE))","v":88},{"$f":"IF($B5=\"\",\" \",INDEX(Aout!$AH$6:$AH$89,MATCH(B5,Aout!$A$6:$A$89,0))+INDEX(Aout!$DC$6:$DC$89,MATCH(B5,Aout!$A$6:$A$89,0)))","v":56},null,null,null,null,null,null,null,null,null,null,null,null,null,null,null,1,"Albert"]
[2,"Jacques",null,null,null,400,{"$f":"IF(F6=0,\"\",H6-F6)","v":8},{"$f":"IF(F6<>0,SUMIF(I6:T6,\"<>#N/A\"),\"\")","v":408},{"$f":"IF($B6=\"\",\" \",VLOOKUP($B6,Juin!$A$6:$AH$101,34,FALSE)+VLOOKUP($B6,Juin!$A$6:$DB$101,106,FALSE))","v":136},{"$f":"IF($B6=\"\",\" \",VLOOKUP($B6,Juillet!$A$6:$AH$89,34,FALSE)+VLOOKUP($B6,Juillet!$A$6:$DB$89,106,FALSE))","v":112},{"$f":"IF($B6=\"\",\" \",INDEX(Aout!$AH$6:$AH$89,MATCH(B6,Aout!$A$6:$A$89,0))+INDEX(Aout!$DC$6:$DC$89,MATCH(B6,Aout!$A$6:$A$89,0)))","v":160},null,null,null,null,null,null,null,null,null,null,null,null,null,null,null,2,"Jacques"]
[3,"Marcel",null,null,null,0,{"$f":"IF(F7=0,\"\",H7-F7)","v":""},{"$f":"IF(F7<>0,SUMIF(I7:T7,\"<>#N/A\"),\"\")","v":""},{"$f":"IF($B7=\"\",\" \",VLOOKUP($B7,Juin!$A$6:$AH$101,34,FALSE)+VLOOKUP($B7,Juin!$A$6:$DB$101,106,FALSE))","v":{"$error":"#N/A"}},{"$f":"IF($B7=\"\",\" \",VLOOKUP($B7,Juillet!$A$6:$AH$89,34,FALSE)+VLOOKUP($B7,Juillet!$A$6:$DB$89,106,FALSE))","v":{"$error":"#N/A"}},{"$f":"IF($B7=\"\",\" \",INDEX(Aout!$AH$6:$AH$89,MATCH(B7,Aout!$A$6:$A$89,0))+INDEX(Aout!$DC$6:$DC$89,MATCH(B7,Aout!$A$6:$A$89,0)))","v":{"$error":"#N/A"}},null,null,null,null,null,null,null,null,null,null,null,null,null,null,null,3,"Marcel"]
[4,"Paul",null,null,null,456,{"$f":"IF(F8=0,\"\",H8-F8)","v":-136},{"$f":"IF(F8<>0,SUMIF(I8:T8,\"<>#N/A\"),\"\")","v":320},{"$f":"IF($B8=\"\",\" \",VLOOKUP($B8,Juin!$A$6:$AH$101,34,FALSE)+VLOOKUP($B8,Juin!$A$6:$DB$101,106,FALSE))","v":144},{"$f":"IF($B8=\"\",\" \",VLOOKUP($B8,Juillet!$A$6:$AH$89,34,FALSE)+VLOOKUP($B8,Juillet!$A$6:$DB$89,106,FALSE))","v":88},{"$f":"IF($B8=\"\",\" \",INDEX(Aout!$AH$6:$AH$89,MATCH(B8,Aout!$A$6:$A$89,0))+INDEX(Aout!$DC$6:$DC$89,MATCH(B8,Aout!$A$6:$A$89,0)))","v":88},null,null,null,null,null,null,null,null,null,null,null,null,null,null,null,4,"Paul"]
[5,"Pierre",null,null,null,440,{"$f":"IF(F9=0,\"\",H9-F9)","v":-8},{"$f":"IF(F9<>0,SUMIF(I9:T9,\"<>#N/A\"),\"\")","v":432},{"$f":"IF($B9=\"\",\" \",VLOOKUP($B9,Juin!$A$6:$AH$101,34,FALSE)+VLOOKUP($B9,Juin!$A$6:$DB$101,106,FALSE))","v":152},{"$f":"IF($B9=\"\",\" \",VLOOKUP($B9,Juillet!$A$6:$AH$89,34,FALSE)+VLOOKUP($B9,Juillet!$A$6:$DB$89,106,FALSE))","v":144},{"$f":"IF($B9=\"\",\" \",INDEX(Aout!$AH$6:$AH$89,MATCH(B9,Aout!$A$6:$A$89,0))+INDEX(Aout!$DC$6:$DC$89,MATCH(B9,Aout!$A$6:$A$89,0)))","v":136},null,null,null,null,null,null,null,null,null,null,null,null,null,null,null,5,"Pierre"]
[6,null,null,null,null,null,{"$f":"IF(F10=0,\"\",H10-F10)","v":""},{"$f":"IF(F10<>0,SUMIF(I10:T10,\"<>#N/A\"),\"\")","v":""},{"$f":"IF($B10=\"\",\" \",VLOOKUP($B10,Juin!$A$6:$AH$101,34,FALSE)+VLOOKUP($B10,Juin!$A$6:$DB$101,106,FALSE))","v":" "},{"$f":"IF($B10=\"\",\" \",VLOOKUP($B10,Juillet!$A$6:$AH$89,34,FALSE)+VLOOKUP($B10,Juillet!$A$6:$DB$89,106,FALSE))","v":" "},{"$f":"IF($B10=\"\",\" \",INDEX(Aout!$AH$6:$AH$89,MATCH(B10,Aout!$A$6:$A$89,0))+INDEX(Aout!$DC$6:$DC$89,MATCH(B10,Aout!$A$6:$A$89,0)))","v":" "},null,null,null,null,null,null,null,null,null,null,null,null,null,null,null,6]
[7,null,null,null,null,null,{"$f":"IF(F11=0,\"\",H11-F11)","v":""},{"$f":"IF(F11<>0,SUMIF(I11:T11,\"<>#N/A\"),\"\")","v":""},{"$f":"IF($B11=\"\",\" \",VLOOKUP($B11,Juin!$A$6:$AH$101,34,FALSE)+VLOOKUP($B11,Juin!$A$6:$DB$101,106,FALSE))","v":" "},{"$f":"IF($B11=\"\",\" \",VLOOKUP($B11,Juillet!$A$6:$AH$89,34,FALSE)+VLOOKUP($B11,Juillet!$A$6:$DB$89,106,FALSE))","v":" "},{"$f":"IF($B11=\"\",\" \",INDEX(Aout!$AH$6:$AH$89,MATCH(B11,Aout!$A$6:$A$89,0))+INDEX(Aout!$DC$6:$DC$89,MATCH(B11,Aout!$A$6:$A$89,0)))","v":" "},null,null,null,null,null,null,null,null,null,null,null,null,null,null,null,7]
[8,null,null,null,null,null,{"$f":"IF(F12=0,\"\",H12-F12)","v":""},{"$f":"IF(F12<>0,SUMIF(I12:T12,\"<>#N/A\"),\"\")","v":""},{"$f":"IF($B12=\"\",\" \",VLOOKUP($B12,Juin!$A$6:$AH$101,34,FALSE)+VLOOKUP($B12,Juin!$A$6:$DB$101,106,FALSE))","v":" "},{"$f":"IF($B12=\"\",\" \",VLOOKUP($B12,Juillet!$A$6:$AH$89,34,FALSE)+VLOOKUP($B12,Juillet!$A$6:$DB$89,106,FALSE))","v":" "},{"$f":"IF($B12=\"\",\" \",INDEX(Aout!$AH$6:$AH$89,MATCH(B12,Aout!$A$6:$A$89,0))+INDEX(Aout!$DC$6:$DC$89,MATCH(B12,Aout!$A$6:$A$89,0)))","v":" "},null,null,null,null,null,null,null,null,null,null,null,null,null,null,null,8]
[9,null,null,null,null,null,{"$f":"IF(F13=0,\"\",H13-F13)","v":""},{"$f":"IF(F13<>0,SUMIF(I13:T13,\"<>#N/A\"),\"\")","v":""},{"$f":"IF($B13=\"\",\" \",VLOOKUP($B13,Juin!$A$6:$AH$101,34,FALSE)+VLOOKUP($B13,Juin!$A$6:$DB$101,106,FALSE))","v":" "},{"$f":"IF($B13=\"\",\" \",VLOOKUP($B13,Juillet!$A$6:$AH$89,34,FALSE)+VLOOKUP($B13,Juillet!$A$6:$DB$89,106,FALSE))","v":" "},{"$f":"IF($B13=\"\",\" \",INDEX(Aout!$AH$6:$AH$89,MATCH(B13,Aout!$A$6:$A$89,0))+INDEX(Aout!$DC$6:$DC$89,MATCH(B13,Aout!$A$6:$A$89,0)))","v":" "},null,null,null,null,null,null,null,null,null,null,null,null,null,null,null,9]
[10,null,null,null,null,null,{"$f":"IF(F14=0,\"\",H14-F14)","v":""},{"$f":"IF(F14<>0,SUMIF(I14:T14,\"<>#N/A\"),\"\")","v":""},{"$f":"IF($B14=\"\",\" \",VLOOKUP($B14,Juin!$A$6:$AH$101,34,FALSE)+VLOOKUP($B14,Juin!$A$6:$DB$101,106,FALSE))","v":" "},{"$f":"IF($B14=\"\",\" \",VLOOKUP($B14,Juillet!$A$6:$AH$89,34,FALSE)+VLOOKUP($B14,Juillet!$A$6:$DB$89,106,FALSE))","v":" "},{"$f":"IF($B14=\"\",\" \",INDEX(Aout!$AH$6:$AH$89,MATCH(B14,Aout!$A$6:$A$89,0))+INDEX(Aout!$DC$6:$DC$89,MATCH(B14,Aout!$A$6:$A$89,0)))","v":" "},null,null,null,null,null,null,null,null,null,null,null,null,null,null,null,10]
[11,null,null,null,null,null,{"$f":"IF(F15=0,\"\",H15-F15)","v":""},{"$f":"IF(F15<>0,SUMIF(I15:T15,\"<>#N/A\"),\"\")","v":""},{"$f":"IF($B15=\"\",\" \",VLOOKUP($B15,Juin!$A$6:$AH$101,34,FALSE)+VLOOKUP($B15,Juin!$A$6:$DB$101,106,FALSE))","v":" "},{"$f":"IF($B15=\"\",\" \",VLOOKUP($B15,Juillet!$A$6:$AH$89,34,FALSE)+VLOOKUP($B15,Juillet!$A$6:$DB$89,106,FALSE))","v":" "},{"$f":"IF($B15=\"\",\" \",INDEX(Aout!$AH$6:$AH$89,MATCH(B15,Aout!$A$6:$A$89,0))+INDEX(Aout!$DC$6:$DC$89,MATCH(B15,Aout!$A$6:$A$89,0)))","v":" "},null,null,null,null,null,null,null,null,null,null,null,null,null,null,null,11]
[12,null,null,null,null,null,{"$f":"IF(F16=0,\"\",H16-F16)","v":""},{"$f":"IF(F16<>0,SUMIF(I16:T16,\"<>#N/A\"),\"\")","v":""},{"$f":"IF($B16=\"\",\" \",VLOOKUP($B16,Juin!$A$6:$AH$101,34,FALSE)+VLOOKUP($B16,Juin!$A$6:$DB$101,106,FALSE))","v":" "},{"$f":"IF($B16=\"\",\" \",VLOOKUP($B16,Juillet!$A$6:$AH$89,34,FALSE)+VLOOKUP($B16,Juillet!$A$6:$DB$89,106,FALSE))","v":" "},{"$f":"IF($B16=\"\",\" \",INDEX(Aout!$AH$6:$AH$89,MATCH(B16,Aout!$A$6:$A$89,0))+INDEX(Aout!$DC$6:$DC$89,MATCH(B16,Aout!$A$6:$A$89,0)))","v":" "},null,null,null,null,null,null,null,null,null,null,null,null,null,null,null,12]
[13,null,null,null,null,null,{"$f":"IF(F17=0,\"\",H17-F17)","v":""},{"$f":"IF(F17<>0,SUMIF(I17:T17,\"<>#N/A\"),\"\")","v":""},{"$f":"IF($B17=\"\",\" \",VLOOKUP($B17,Juin!$A$6:$AH$101,34,FALSE)+VLOOKUP($B17,Juin!$A$6:$DB$101,106,FALSE))","v":" "},{"$f":"IF($B17=\"\",\" \",VLOOKUP($B17,Juillet!$A$6:$AH$89,34,FALSE)+VLOOKUP($B17,Juillet!$A$6:$DB$89,106,FALSE))","v":" "},{"$f":"IF($B17=\"\",\" \",INDEX(Aout!$AH$6:$AH$89,MATCH(B17,Aout!$A$6:$A$89,0))+INDEX(Aout!$DC$6:$DC$89,MATCH(B17,Aout!$A$6:$A$89,0)))","v":" "},null,null,null,null,null,null,null,null,null,null,null,null,null,null,null,13]
[14,null,null,null,null,null,{"$f":"IF(F18=0,\"\",H18-F18)","v":""},{"$f":"IF(F18<>0,SUMIF(I18:T18,\"<>#N/A\"),\"\")","v":""},{"$f":"IF($B18=\"\",\" \",VLOOKUP($B18,Juin!$A$6:$AH$101,34,FALSE)+VLOOKUP($B18,Juin!$A$6:$DB$101,106,FALSE))","v":" "},{"$f":"IF($B18=\"\",\" \",VLOOKUP($B18,Juillet!$A$6:$AH$89,34,FALSE)+VLOOKUP($B18,Juillet!$A$6:$DB$89,106,FALSE))","v":" "},{"$f":"IF($B18=\"\",\" \",INDEX(Aout!$AH$6:$AH$89,MATCH(B18,Aout!$A$6:$A$89,0))+INDEX(Aout!$DC$6:$DC$89,MATCH(B18,Aout!$A$6:$A$89,0)))","v":" "},null,null,null,null,null,null,null,null,null,null,null,null,null,null,null,14]
[15,null,null,null,null,null,{"$f":"IF(F19=0,\"\",H19-F19)","v":""},{"$f":"IF(F19<>0,SUMIF(I19:T19,\"<>#N/A\"),\"\")","v":""},{"$f":"IF($B19=\"\",\" \",VLOOKUP($B19,Juin!$A$6:$AH$101,34,FALSE)+VLOOKUP($B19,Juin!$A$6:$DB$101,106,FALSE))","v":" "},{"$f":"IF($B19=\"\",\" \",VLOOKUP($B19,Juillet!$A$6:$AH$89,34,FALSE)+VLOOKUP($B19,Juillet!$A$6:$DB$89,106,FALSE))","v":" "},{"$f":"IF($B19=\"\",\" \",INDEX(Aout!$AH$6:$AH$89,MATCH(B19,Aout!$A$6:$A$89,0))+INDEX(Aout!$DC$6:$DC$89,MATCH(B19,Aout!$A$6:$A$89,0)))","v":" "},null,null,null,null,null,null,null,null,null,null,null,null,null,null,null,15]
[16,null,null,null,null,null,{"$f":"IF(F20=0,\"\",H20-F20)","v":""},{"$f":"IF(F20<>0,SUMIF(I20:T20,\"<>#N/A\"),\"\")","v":""},{"$f":"IF($B20=\"\",\" \",VLOOKUP($B20,Juin!$A$6:$AH$101,34,FALSE)+VLOOKUP($B20,Juin!$A$6:$DB$101,106,FALSE))","v":" "},{"$f":"IF($B20=\"\",\" \",VLOOKUP($B20,Juillet!$A$6:$AH$89,34,FALSE)+VLOOKUP($B20,Juillet!$A$6:$DB$89,106,FALSE))","v":" "},{"$f":"IF($B20=\"\",\" \",INDEX(Aout!$AH$6:$AH$89,MATCH(B20,Aout!$A$6:$A$89,0))+INDEX(Aout!$DC$6:$DC$89,MATCH(B20,Aout!$A$6:$A$89,0)))","v":" "},null,null,null,null,null,null,null,null,null,null,null,null,null,null,null,16]

{"sheet":"Juin","index":2,"n_rows":89,"n_cols":106,"rows_kept":89,"cut":false,"hidden":false,"merged":[[3,102,3,103],[3,104,3,105],[0,2,3,32]]}
[null,null,"JUIN",null,null,null,null,null,null,null,null,null,null,null,null,null,null,null,null,null,null,null,null,null,null,null,null,null,null,null,null,null,null,null,null,null,null,null,null,null,null,null,null,null,null,null,null,null,null,null,null,null,null,null,null,null,null,null,null,null,null,null,null,null,null,null,null,null,null,null,null,null,null,null,null,null,null,null,null,null,null,null,null,null,null,null,null,null,null,null,null,null,null,null,null,null,null,null,null,null,1]
[]
[]
[null,null,null,null,null,null,null,null,null,null,null,null,null,null,null,null,null,null,null,null,null,null,null,null,null,null,null,null,null,null,null,null,null,"Mois",null,null,null,null,null,null,null,null,null,null,null,null,null,null,null,null,null,null,null,null,null,null,null,null,null,null,null,null,null,null,null,null,null,null,null,null,null,null,null,null,null,null,null,null,null,null,null,null,null,null,null,null,null,null,null,null,null,null,null,null,null,null,null,null,null,null,null,"CP","Solde année",null,"Maladie"]
[null,"J",1,2,3,4,5,6,7,8,9,10,11,12,13,14,15,16,17,18,19,20,21,22,23,24,25,26,27,28,29,30,null,"H",null,null,null,null,null,null,null,null,null,null,null,null,null,null,null,null,null,null,null,null,null,null,null,null,null,null,null,null,null,null,null,null,null,null,null,null,null,null,null,null,null,null,null,null,null,null,null,null,null,null,null,null,null,null,null,null,null,null,null,null,null,null,null,null,null,null,null,"J","H","J","J","H Théo"]
["Paul",{"$f":"COUNTA(C6:AG6)-CX6-DA6","v":18},"X","X","X",null,null,null,"X","X","X","X",null,null,"X","X","X",null,null,null,"X","X","X","X",null,null,"X","X","X","X",null,null,null,{"$f":"B6*8","v":144},null,null,null,null,null,null,null,null,null,null,null,null,null,null,null,null,null,null,null,null,null,null,null,null,null,null,null,null,null,null,null,null,null,null,null,null,null,null,null,null,null,null,null,null,null,null,null,null,null,null,null,null,null,null,null,null,null,null,null,null,null,null,null,null,null,null,null,{"$f":"COUNTIF(C6:AG6,\"CP\")","v":0},{"$f":"IF($A6=0,\" \",VLOOKUP($A6,Salaries!$B$5:$G$104,6))","v":-136},{"$f":"IFERROR(CY6/8,\"\")","v":-17},{"$f":"COUNTIF(C6:AG6,\"MAL\")+COUNTIF(C6:AG6,\"AT\")","v":0},0]
["Jacques",{"$f":"COUNTA(C7:AG7)-CX7-DA7","v":17},null,null,null,"X","X","X",null,null,"X","X","X","X",null,null,null,"X","X","X",null,null,"X","X","X",null,null,null,"X","X","X","X",null,{"$f":"B7*8","v":136},null,null,null,null,null,null,null,null,null,null,null,null,null,null,null,null,null,null,null,null,null,null,null,null,null,null,null,null,null,null,null,null,null,null,null,null,null,null,null,null,null,null,null,null,null,null,null,null,null,null,null,null,null,null,null,null,null,null,null,null,null,null,null,null,null,null,null,{"$f":"COUNTIF(C7:AG7,\"CP\")","v":0},{"$f":"IF($A7=0,\" \",VLOOKUP($A7,Salaries!$B$5:$G$104,6))","v":8},1,{"$f":"COUNTIF(C7:AG7,\"MAL\")+COUNTIF(C7:AG7,\"AT\")","v":0},0]
["Pierre",19,"X","X","X",null,null,"X","X","X",null,null,"X","X","X","X",null,null,"X","X","X","X",null,null,null,"X","X","X",null,null,"X","X",null,152,null,null,null,null,null,null,null,null,null,null,null,null,null,null,null,null,null,null,null,null,null,null,null,null,null,null,null,null,null,null,null,null,null,null,null,null,null,null,null,null,null,null,null,null,null,null,null,null,null,null,null,null,null,null,null,null,null,null,null,null,null,null,null,null,null,null,null,0,{"$f":"IF($A8=0,\" \",VLOOKUP($A8,Salaries!$B$5:$G$104,6))","v":-8},-1,0,0]
["Albert",4,null,null,null,"X","X",null,null,null,null,"MAL","MAL","MAL","MAL","MAL","MAL","MAL",null,null,null,null,null,null,"X","X",null,null,null,null,null,null,null,32,null,null,null,null,null,null,null,null,null,null,null,null,null,null,null,null,null,null,null,null,null,null,null,null,null,null,null,null,null,null,null,null,null,null,null,null,null,null,null,null,null,null,null,null,null,null,null,null,null,null,null,null,null,null,null,null,null,null,null,null,null,null,null,null,null,null,null,0,{"$f":"IF($A9=0,\" \",VLOOKUP($A9,Salaries!$B$5:$G$104,6))","v":0},0,7,16]
[null,0,null,null,null,null,null,null,null,null,null,null,null,null,null,null,null,null,null,null,null,null,null,null,null,null,null,null,null,null,null,null,null,0,null,null,null,null,null,null,null,null,null,null,null,null,null,null,null,null,null,null,null,null,null,null,null,null,null,null,null,null,null,null,null,null,null,null,null,null,null,null,null,null,null,null,null,null,null,null,null,null,null,null,null,null,null,null,null,null,null,null,null,null,null,null,null,null,null,null,null,0,{"$f":"IF($A10=0,\" \",VLOOKUP($A10,Salaries!$B$5:$G$104,6))","v":" "},"",0,0]
[null,0,null,null,null,null,null,null,null,null,null,null,null,null,null,null,null,null,null,null,null,null,null,null,null,null,null,null,null,null,null,null,null,0,null,null,null,null,null,null,null,null,null,null,null,null,null,null,null,null,null,null,null,null,null,null,null,null,null,null,null,null,null,null,null,null,null,null,null,null,null,null,null,null,null,null,null,null,null,null,null,null,null,null,null,null,null,null,null,null,null,null,null,null,null,null,null,null,null,null,null,0,{"$f":"IF($A11=0,\" \",VLOOKUP($A11,Salaries!$B$5:$G$104,6))","v":" "},"",0,0]
[null,0,null,null,null,null,null,null,null,null,null,null,null,null,null,null,null,null,null,null,null,null,null,null,null,null,null,null,null,null,null,null,null,0,null,null,null,null,null,null,null,null,null,null,null,null,null,null,null,null,null,null,null,null,null,null,null,null,null,null,null,null,null,null,null,null,null,null,null,null,null,null,null,null,null,null,null,null,null,null,null,null,null,null,null,null,null,null,null,null,null,null,null,null,null,null,null,null,null,null,null,0,{"$f":"IF($A12=0,\" \",VLOOKUP($A12,Salaries!$B$5:$G$104,6))","v":" "},"",0,0]
[null,0,null,null,null,null,null,null,null,null,null,null,null,null,null,null,null,null,null,null,null,null,null,null,null,null,null,null,null,null,null,null,null,0,null,null,null,null,null,null,null,null,null,null,null,null,null,null,null,null,null,null,null,null,null,null,null,null,null,null,null,null,null,null,null,null,null,null,null,null,null,null,null,null,null,null,null,null,null,null,null,null,null,null,null,null,null,null,null,null,null,null,null,null,null,null,null,null,null,null,null,0,{"$f":"IF($A13=0,\" \",VLOOKUP($A13,Salaries!$B$5:$G$104,6))","v":" "},"",0,0]
[null,0,null,null,null,null,null,null,null,null,null,null,null,null,null,null,null,null,null,null,null,null,null,null,null,null,null,null,null,null,null,null,null,0,null,null,null,null,null,null,null,null,null,null,null,null,null,null,null,null,null,null,null,null,null,null,null,null,null,null,null,null,null,null,null,null,null,null,null,null,null,null,null,null,null,null,null,null,null,null,null,null,null,null,null,null,null,null,null,null,null,null,null,null,null,null,null,null,null,null,null,0,{"$f":"IF($A14=0,\" \",VLOOKUP($A14,Salaries!$B$5:$G$104,6))","v":" "},"",0,0]
[null,0,null,null,null,null,null,null,null,null,null,null,null,null,null,null,null,null,null,null,null,null,null,null,null,null,null,null,null,null,null,null,null,0,null,null,null,null,null,null,null,null,null,null,null,null,null,null,null,null,null,null,null,null,null,null,null,null,null,null,null,null,null,null,null,null,null,null,null,null,null,null,null,null,null,null,null,null,null,null,null,null,null,null,null,null,null,null,null,null,null,null,null,null,null,null,null,null,null,null,null,0,{"$f":"IF($A15=0,\" \",VLOOKUP($A15,Salaries!$B$5:$G$104,6))","v":" "},"",0,0]
[null,0,null,null,null,null,null,null,null,null,null,null,null,null,null,null,null,null,null,null,null,null,null,null,null,null,null,null,null,null,null,null,null,0,null,null,null,null,null,null,null,null,null,null,null,null,null,null,null,null,null,null,null,null,null,null,null,null,null,null,null,null,null,null,null,null,null,null,null,null,null,null,null,null,null,null,null,null,null,null,null,null,null,null,null,null,null,null,null,null,null,null,null,null,null,null,null,null,null,null,null,0,{"$f":"IF($A16=0,\" \",VLOOKUP($A16,Salaries!$B$5:$G$104,6))","v":" "},"",0,0]
[null,0,null,null,null,null,null,null,null,null,null,null,null,null,null,null,null,null,null,null,null,null,null,null,null,null,null,null,null,null,null,null,null,0,null,null,null,null,null,null,null,null,null,null,null,null,null,null,null,null,null,null,null,null,null,null,null,null,null,null,null,null,null,null,null,null,null,null,null,null,null,null,null,null,null,null,null,null,null,null,null,null,null,null,null,null,null,null,null,null,null,null,null,null,null,null,null,null,null,null,null,0,{"$f":"IF($A17=0,\" \",VLOOKUP($A17,Salaries!$B$5:$G$104,6))","v":" "},"",0,0]
[null,0,null,null,null,null,null,null,null,null,null,null,null,null,null,null,null,null,null,null,null,null,null,null,null,null,null,null,null,null,null,null,null,0,null,null,null,null,null,null,null,null,null,null,null,null,null,null,null,null,null,null,null,null,null,null,null,null,null,null,null,null,null,null,null,null,null,null,null,null,null,null,null,null,null,null,null,null,null,null,null,null,null,null,null,null,null,null,null,null,null,null,null,null,null,null,null,null,null,null,null,0,{"$f":"IF($A18=0,\" \",VLOOKUP($A18,Salaries!$B$5:$G$104,6))","v":" "},"",0,0]
[null,0,null,null,null,null,null,null,null,null,null,null,null,null,null,null,null,null,null,null,null,null,null,null,null,null,null,null,null,null,null,null,null,0,null,null,null,null,null,null,null,null,null,null,null,null,null,null,null,null,null,null,null,null,null,null,null,null,null,null,null,null,null,null,null,null,null,null,null,null,null,null,null,null,null,null,null,null,null,null,null,null,null,null,null,null,null,null,null,null,null,null,null,null,null,null,null,null,null,null,null,0,{"$f":"IF($A19=0,\" \",VLOOKUP($A19,Salaries!$B$5:$G$104,6))","v":" "},"",0,0]
[null,0,null,null,null,null,null,null,null,null,null,null,null,null,null,null,null,null,null,null,null,null,null,null,null,null,null,null,null,null,null,null,null,0,null,null,null,null,null,null,null,null,null,null,null,null,null,null,null,null,null,null,null,null,null,null,null,null,null,null,null,null,null,null,null,null,null,null,null,null,null,null,null,null,null,null,null,null,null,null,null,null,null,null,null,null,null,null,null,null,null,null,null,null,null,null,null,null,null,null,null,0,{"$f":"IF($A20=0,\" \",VLOOKUP($A20,Salaries!$B$5:$G$104,6))","v":" "},"",0,0]
[null,{"$f":"COUNTA(C21:AG21)-CX21-DA21","v":0},null,null,null,null,null,null,null,null,null,null,null,null,null,null,null,null,null,null,null,null,null,null,null,null,null,null,null,null,null,null,null,{"$f":"B21*8","v":0},null,null,null,null,null,null,null,null,null,null,null,null,null,null,null,null,null,null,null,null,null,null,null,null,null,null,null,null,null,null,null,null,null,null,null,null,null,null,null,null,null,null,null,null,null,null,null,null,null,null,null,null,null,null,null,null,null,null,null,null,null,null,null,null,null,null,null,{"$f":"COUNTIF(C21:AG21,\"CP\")","v":0},{"$f":"IF($A21=0,\" \",VLOOKUP($A21,Salaries!$B$5:$G$104,6))","v":" "},{"$f":"IFERROR(CY21/8,\"\")","v":""},{"$f":"COUNTIF(C21:AG21,\"MAL\")+COUNTIF(C21:AG21,\"AT\")","v":0},1]
[null,0,null,null,null,null,null,null,null,null,null,null,null,null,null,null,null,null,null,null,null,null,null,null,null,null,null,null,null,null,null,null,null,0,null,null,null,null,null,null,null,null,null,null,null,null,null,null,null,null,null,null,null,null,null,null,null,null,null,null,null,null,null,null,null,null,null,null,null,null,null,null,null,null,null,null,null,null,null,null,null,null,null,null,null,null,null,null,null,null,null,null,null,null,null,null,null,null,null,null,null,0,{"$f":"IF($A22=0,\" \",VLOOKUP($A22,Salaries!$B$5:$G$104,6))","v":" "},"",0,2]
[null,0,null,null,null,null,null,null,null,null,null,null,null,null,null,null,null,null,null,null,null,null,null,null,null,null,null,null,null,null,null,null,null,0,null,null,null,null,null,null,null,null,null,null,null,null,null,null,null,null,null,null,null,null,null,null,null,null,null,null,null,null,null,null,null,null,null,null,null,null,null,null,null,null,null,null,null,null,null,null,null,null,null,null,null,null,null,null,null,null,null,null,null,null,null,null,null,null,null,null,null,0,{"$f":"IF($A23=0,\" \",VLOOKUP($A23,Salaries!$B$5:$G$104,6))","v":" "},"",0,3]
[null,0,null,null,null,null,null,null,null,null,null,null,null,null,null,null,null,null,null,null,null,null,null,null,null,null,null,null,null,null,null,null,null,0,null,null,null,null,null,null,null,null,null,null,null,null,null,null,null,null,null,null,null,null,null,null,null,null,null,null,null,null,null,null,null,null,null,null,null,null,null,null,null,null,null,null,null,null,null,null,null,null,null,null,null,null,null,null,null,null,null,null,null,null,null,null,null,null,null,null,null,0,{"$f":"IF($A24=0,\" \",VLOOKUP($A24,Salaries!$B$5:$G$104,6))","v":" "},"",0,4]
[null,0,null,null,null,null,null,null,null,null,null,null,null,null,null,null,null,null,null,null,null,null,null,null,null,null,null,null,null,null,null,null,null,0,null,null,null,null,null,null,null,null,null,null,null,null,null,null,null,null,null,null,null,null,null,null,null,null,null,null,null,null,null,null,null,null,null,null,null,null,null,null,null,null,null,null,null,null,null,null,null,null,null,null,null,null,null,null,null,null,null,null,null,null,null,null,null,null,null,null,null,0,{"$f":"IF($A25=0,\" \",VLOOKUP($A25,Salaries!$B$5:$G$104,6))","v":" "},"",0,5]
[null,0,null,null,null,null,null,null,null,null,null,null,null,null,null,null,null,null,null,null,null,null,null,null,null,null,null,null,null,null,null,null,null,0,null,null,null,null,null,null,null,null,null,null,null,null,null,null,null,null,null,null,null,null,null,null,null,null,null,null,null,null,null,null,null,null,null,null,null,null,null,null,null,null,null,null,null,null,null,null,null,null,null,null,null,null,null,null,null,null,null,null,null,null,null,null,null,null,null,null,null,0,{"$f":"IF($A26=0,\" \",VLOOKUP($A26,Salaries!$B$5:$G$104,6))","v":" "},"",0,6]
[null,0,null,null,null,null,null,null,null,null,null,null,null,null,null,null,null,null,null,null,null,null,null,null,null,null,null,null,null,null,null,null,null,0,null,null,null,null,null,null,null,null,null,null,null,null,null,null,null,null,null,null,null,null,null,null,null,null,null,null,null,null,null,null,null,null,null,null,null,null,null,null,null,null,null,null,null,null,null,null,null,null,null,null,null,null,null,null,null,null,null,null,null,null,null,null,null,null,null,null,null,0,{"$f":"IF($A27=0,\" \",VLOOKUP($A27,Salaries!$B$5:$G$104,6))","v":" "},"",0,7]
[null,0,null,null,null,null,null,null,null,null,null,null,null,null,null,null,null,null,null,null,null,null,null,null,null,null,null,null,null,null,null,null,null,0,null,null,null,null,null,null,null,null,null,null,null,null,null,null,null,null,null,null,null,null,null,null,null,null,null,null,null,null,null,null,null,null,null,null,null,null,null,null,null,null,null,null,null,null,null,null,null,null,null,null,null,null,null,null,null,null,null,null,null,null,null,null,null,null,null,null,null,0,{"$f":"IF($A28=0,\" \",VLOOKUP($A28,Salaries!$B$5:$G$104,6))","v":" "},"",0,8]
[null,0,null,null,null,null,null,null,null,null,null,null,null,null,null,null,null,null,null,null,null,null,null,null,null,null,null,null,null,null,null,null,null,0,null,null,null,null,null,null,null,null,null,null,null,null,null,null,null,null,null,null,null,null,null,null,null,null,null,null,null,null,null,null,null,null,null,null,null,null,null,null,null,null,null,null,null,null,null,null,null,null,null,null,null,null,null,null,null,null,null,null,null,null,null,null,null,null,null,null,null,0,{"$f":"IF($A29=0,\" \",VLOOKUP($A29,Salaries!$B$5:$G$104,6))","v":" "},"",0,9]
[null,0,null,null,null,null,null,null,null,null,null,null,null,null,null,null,null,null,null,null,null,null,null,null,null,null,null,null,null,null,null,null,null,0,null,null,null,null,null,null,null,null,null,null,null,null,null,null,null,null,null,null,null,null,null,null,null,null,null,null,null,null,null,null,null,null,null,null,null,null,null,null,null,null,null,null,null,null,null,null,null,null,null,null,null,null,null,null,null,null,null,null,null,null,null,null,null,null,null,null,null,0,{"$f":"IF($A30=0,\" \",VLOOKUP($A30,Salaries!$B$5:$G$104,6))","v":" "},"",0,10]
[null,0,null,null,null,null,null,null,null,null,null,null,null,null,null,null,null,null,null,null,null,null,null,null,null,null,null,null,null,null,null,null,null,0,null,null,null,null,null,null,null,null,null,null,null,null,null,null,null,null,null,null,null,null,null,null,null,null,null,null,null,null,null,null,null,null,null,null,null,null,null,null,null,null,null,null,null,null,null,null,null,null,null,null,null,null,null,null,null,null,null,null,null,null,null,null,null,null,null,null,null,0,{"$f":"IF($A31=0,\" \",VLOOKUP($A31,Salaries!$B$5:$G$104,6))","v":" "},"",0,11]
[null,0,null,null,null,null,null,null,null,null,null,null,null,null,null,null,null,null,null,null,null,null,null,null,null,null,null,null,null,null,null,null,null,0,null,null,null,null,null,null,null,null,null,null,null,null,null,null,null,null,null,null,null,null,null,null,null,null,null,null,null,null,null,null,null,null,null,null,null,null,null,null,null,null,null,null,null,null,null,null,null,null,null,null,null,null,null,null,null,null,null,null,null,null,null,null,null,null,null,null,null,0,{"$f":"IF($A32=0,\" \",VLOOKUP($A32,Salaries!$B$5:$G$104,6))","v":" "},"",0,12]
[null,0,null,null,null,null,null,null,null,null,null,null,null,null,null,null,null,null,null,null,null,null,null,null,null,null,null,null,null,null,null,null,null,0,null,null,null,null,null,null,null,null,null,null,null,null,null,null,null,null,null,null,null,null,null,null,null,null,null,null,null,null,null,null,null,null,null,null,null,null,null,null,null,null,null,null,null,null,null,null,null,null,null,null,null,null,null,null,null,null,null,null,null,null,null,null,null,null,null,null,null,0,{"$f":"IF($A33=0,\" \",VLOOKUP($A33,Salaries!$B$5:$G$104,6))","v":" "},"",0,13]
[null,0,null,null,null,null,null,null,null,null,null,null,null,null,null,null,null,null,null,null,null,null,null,null,null,null,null,null,null,null,null,null,null,0,null,null,null,null,null,null,null,null,null,null,null,null,null,null,null,null,null,null,null,null,null,null,null,null,null,null,null,null,null,null,null,null,null,null,null,null,null,null,null,null,null,null,null,null,null,null,null,null,null,null,null,null,null,null,null,null,null,null,null,null,null,null,null,null,null,null,null,0,{"$f":"IF($A34=0,\" \",VLOOKUP($A34,Salaries!$B$5:$G$104,6))","v":" "},"",0,14]
[null,0,null,null,null,null,null,null,null,null,null,null,null,null,null,null,null,null,null,null,null,null,null,null,null,null,null,null,null,null,null,null,null,0,null,null,null,null,null,null,null,null,null,null,null,null,null,null,null,null,null,null,null,null,null,null,null,null,null,null,null,null,null,null,null,null,null,null,null,null,null,null,null,null,null,null,null,null,null,null,null,null,null,null,null,null,null,null,null,null,null,null,null,null,null,null,null,null,null,null,null,0,{"$f":"IF($A35=0,\" \",VLOOKUP($A35,Salaries!$B$5:$G$104,6))","v":" "},"",0,15]
[null,0,null,null,null,null,null,null,null,null,null,null,null,null,null,null,null,null,null,null,null,null,null,null,null,null,null,null,null,null,null,null,null,0,null,null,null,null,null,null,null,null,null,null,null,null,null,null,null,null,null,null,null,null,null,null,null,null,null,null,null,null,null,null,null,null,null,null,null,null,null,null,null,null,null,null,null,null,null,null,null,null,null,null,null,null,null,null,null,null,null,null,null,null,null,null,null,null,null,null,null,0,{"$f":"IF($A36=0,\" \",VLOOKUP($A36,Salaries!$B$5:$G$104,6))","v":" "},"",0,16]
[null,0,null,null,null,null,null,null,null,null,null,null,null,null,null,null,null,null,null,null,null,null,null,null,null,null,null,null,null,null,null,null,null,0,null,null,null,null,null,null,null,null,null,null,null,null,null,null,null,null,null,null,null,null,null,null,null,null,null,null,null,null,null,null,null,null,null,null,null,null,null,null,null,null,null,null,null,null,null,null,null,null,null,null,null,null,null,null,null,null,null,null,null,null,null,null,null,null,null,null,null,0,{"$f":"IF($A37=0,\" \",VLOOKUP($A37,Salaries!$B$5:$G$104,6))","v":" "},"",0,17]
[null,0,null,null,null,null,null,null,null,null,null,null,null,null,null,null,null,null,null,null,null,null,null,null,null,null,null,null,null,null,null,null,null,0,null,null,null,null,null,null,null,null,null,null,null,null,null,null,null,null,null,null,null,null,null,null,null,null,null,null,null,null,null,null,null,null,null,null,null,null,null,null,null,null,null,null,null,null,null,null,null,null,null,null,null,null,null,null,null,null,null,null,null,null,null,null,null,null,null,null,null,0,{"$f":"IF($A38=0,\" \",VLOOKUP($A38,Salaries!$B$5:$G$104,6))","v":" "},"",0,18]
[null,0,null,null,null,null,null,null,null,null,null,null,null,null,null,null,null,null,null,null,null,null,null,null,null,null,null,null,null,null,null,null,null,0,null,null,null,null,null,null,null,null,null,null,null,null,null,null,null,null,null,null,null,null,null,null,null,null,null,null,null,null,null,null,null,null,null,null,null,null,null,null,null,null,null,null,null,null,null,null,null,null,null,null,null,null,null,null,null,null,null,null,null,null,null,null,null,null,null,null,null,0,{"$f":"IF($A39=0,\" \",VLOOKUP($A39,Salaries!$B$5:$G$104,6))","v":" "},"",0,19]
[null,0,null,null,null,null,null,null,null,null,null,null,null,null,null,null,null,null,null,null,null,null,null,null,null,null,null,null,null,null,null,null,null,0,null,null,null,null,null,null,null,null,null,null,null,null,null,null,null,null,null,null,null,null,null,null,null,null,null,null,null,null,null,null,null,null,null,null,null,null,null,null,null,null,null,null,null,null,null,null,null,null,null,null,null,null,null,null,null,null,null,null,null,null,null,null,null,null,null,null,null,0,{"$f":"IF($A40=0,\" \",VLOOKUP($A40,Salaries!$B$5:$G$104,6))","v":" "},"",0,20]
[null,0,null,null,null,null,null,null,null,null,null,null,null,null,null,null,null,null,null,null,null,null,null,null,null,null,null,null,null,null,null,null,null,0,null,null,null,null,null,null,null,null,null,null,null,null,null,null,null,null,null,null,null,null,null,null,null,null,null,null,null,null,null,null,null,null,null,null,null,null,null,null,null,null,null,null,null,null,null,null,null,null,null,null,null,null,null,null,null,null,null,null,null,null,null,null,null,null,null,null,null,0,{"$f":"IF($A41=0,\" \",VLOOKUP($A41,Salaries!$B$5:$G$104,6))","v":" "},"",0,21]
[null,0,null,null,null,null,null,null,null,null,null,null,null,null,null,null,null,null,null,null,null,null,null,null,null,null,null,null,null,null,null,null,null,0,null,null,null,null,null,null,null,null,null,null,null,null,null,null,null,null,null,null,null,null,null,null,null,null,null,null,null,null,null,null,null,null,null,null,null,null,null,null,null,null,null,null,null,null,null,null,null,null,null,null,null,null,null,null,null,null,null,null,null,null,null,null,null,null,null,null,null,0,{"$f":"IF($A42=0,\" \",VLOOKUP($A42,Salaries!$B$5:$G$104,6))","v":" "},"",0,22]
[null,0,null,null,null,null,null,null,null,null,null,null,null,null,null,null,null,null,null,null,null,null,null,null,null,null,null,null,null,null,null,null,null,0,null,null,null,null,null,null,null,null,null,null,null,null,null,null,null,null,null,null,null,null,null,null,null,null,null,null,null,null,null,null,null,null,null,null,null,null,null,null,null,null,null,null,null,null,null,null,null,null,null,null,null,null,null,null,null,null,null,null,null,null,null,null,null,null,null,null,null,0,{"$f":"IF($A43=0,\" \",VLOOKUP($A43,Salaries!$B$5:$G$104,6))","v":" "},"",0,23]
[null,0,null,null,null,null,null,null,null,null,null,null,null,null,null,null,null,null,null,null,null,null,null,null,null,null,null,null,null,null,null,null,null,0,null,null,null,null,null,null,null,null,null,null,null,null,null,null,null,null,null,null,null,null,null,null,null,null,null,null,null,null,null,null,null,null,null,null,null,null,null,null,null,null,null,null,null,null,null,null,null,null,null,null,null,null,null,null,null,null,null,null,null,null,null,null,null,null,null,null,null,0,{"$f":"IF($A44=0,\" \",VLOOKUP($A44,Salaries!$B$5:$G$104,6))","v":" "},"",0,24]
[null,0,null,null,null,null,null,null,null,null,null,null,null,null,null,null,null,null,null,null,null,null,null,null,null,null,null,null,null,null,null,null,null,0,null,null,null,null,null,null,null,null,null,null,null,null,null,null,null,null,null,null,null,null,null,null,null,null,null,null,null,null,null,null,null,null,null,null,null,null,null,null,null,null,null,null,null,null,null,null,null,null,null,null,null,null,null,null,null,null,null,null,null,null,null,null,null,null,null,null,null,0,{"$f":"IF($A45=0,\" \",VLOOKUP($A45,Salaries!$B$5:$G$104,6))","v":" "},"",0,25]
[null,0,null,null,null,null,null,null,null,null,null,null,null,null,null,null,null,null,null,null,null,null,null,null,null,null,null,null,null,null,null,null,null,0,null,null,null,null,null,null,null,null,null,null,null,null,null,null,null,null,null,null,null,null,null,null,null,null,null,null,null,null,null,null,null,null,null,null,null,null,null,null,null,null,null,null,null,null,null,null,null,null,null,null,null,null,null,null,null,null,null,null,null,null,null,null,null,null,null,null,null,0,{"$f":"IF($A46=0,\" \",VLOOKUP($A46,Salaries!$B$5:$G$104,6))","v":" "},"",0,26]
[null,0,null,null,null,null,null,null,null,null,null,null,null,null,null,null,null,null,null,null,null,null,null,null,null,null,null,null,null,null,null,null,null,0,null,null,null,null,null,null,null,null,null,null,null,null,null,null,null,null,null,null,null,null,null,null,null,null,null,null,null,null,null,null,null,null,null,null,null,null,null,null,null,null,null,null,null,null,null,null,null,null,null,null,null,null,null,null,null,null,null,null,null,null,null,null,null,null,null,null,null,0,{"$f":"IF($A47=0,\" \",VLOOKUP($A47,Salaries!$B$5:$G$104,6))","v":" "},"",0,27]
[null,0,null,null,null,null,null,null,null,null,null,null,null,null,null,null,null,null,null,null,null,null,null,null,null,null,null,null,null,null,null,null,null,0,null,null,null,null,null,null,null,null,null,null,null,null,null,null,null,null,null,null,null,null,null,null,null,null,null,null,null,null,null,null,null,null,null,null,null,null,null,null,null,null,null,null,null,null,null,null,null,null,null,null,null,null,null,null,null,null,null,null,null,null,null,null,null,null,null,null,null,0,{"$f":"IF($A48=0,\" \",VLOOKUP($A48,Salaries!$B$5:$G$104,6))","v":" "},"",0,28]
[null,0,null,null,null,null,null,null,null,null,null,null,null,null,null,null,null,null,null,null,null,null,null,null,null,null,null,null,null,null,null,null,null,0,null,null,null,null,null,null,null,null,null,null,null,null,null,null,null,null,null,null,null,null,null,null,null,null,null,null,null,null,null,null,null,null,null,null,null,null,null,null,null,null,null,null,null,null,null,null,null,null,null,null,null,null,null,null,null,null,null,null,null,null,null,null,null,null,null,null,null,0,{"$f":"IF($A49=0,\" \",VLOOKUP($A49,Salaries!$B$5:$G$104,6))","v":" "},"",0,29]
[null,0,null,null,null,null,null,null,null,null,null,null,null,null,null,null,null,null,null,null,null,null,null,null,null,null,null,null,null,null,null,null,null,0,null,null,null,null,null,null,null,null,null,null,null,null,null,null,null,null,null,null,null,null,null,null,null,null,null,null,null,null,null,null,null,null,null,null,null,null,null,null,null,null,null,null,null,null,null,null,null,null,null,null,null,null,null,null,null,null,null,null,null,null,null,null,null,null,null,null,null,0,{"$f":"IF($A50=0,\" \",VLOOKUP($A50,Salaries!$B$5:$G$104,6))","v":" "},"",0,30]
[null,0,null,null,null,null,null,null,null,null,null,null,null,null,null,null,null,null,null,null,null,null,null,null,null,null,null,null,null,null,null,null,null,0,null,null,null,null,null,null,null,null,null,null,null,null,null,null,null,null,null,null,null,null,null,null,null,null,null,null,null,null,null,null,null,null,null,null,null,null,null,null,null,null,null,null,null,null,null,null,null,null,null,null,null,null,null,null,null,null,null,null,null,null,null,null,null,null,null,null,null,0,{"$f":"IF($A51=0,\" \",VLOOKUP($A51,Salaries!$B$5:$G$104,6))","v":" "},"",0,31]
[null,0,null,null,null,null,null,null,null,null,null,null,null,null,null,null,null,null,null,null,null,null,null,null,null,null,null,null,null,null,null,null,null,0,null,null,null,null,null,null,null,null,null,null,null,null,null,null,null,null,null,null,null,null,null,null,null,null,null,null,null,null,null,null,null,null,null,null,null,null,null,null,null,null,null,null,null,null,null,null,null,null,null,null,null,null,null,null,null,null,null,null,null,null,null,null,null,null,null,null,null,0,{"$f":"IF($A52=0,\" \",VLOOKUP($A52,Salaries!$B$5:$G$104,6))","v":" "},"",0,32]
[null,0,null,null,null,null,null,null,null,null,null,null,null,null,null,null,null,null,null,null,null,null,null,null,null,null,null,null,null,null,null,null,null,0,null,null,null,null,null,null,null,null,null,null,null,null,null,null,null,null,null,null,null,null,null,null,null,null,null,null,null,null,null,null,null,null,null,null,null,null,null,null,null,null,null,null,null,null,null,null,null,null,null,null,null,null,null,null,null,null,null,null,null,null,null,null,null,null,null,null,null,0,{"$f":"IF($A53=0,\" \",VLOOKUP($A53,Salaries!$B$5:$G$104,6))","v":" "},"",0,33]
[null,0,null,null,null,null,null,null,null,null,null,null,null,null,null,null,null,null,null,null,null,null,null,null,null,null,null,null,null,null,null,null,null,0,null,null,null,null,null,null,null,null,null,null,null,null,null,null,null,null,null,null,null,null,null,null,null,null,null,null,null,null,null,null,null,null,null,null,null,null,null,null,null,null,null,null,null,null,null,null,null,null,null,null,null,null,null,null,null,null,null,null,null,null,null,null,null,null,null,null,null,0,{"$f":"IF($A54=0,\" \",VLOOKUP($A54,Salaries!$B$5:$G$104,6))","v":" "},"",0,34]
[null,0,null,null,null,null,null,null,null,null,null,null,null,null,null,null,null,null,null,null,null,null,null,null,null,null,null,null,null,null,null,null,null,0,null,null,null,null,null,null,null,null,null,null,null,null,null,null,null,null,null,null,null,null,null,null,null,null,null,null,null,null,null,null,null,null,null,null,null,null,null,null,null,null,null,null,null,null,null,null,null,null,null,null,null,null,null,null,null,null,null,null,null,null,null,null,null,null,null,null,null,0,{"$f":"IF($A55=0,\" \",VLOOKUP($A55,Salaries!$B$5:$G$104,6))","v":" "},"",0,35]
[null,0,null,null,null,null,null,null,null,null,null,null,null,null,null,null,null,null,null,null,null,null,null,null,null,null,null,null,null,null,null,null,null,0,null,null,null,null,null,null,null,null,null,null,null,null,null,null,null,null,null,null,null,null,null,null,null,null,null,null,null,null,null,null,null,null,null,null,null,null,null,null,null,null,null,null,null,null,null,null,null,null,null,null,null,null,null,null,null,null,null,null,null,null,null,null,null,null,null,null,null,0,{"$f":"IF($A56=0,\" \",VLOOKUP($A56,Salaries!$B$5:$G$104,6))","v":" "},"",0,36]
[null,0,null,null,null,null,null,null,null,null,null,null,null,null,null,null,null,null,null,null,null,null,null,null,null,null,null,null,null,null,null,null,null,0,null,null,null,null,null,null,null,null,null,null,null,null,null,null,null,null,null,null,null,null,null,null,null,null,null,null,null,null,null,null,null,null,null,null,null,null,null,null,null,null,null,null,null,null,null,null,null,null,null,null,null,null,null,null,null,null,null,null,null,null,null,null,null,null,null,null,null,0,{"$f":"IF($A57=0,\" \",VLOOKUP($A57,Salaries!$B$5:$G$104,6))","v":" "},"",0,37]
[null,0,null,null,null,null,null,null,null,null,null,null,null,null,null,null,null,null,null,null,null,null,null,null,null,null,null,null,null,null,null,null,null,0,null,null,null,null,null,null,null,null,null,null,null,null,null,null,null,null,null,null,null,null,null,null,null,null,null,null,null,null,null,null,null,null,null,null,null,null,null,null,null,null,null,null,null,null,null,null,null,null,null,null,null,null,null,null,null,null,null,null,null,null,null,null,null,null,null,null,null,0,{"$f":"IF($A58=0,\" \",VLOOKUP($A58,Salaries!$B$5:$G$104,6))","v":" "},"",0,38]
[null,0,null,null,null,null,null,null,null,null,null,null,null,null,null,null,null,null,null,null,null,null,null,null,null,null,null,null,null,null,null,null,null,0,null,null,null,null,null,null,null,null,null,null,null,null,null,null,null,null,null,null,null,null,null,null,null,null,null,null,null,null,null,null,null,null,null,null,null,null,null,null,null,null,null,null,null,null,null,null,null,null,null,null,null,null,null,null,null,null,null,null,null,null,null,null,null,null,null,null,null,0,{"$f":"IF($A59=0,\" \",VLOOKUP($A59,Salaries!$B$5:$G$104,6))","v":" "},"",0,39]
[null,0,null,null,null,null,null,null,null,null,null,null,null,null,null,null,null,null,null,null,null,null,null,null,null,null,null,null,null,null,null,null,null,0,null,null,null,null,null,null,null,null,null,null,null,null,null,null,null,null,null,null,null,null,null,null,null,null,null,null,null,null,null,null,null,null,null,null,null,null,null,null,null,null,null,null,null,null,null,null,null,null,null,null,null,null,null,null,null,null,null,null,null,null,null,null,null,null,null,null,null,0,{"$f":"IF($A60=0,\" \",VLOOKUP($A60,Salaries!$B$5:$G$104,6))","v":" "},"",0,40]
[null,0,null,null,null,null,null,null,null,null,null,null,null,null,null,null,null,null,null,null,null,null,null,null,null,null,null,null,null,null,null,null,null,0,null,null,null,null,null,null,null,null,null,null,null,null,null,null,null,null,null,null,null,null,null,null,null,null,null,null,null,null,null,null,null,null,null,null,null,null,null,null,null,null,null,null,null,null,null,null,null,null,null,null,null,null,null,null,null,null,null,null,null,null,null,null,null,null,null,null,null,0,{"$f":"IF($A61=0,\" \",VLOOKUP($A61,Salaries!$B$5:$G$104,6))","v":" "},"",0,41]
[null,0,null,null,null,null,null,null,null,null,null,null,null,null,null,null,null,null,null,null,null,null,null,null,null,null,null,null,null,null,null,null,null,0,null,null,null,null,null,null,null,null,null,null,null,null,null,null,null,null,null,null,null,null,null,null,null,null,null,null,null,null,null,null,null,null,null,null,null,null,null,null,null,null,null,null,null,null,null,null,null,null,null,null,null,null,null,null,null,null,null,null,null,null,null,null,null,null,null,null,null,0,{"$f":"IF($A62=0,\" \",VLOOKUP($A62,Salaries!$B$5:$G$104,6))","v":" "},"",0,42]
[null,0,null,null,null,null,null,null,null,null,null,null,null,null,null,null,null,null,null,null,null,null,null,null,null,null,null,null,null,null,null,null,null,0,null,null,null,null,null,null,null,null,null,null,null,null,null,null,null,null,null,null,null,null,null,null,null,null,null,null,null,null,null,null,null,null,null,null,null,null,null,null,null,null,null,null,null,null,null,null,null,null,null,null,null,null,null,null,null,null,null,null,null,null,null,null,null,null,null,null,null,0,{"$f":"IF($A63=0,\" \",VLOOKUP($A63,Salaries!$B$5:$G$104,6))","v":" "},"",0,43]
[null,0,null,null,null,null,null,null,null,null,null,null,null,null,null,null,null,null,null,null,null,null,null,null,null,null,null,null,null,null,null,null,null,0,null,null,null,null,null,null,null,null,null,null,null,null,null,null,null,null,null,null,null,null,null,null,null,null,null,null,null,null,null,null,null,null,null,null,null,null,null,null,null,null,null,null,null,null,null,null,null,null,null,null,null,null,null,null,null,null,null,null,null,null,null,null,null,null,null,null,null,0,{"$f":"IF($A64=0,\" \",VLOOKUP($A64,Salaries!$B$5:$G$104,6))","v":" "},"",0,44]
[null,0,null,null,null,null,null,null,null,null,null,null,null,null,null,null,null,null,null,null,null,null,null,null,null,null,null,null,null,null,null,null,null,0,null,null,null,null,null,null,null,null,null,null,null,null,null,null,null,null,null,null,null,null,null,null,null,null,null,null,null,null,null,null,null,null,null,null,null,null,null,null,null,null,null,null,null,null,null,null,null,null,null,null,null,null,null,null,null,null,null,null,null,null,null,null,null,null,null,null,null,0,{"$f":"IF($A65=0,\" \",VLOOKUP($A65,Salaries!$B$5:$G$104,6))","v":" "},"",0,45]
[null,0,null,null,null,null,null,null,null,null,null,null,null,null,null,null,null,null,null,null,null,null,null,null,null,null,null,null,null,null,null,null,null,0,null,null,null,null,null,null,null,null,null,null,null,null,null,null,null,null,null,null,null,null,null,null,null,null,null,null,null,null,null,null,null,null,null,null,null,null,null,null,null,null,null,null,null,null,null,null,null,null,null,null,null,null,null,null,null,null,null,null,null,null,null,null,null,null,null,null,null,0,{"$f":"IF($A66=0,\" \",VLOOKUP($A66,Salaries!$B$5:$G$104,6))","v":" "},"",0,46]
[null,0,null,null,null,null,null,null,null,null,null,null,null,null,null,null,null,null,null,null,null,null,null,null,null,null,null,null,null,null,null,null,null,0,null,null,null,null,null,null,null,null,null,null,null,null,null,null,null,null,null,null,null,null,null,null,null,null,null,null,null,null,null,null,null,null,null,null,null,null,null,null,null,null,null,null,null,null,null,null,null,null,null,null,null,null,null,null,null,null,null,null,null,null,null,null,null,null,null,null,null,0,{"$f":"IF($A67=0,\" \",VLOOKUP($A67,Salaries!$B$5:$G$104,6))","v":" "},"",0,47]
[null,0,null,null,null,null,null,null,null,null,null,null,null,null,null,null,null,null,null,null,null,null,null,null,null,null,null,null,null,null,null,null,null,0,null,null,null,null,null,null,null,null,null,null,null,null,null,null,null,null,null,null,null,null,null,null,null,null,null,null,null,null,null,null,null,null,null,null,null,null,null,null,null,null,null,null,null,null,null,null,null,null,null,null,null,null,null,null,null,null,null,null,null,null,null,null,null,null,null,null,null,0,{"$f":"IF($A68=0,\" \",VLOOKUP($A68,Salaries!$B$5:$G$104,6))","v":" "},"",0,48]
[null,0,null,null,null,null,null,null,null,null,null,null,null,null,null,null,null,null,null,null,null,null,null,null,null,null,null,null,null,null,null,null,null,0,null,null,null,null,null,null,null,null,null,null,null,null,null,null,null,null,null,null,null,null,null,null,null,null,null,null,null,null,null,null,null,null,null,null,null,null,null,null,null,null,null,null,null,null,null,null,null,null,null,null,null,null,null,null,null,null,null,null,null,null,null,null,null,null,null,null,null,0,{"$f":"IF($A69=0,\" \",VLOOKUP($A69,Salaries!$B$5:$G$104,6))","v":" "},"",0,49]
[null,0,null,null,null,null,null,null,null,null,null,null,null,null,null,null,null,null,null,null,null,null,null,null,null,null,null,null,null,null,null,null,null,0,null,null,null,null,null,null,null,null,null,null,null,null,null,null,null,null,null,null,null,null,null,null,null,null,null,null,null,null,null,null,null,null,null,null,null,null,null,null,null,null,null,null,null,null,null,null,null,null,null,null,null,null,null,null,null,null,null,null,null,null,null,null,null,null,null,null,null,0,{"$f":"IF($A70=0,\" \",VLOOKUP($A70,Salaries!$B$5:$G$104,6))","v":" "},"",0,50]
[null,0,null,null,null,null,null,null,null,null,null,null,null,null,null,null,null,null,null,null,null,null,null,null,null,null,null,null,null,null,null,null,null,0,null,null,null,null,null,null,null,null,null,null,null,null,null,null,null,null,null,null,null,null,null,null,null,null,null,null,null,null,null,null,null,null,null,null,null,null,null,null,null,null,null,null,null,null,null,null,null,null,null,null,null,null,null,null,null,null,null,null,null,null,null,null,null,null,null,null,null,0,{"$f":"IF($A71=0,\" \",VLOOKUP($A71,Salaries!$B$5:$G$104,6))","v":" "},"",0,51]
[null,0,null,null,null,null,null,null,null,null,null,null,null,null,null,null,null,null,null,null,null,null,null,null,null,null,null,null,null,null,null,null,null,0,null,null,null,null,null,null,null,null,null,null,null,null,null,null,null,null,null,null,null,null,null,null,null,null,null,null,null,null,null,null,null,null,null,null,null,null,null,null,null,null,null,null,null,null,null,null,null,null,null,null,null,null,null,null,null,null,null,null,null,null,null,null,null,null,null,null,null,0,{"$f":"IF($A72=0,\" \",VLOOKUP($A72,Salaries!$B$5:$G$104,6))","v":" "},"",0,52]
[null,0,null,null,null,null,null,null,null,null,null,null,null,null,null,null,null,null,null,null,null,null,null,null,null,null,null,null,null,null,null,null,null,0,null,null,null,null,null,null,null,null,null,null,null,null,null,null,null,null,null,null,null,null,null,null,null,null,null,null,null,null,null,null,null,null,null,null,null,null,null,null,null,null,null,null,null,null,null,null,null,null,null,null,null,null,null,null,null,null,null,null,null,null,null,null,null,null,null,null,null,0,{"$f":"IF($A73=0,\" \",VLOOKUP($A73,Salaries!$B$5:$G$104,6))","v":" "},"",0,53]
[null,0,null,null,null,null,null,null,null,null,null,null,null,null,null,null,null,null,null,null,null,null,null,null,null,null,null,null,null,null,null,null,null,0,null,null,null,null,null,null,null,null,null,null,null,null,null,null,null,null,null,null,null,null,null,null,null,null,null,null,null,null,null,null,null,null,null,null,null,null,null,null,null,null,null,null,null,null,null,null,null,null,null,null,null,null,null,null,null,null,null,null,null,null,null,null,null,null,null,null,null,0,{"$f":"IF($A74=0,\" \",VLOOKUP($A74,Salaries!$B$5:$G$104,6))","v":" "},"",0,54]
[null,0,null,null,null,null,null,null,null,null,null,null,null,null,null,null,null,null,null,null,null,null,null,null,null,null,null,null,null,null,null,null,null,0,null,null,null,null,null,null,null,null,null,null,null,null,null,null,null,null,null,null,null,null,null,null,null,null,null,null,null,null,null,null,null,null,null,null,null,null,null,null,null,null,null,null,null,null,null,null,null,null,null,null,null,null,null,null,null,null,null,null,null,null,null,null,null,null,null,null,null,0,{"$f":"IF($A75=0,\" \",VLOOKUP($A75,Salaries!$B$5:$G$104,6))","v":" "},"",0,55]
[null,0,null,null,null,null,null,null,null,null,null,null,null,null,null,null,null,null,null,null,null,null,null,null,null,null,null,null,null,null,null,null,null,0,null,null,null,null,null,null,null,null,null,null,null,null,null,null,null,null,null,null,null,null,null,null,null,null,null,null,null,null,null,null,null,null,null,null,null,null,null,null,null,null,null,null,null,null,null,null,null,null,null,null,null,null,null,null,null,null,null,null,null,null,null,null,null,null,null,null,null,0,{"$f":"IF($A76=0,\" \",VLOOKUP($A76,Salaries!$B$5:$G$104,6))","v":" "},"",0,56]
[null,0,null,null,null,null,null,null,null,null,null,null,null,null,null,null,null,null,null,null,null,null,null,null,null,null,null,null,null,null,null,null,null,0,null,null,null,null,null,null,null,null,null,null,null,null,null,null,null,null,null,null,null,null,null,null,null,null,null,null,null,null,null,null,null,null,null,null,null,null,null,null,null,null,null,null,null,null,null,null,null,null,null,null,null,null,null,null,null,null,null,null,null,null,null,null,null,null,null,null,null,0,{"$f":"IF($A77=0,\" \",VLOOKUP($A77,Salaries!$B$5:$G$104,6))","v":" "},"",0,57]
[null,0,null,null,null,null,null,null,null,null,null,null,null,null,null,null,null,null,null,null,null,null,null,null,null,null,null,null,null,null,null,null,null,0,null,null,null,null,null,null,null,null,null,null,null,null,null,null,null,null,null,null,null,null,null,null,null,null,null,null,null,null,null,null,null,null,null,null,null,null,null,null,null,null,null,null,null,null,null,null,null,null,null,null,null,null,null,null,null,null,null,null,null,null,null,null,null,null,null,null,null,0,{"$f":"IF($A78=0,\" \",VLOOKUP($A78,Salaries!$B$5:$G$104,6))","v":" "},"",0,58]
[null,0,null,null,null,null,null,null,null,null,null,null,null,null,null,null,null,null,null,null,null,null,null,null,null,null,null,null,null,null,null,null,null,0,null,null,null,null,null,null,null,null,null,null,null,null,null,null,null,null,null,null,null,null,null,null,null,null,null,null,null,null,null,null,null,null,null,null,null,null,null,null,null,null,null,null,null,null,null,null,null,null,null,null,null,null,null,null,null,null,null,null,null,null,null,null,null,null,null,null,null,0,{"$f":"IF($A79=0,\" \",VLOOKUP($A79,Salaries!$B$5:$G$104,6))","v":" "},"",0,59]
[null,0,null,null,null,null,null,null,null,null,null,null,null,null,null,null,null,null,null,null,null,null,null,null,null,null,null,null,null,null,null,null,null,0,null,null,null,null,null,null,null,null,null,null,null,null,null,null,null,null,null,null,null,null,null,null,null,null,null,null,null,null,null,null,null,null,null,null,null,null,null,null,null,null,null,null,null,null,null,null,null,null,null,null,null,null,null,null,null,null,null,null,null,null,null,null,null,null,null,null,null,0,{"$f":"IF($A80=0,\" \",VLOOKUP($A80,Salaries!$B$5:$G$104,6))","v":" "},"",0,60]
[null,0,null,null,null,null,null,null,null,null,null,null,null,null,null,null,null,null,null,null,null,null,null,null,null,null,null,null,null,null,null,null,null,0,null,null,null,null,null,null,null,null,null,null,null,null,null,null,null,null,null,null,null,null,null,null,null,null,null,null,null,null,null,null,null,null,null,null,null,null,null,null,null,null,null,null,null,null,null,null,null,null,null,null,null,null,null,null,null,null,null,null,null,null,null,null,null,null,null,null,null,0,{"$f":"IF($A81=0,\" \",VLOOKUP($A81,Salaries!$B$5:$G$104,6))","v":" "},"",0,61]
[null,0,null,null,null,null,null,null,null,null,null,null,null,null,null,null,null,null,null,null,null,null,null,null,null,null,null,null,null,null,null,null,null,0,null,null,null,null,null,null,null,null,null,null,null,null,null,null,null,null,null,null,null,null,null,null,null,null,null,null,null,null,null,null,null,null,null,null,null,null,null,null,null,null,null,null,null,null,null,null,null,null,null,null,null,null,null,null,null,null,null,null,null,null,null,null,null,null,null,null,null,0,{"$f":"IF($A82=0,\" \",VLOOKUP($A82,Salaries!$B$5:$G$104,6))","v":" "},"",0,62]
[null,0,null,null,null,null,null,null,null,null,null,null,null,null,null,null,null,null,null,null,null,null,null,null,null,null,null,null,null,null,null,null,null,0,null,null,null,null,null,null,null,null,null,null,null,null,null,null,null,null,null,null,null,null,null,null,null,null,null,null,null,null,null,null,null,null,null,null,null,null,null,null,null,null,null,null,null,null,null,null,null,null,null,null,null,null,null,null,null,null,null,null,null,null,null,null,null,null,null,null,null,0,{"$f":"IF($A83=0,\" \",VLOOKUP($A83,Salaries!$B$5:$G$104,6))","v":" "},"",0,63]
[null,0,null,null,null,null,null,null,null,null,null,null,null,null,null,null,null,null,null,null,null,null,null,null,null,null,null,null,null,null,null,null,null,0,null,null,null,null,null,null,null,null,null,null,null,null,null,null,null,null,null,null,null,null,null,null,null,null,null,null,null,null,null,null,null,null,null,null,null,null,null,null,null,null,null,null,null,null,null,null,null,null,null,null,null,null,null,null,null,null,null,null,null,null,null,null,null,null,null,null,null,0,{"$f":"IF($A84=0,\" \",VLOOKUP($A84,Salaries!$B$5:$G$104,6))","v":" "},"",0,64]
[null,{"$f":"COUNTA(C85:AG85)-CX85-DA85","v":0},null,null,null,null,null,null,null,null,null,null,null,null,null,null,null,null,null,null,null,null,null,null,null,null,null,null,null,null,null,null,null,{"$f":"B85*8","v":0},null,null,null,null,null,null,null,null,null,null,null,null,null,null,null,null,null,null,null,null,null,null,null,null,null,null,null,null,null,null,null,null,null,null,null,null,null,null,null,null,null,null,null,null,null,null,null,null,null,null,null,null,null,null,null,null,null,null,null,null,null,null,null,null,null,null,null,{"$f":"COUNTIF(C85:AG85,\"CP\")","v":0},{"$f":"IF($A85=0,\" \",VLOOKUP($A85,Salaries!$B$5:$G$104,6))","v":" "},{"$f":"IFERROR(CY85/8,\"\")","v":""},{"$f":"COUNTIF(C85:AG85,\"MAL\")+COUNTIF(C85:AG85,\"AT\")","v":0},65]
[null,0,null,null,null,null,null,null,null,null,null,null,null,null,null,null,null,null,null,null,null,null,null,null,null,null,null,null,null,null,null,null,null,0,null,null,null,null,null,null,null,null,null,null,null,null,null,null,null,null,null,null,null,null,null,null,null,null,null,null,null,null,null,null,null,null,null,null,null,null,null,null,null,null,null,null,null,null,null,null,null,null,null,null,null,null,null,null,null,null,null,null,null,null,null,null,null,null,null,null,null,0,{"$f":"IF($A86=0,\" \",VLOOKUP($A86,Salaries!$B$5:$G$104,6))","v":" "},"",0,66]
[null,0,null,null,null,null,null,null,null,null,null,null,null,null,null,null,null,null,null,null,null,null,null,null,null,null,null,null,null,null,null,null,null,0,null,null,null,null,null,null,null,null,null,null,null,null,null,null,null,null,null,null,null,null,null,null,null,null,null,null,null,null,null,null,null,null,null,null,null,null,null,null,null,null,null,null,null,null,null,null,null,null,null,null,null,null,null,null,null,null,null,null,null,null,null,null,null,null,null,null,null,0,{"$f":"IF($A87=0,\" \",VLOOKUP($A87,Salaries!$B$5:$G$104,6))","v":" "},"",0,67]
[null,0,null,null,null,null,null,null,null,null,null,null,null,null,null,null,null,null,null,null,null,null,null,null,null,null,null,null,null,null,null,null,null,0,null,null,null,null,null,null,null,null,null,null,null,null,null,null,null,null,null,null,null,null,null,null,null,null,null,null,null,null,null,null,null,null,null,null,null,null,null,null,null,null,null,null,null,null,null,null,null,null,null,null,null,null,null,null,null,null,null,null,null,null,null,null,null,null,null,null,null,0,{"$f":"IF($A88=0,\" \",VLOOKUP($A88,Salaries!$B$5:$G$104,6))","v":" "},"",0,68]
[null,0,null,null,null,null,null,null,null,null,null,null,null,null,null,null,null,null,null,null,null,null,null,null,null,null,null,null,null,null,null,null,null,0,null,null,null,null,null,null,null,null,null,null,null,null,null,null,null,null,null,null,null,null,null,null,null,null,null,null,null,null,null,null,null,null,null,null,null,null,null,null,null,null,null,null,null,null,null,null,null,null,null,null,null,null,null,null,null,null,null,null,null,null,null,null,null,null,null,null,null,0,{"$f":"IF($A89=0,\" \",VLOOKUP($A89,Salaries!$B$5:$G$104,6))","v":" "},"",0,69]

{"sheet":"Juillet","index":3,"n_rows":89,"n_cols":106,"rows_kept":89,"cut":false,"hidden":false,"merged":[[3,102,3,103],[0,2,3,32],[3,104,3,105]]}
[null,null,"JUILLET",null,null,null,null,null,null,null,null,null,null,null,null,null,null,null,null,null,null,null,null,null,null,null,null,null,null,null,null,null,null,null,null,null,null,null,null,null,null,null,null,null,null,null,null,null,null,null,null,null,null,null,null,null,null,null,null,null,null,null,null,null,null,null,null,null,null,null,null,null,null,null,null,null,null,null,null,null,null,null,null,null,null,null,null,null,null,null,null,null,null,null,null,null,null,null,null,null,1]
[]
[]
[null,null,null,null,null,null,null,null,null,null,null,null,null,null,null,null,null,null,null,null,null,null,null,null,null,null,null,null,null,null,null,null,null,"Mois",null,null,null,null,null,null,null,null,null,null,null,null,null,null,null,null,null,null,null,null,null,null,null,null,null,null,null,null,null,null,null,null,null,null,null,null,null,null,null,null,null,null,null,null,null,null,null,null,null,null,null,null,null,null,null,null,null,null,null,null,null,null,null,null,null,null,null,"CP","Solde année",null,"Maladie"]
[null,"J",1,2,3,4,5,6,7,8,9,10,11,12,13,14,15,16,17,18,19,20,21,22,23,24,25,26,27,28,29,30,31,"H",null,null,null,null,null,null,null,null,null,null,null,null,null,null,null,null,null,null,null,null,null,null,null,null,null,null,null,null,null,null,null,null,null,null,null,null,null,null,null,null,null,null,null,null,null,null,null,null,null,null,null,null,null,null,null,null,null,null,null,null,null,null,null,null,null,null,null,"J","H","J","J","H Théo"]
["Jacques",{"$f":"COUNTA(C6:AG6)-CX6-DA6","v":14},"X","X","X",null,null,null,"X","X","X","X",null,null,"X","X","X",null,null,null,"CP","CP","CP","CP","CP","CP","CP","X","X","X",null,null,"X",{"$f":"B6*8","v":112},null,null,null,null,null,null,null,null,null,null,null,null,null,null,null,null,null,null,null,null,null,null,null,null,null,null,null,null,null,null,null,null,null,null,null,null,null,null,null,null,null,null,null,null,null,null,null,null,null,null,null,null,null,null,null,null,null,null,null,null,null,null,null,null,null,null,null,{"$f":"COUNTIF(C6:AG6,\"CP\")","v":7},{"$f":"IF($A6=0,\" \",VLOOKUP($A6,Salaries!$B$5:$G$104,6))","v":8},{"$f":"IFERROR(CY6/8,\"\")","v":1},{"$f":"COUNTIF(C6:AG6,\"MAL\")+COUNTIF(C6:AG6,\"AT\")","v":0},0]
["Pierre",{"$f":"COUNTA(C7:AG7)-CX7-DA7","v":18},null,null,null,"X","X","X",null,null,"X","X","X","X",null,null,null,"X","X","X",null,null,"X","X","X","X",null,null,"X","X","X","X",null,{"$f":"B7*8","v":144},null,null,null,null,null,null,null,null,null,null,null,null,null,null,null,null,null,null,null,null,null,null,null,null,null,null,null,null,null,null,null,null,null,null,null,null,null,null,null,null,null,null,null,null,null,null,null,null,null,null,null,null,null,null,null,null,null,null,null,null,null,null,null,null,null,null,null,{"$f":"COUNTIF(C7:AG7,\"CP\")","v":0},{"$f":"IF($A7=0,\" \",VLOOKUP($A7,Salaries!$B$5:$G$104,6))","v":-8},{"$f":"IFERROR(CY7/8,\"\")","v":-1},{"$f":"COUNTIF(C7:AG7,\"MAL\")+COUNTIF(C7:AG7,\"AT\")","v":0},0]
["Paul",11,null,null,null,null,null,null,null,null,null,null,null,null,null,null,null,null,"X","X","X","X",null,null,"X","X","X","X",null,null,"X","X","X",88,null,null,null,null,null,null,null,null,null,null,null,null,null,null,null,null,null,null,null,null,null,null,null,null,null,null,null,null,null,null,null,null,null,null,null,null,null,null,null,null,null,null,null,null,null,null,null,null,null,null,null,null,null,null,null,null,null,null,null,null,null,null,null,null,null,null,null,0,{"$f":"IF($A8=0,\" \",VLOOKUP($A8,Salaries!$B$5:$G$104,6))","v":-136},-17,0,0]
["Paul",9,"X","X",null,null,"X","X","X","X",null,null,"X","X","X",null,null,null,null,null,null,null,null,null,null,null,null,null,null,null,null,null,null,72,null,null,null,null,null,null,null,null,null,null,null,null,null,null,null,null,null,null,null,null,null,null,null,null,null,null,null,null,null,null,null,null,null,null,null,null,null,null,null,null,null,null,null,null,null,null,null,null,null,null,null,null,null,null,null,null,null,null,null,null,null,null,null,null,null,null,null,0,{"$f":"IF($A9=0,\" \",VLOOKUP($A9,Salaries!$B$5:$G$104,6))","v":-136},-17,0,0]
["Albert",11,null,null,"X","X",null,null,null,null,null,null,null,null,null,"X","X","X",null,null,"X","X","X","X",null,null,"X",null,null,null,null,null,"X",88,null,null,null,null,null,null,null,null,null,null,null,null,null,null,null,null,null,null,null,null,null,null,null,null,null,null,null,null,null,null,null,null,null,null,null,null,null,null,null,null,null,null,null,null,null,null,null,null,null,null,null,null,null,null,null,null,null,null,null,null,null,null,null,null,null,null,null,0,{"$f":"IF($A10=0,\" \",VLOOKUP($A10,Salaries!$B$5:$G$104,6))","v":0},0,0,0]
[0,0,null,null,null,null,null,null,null,null,null,null,null,null,null,null,null,null,null,null,null,null,null,null,null,null,null,null,null,null,null,null,null,0,null,null,null,null,null,null,null,null,null,null,null,null,null,null,null,null,null,null,null,null,null,null,null,null,null,null,null,null,null,null,null,null,null,null,null,null,null,null,null,null,null,null,null,null,null,null,null,null,null,null,null,null,null,null,null,null,null,null,null,null,null,null,null,null,null,null,null,0,{"$f":"IF($A11=0,\" \",VLOOKUP($A11,Salaries!$B$5:$G$104,6))","v":" "},"",0,0]
[null,0,null,null,null,null,null,null,null,null,null,null,null,null,null,null,null,null,null,null,null,null,null,null,null,null,null,null,null,null,null,null,null,0,null,null,null,null,null,null,null,null,null,null,null,null,null,null,null,null,null,null,null,null,null,null,null,null,null,null,null,null,null,null,null,null,null,null,null,null,null,null,null,null,null,null,null,null,null,null,null,null,null,null,null,null,null,null,null,null,null,null,null,null,null,null,null,null,null,null,null,0,{"$f":"IF($A12=0,\" \",VLOOKUP($A12,Salaries!$B$5:$G$104,6))","v":" "},"",0,0]
[null,0,null,null,null,null,null,null,null,null,null,null,null,null,null,null,null,null,null,null,null,null,null,null,null,null,null,null,null,null,null,null,null,0,null,null,null,null,null,null,null,null,null,null,null,null,null,null,null,null,null,null,null,null,null,null,null,null,null,null,null,null,null,null,null,null,null,null,null,null,null,null,null,null,null,null,null,null,null,null,null,null,null,null,null,null,null,null,null,null,null,null,null,null,null,null,null,null,null,null,null,0,{"$f":"IF($A13=0,\" \",VLOOKUP($A13,Salaries!$B$5:$G$104,6))","v":" "},"",0,0]
[null,0,null,null,null,null,null,null,null,null,null,null,null,null,null,null,null,null,null,null,null,null,null,null,null,null,null,null,null,null,null,null,null,0,null,null,null,null,null,null,null,null,null,null,null,null,null,null,null,null,null,null,null,null,null,null,null,null,null,null,null,null,null,null,null,null,null,null,null,null,null,null,null,null,null,null,null,null,null,null,null,null,null,null,null,null,null,null,null,null,null,null,null,null,null,null,null,null,null,null,null,0,{"$f":"IF($A14=0,\" \",VLOOKUP($A14,Salaries!$B$5:$G$104,6))","v":" "},"",0,0]
[null,0,null,null,null,null,null,null,null,null,null,null,null,null,null,null,null,null,null,null,null,null,null,null,null,null,null,null,null,null,null,null,null,0,null,null,null,null,null,null,null,null,null,null,null,null,null,null,null,null,null,null,null,null,null,null,null,null,null,null,null,null,null,null,null,null,null,null,null,null,null,null,null,null,null,null,null,null,null,null,null,null,null,null,null,null,null,null,null,null,null,null,null,null,null,null,null,null,null,null,null,0,{"$f":"IF($A15=0,\" \",VLOOKUP($A15,Salaries!$B$5:$G$104,6))","v":" "},"",0,0]
[null,0,null,null,null,null,null,null,null,null,null,null,null,null,null,null,null,null,null,null,null,null,null,null,null,null,null,null,null,null,null,null,null,0,null,null,null,null,null,null,null,null,null,null,null,null,null,null,null,null,null,null,null,null,null,null,null,null,null,null,null,null,null,null,null,null,null,null,null,null,null,null,null,null,null,null,null,null,null,null,null,null,null,null,null,null,null,null,null,null,null,null,null,null,null,null,null,null,null,null,null,0,{"$f":"IF($A16=0,\" \",VLOOKUP($A16,Salaries!$B$5:$G$104,6))","v":" "},"",0,0]
[null,0,null,null,null,null,null,null,null,null,null,null,null,null,null,null,null,null,null,null,null,null,null,null,null,null,null,null,null,null,null,null,null,0,null,null,null,null,null,null,null,null,null,null,null,null,null,null,null,null,null,null,null,null,null,null,null,null,null,null,null,null,null,null,null,null,null,null,null,null,null,null,null,null,null,null,null,null,null,null,null,null,null,null,null,null,null,null,null,null,null,null,null,null,null,null,null,null,null,null,null,0,{"$f":"IF($A17=0,\" \",VLOOKUP($A17,Salaries!$B$5:$G$104,6))","v":" "},"",0,0]
[null,0,null,null,null,null,null,null,null,null,null,null,null,null,null,null,null,null,null,null,null,null,null,null,null,null,null,null,null,null,null,null,null,0,null,null,null,null,null,null,null,null,null,null,null,null,null,null,null,null,null,null,null,null,null,null,null,null,null,null,null,null,null,null,null,null,null,null,null,null,null,null,null,null,null,null,null,null,null,null,null,null,null,null,null,null,null,null,null,null,null,null,null,null,null,null,null,null,null,null,null,0,{"$f":"IF($A18=0,\" \",VLOOKUP($A18,Salaries!$B$5:$G$104,6))","v":" "},"",0,0]
[null,0,null,null,null,null,null,null,null,null,null,null,null,null,null,null,null,null,null,null,null,null,null,null,null,null,null,null,null,null,null,null,null,0,null,null,null,null,null,null,null,null,null,null,null,null,null,null,null,null,null,null,null,null,null,null,null,null,null,null,null,null,null,null,null,null,null,null,null,null,null,null,null,null,null,null,null,null,null,null,null,null,null,null,null,null,null,null,null,null,null,null,null,null,null,null,null,null,null,null,null,0,{"$f":"IF($A19=0,\" \",VLOOKUP($A19,Salaries!$B$5:$G$104,6))","v":" "},"",0,0]
[null,0,null,null,null,null,null,null,null,null,null,null,null,null,null,null,null,null,null,null,null,null,null,null,null,null,null,null,null,null,null,null,null,0,null,null,null,null,null,null,null,null,null,null,null,null,null,null,null,null,null,null,null,null,null,null,null,null,null,null,null,null,null,null,null,null,null,null,null,null,null,null,null,null,null,null,null,null,null,null,null,null,null,null,null,null,null,null,null,null,null,null,null,null,null,null,null,null,null,null,null,0,{"$f":"IF($A20=0,\" \",VLOOKUP($A20,Salaries!$B$5:$G$104,6))","v":" "},"",0,0]
[null,{"$f":"COUNTA(C21:AG21)-CX21-DA21","v":0},null,null,null,null,null,null,null,null,null,null,null,null,null,null,null,null,null,null,null,null,null,null,null,null,null,null,null,null,null,null,null,{"$f":"B21*8","v":0},null,null,null,null,null,null,null,null,null,null,null,null,null,null,null,null,null,null,null,null,null,null,null,null,null,null,null,null,null,null,null,null,null,null,null,null,null,null,null,null,null,null,null,null,null,null,null,null,null,null,null,null,null,null,null,null,null,null,null,null,null,null,null,null,null,null,null,{"$f":"COUNTIF(C21:AG21,\"CP\")","v":0},{"$f":"IF($A21=0,\" \",VLOOKUP($A21,Salaries!$B$5:$G$104,6))","v":" "},{"$f":"IFERROR(CY21/8,\"\")","v":""},{"$f":"COUNTIF(C21:AG21,\"MAL\")+COUNTIF(C21:AG21,\"AT\")","v":0},1]
[null,0,null,null,null,null,null,null,null,null,null,null,null,null,null,null,null,null,null,null,null,null,null,null,null,null,null,null,null,null,null,null,null,0,null,null,null,null,null,null,null,null,null,null,null,null,null,null,null,null,null,null,null,null,null,null,null,null,null,null,null,null,null,null,null,null,null,null,null,null,null,null,null,null,null,null,null,null,null,null,null,null,null,null,null,null,null,null,null,null,null,null,null,null,null,null,null,null,null,null,null,0,{"$f":"IF($A22=0,\" \",VLOOKUP($A22,Salaries!$B$5:$G$104,6))","v":" "},"",0,2]
[null,0,null,null,null,null,null,null,null,null,null,null,null,null,null,null,null,null,null,null,null,null,null,null,null,null,null,null,null,null,null,null,null,0,null,null,null,null,null,null,null,null,null,null,null,null,null,null,null,null,null,null,null,null,null,null,null,null,null,null,null,null,null,null,null,null,null,null,null,null,null,null,null,null,null,null,null,null,null,null,null,null,null,null,null,null,null,null,null,null,null,null,null,null,null,null,null,null,null,null,null,0,{"$f":"IF($A23=0,\" \",VLOOKUP($A23,Salaries!$B$5:$G$104,6))","v":" "},"",0,3]
[null,0,null,null,null,null,null,null,null,null,null,null,null,null,null,null,null,null,null,null,null,null,null,null,null,null,null,null,null,null,null,null,null,0,null,null,null,null,null,null,null,null,null,null,null,null,null,null,null,null,null,null,null,null,null,null,null,null,null,null,null,null,null,null,null,null,null,null,null,null,null,null,null,null,null,null,null,null,null,null,null,null,null,null,null,null,null,null,null,null,null,null,null,null,null,null,null,null,null,null,null,0,{"$f":"IF($A24=0,\" \",VLOOKUP($A24,Salaries!$B$5:$G$104,6))","v":" "},"",0,4]
[null,0,null,null,null,null,null,null,null,null,null,null,null,null,null,null,null,null,null,null,null,null,null,null,null,null,null,null,null,null,null,null,null,0,null,null,null,null,null,null,null,null,null,null,null,null,null,null,null,null,null,null,null,null,null,null,null,null,null,null,null,null,null,null,null,null,null,null,null,null,null,null,null,null,null,null,null,null,null,null,null,null,null,null,null,null,null,null,null,null,null,null,null,null,null,null,null,null,null,null,null,0,{"$f":"IF($A25=0,\" \",VLOOKUP($A25,Salaries!$B$5:$G$104,6))","v":" "},"",0,5]
[null,0,null,null,null,null,null,null,null,null,null,null,null,null,null,null,null,null,null,null,null,null,null,null,null,null,null,null,null,null,null,null,null,0,null,null,null,null,null,null,null,null,null,null,null,null,null,null,null,null,null,null,null,null,null,null,null,null,null,null,null,null,null,null,null,null,null,null,null,null,null,null,null,null,null,null,null,null,null,null,null,null,null,null,null,null,null,null,null,null,null,null,null,null,null,null,null,null,null,null,null,0,{"$f":"IF($A26=0,\" \",VLOOKUP($A26,Salaries!$B$5:$G$104,6))","v":" "},"",0,6]
[null,0,null,null,null,null,null,null,null,null,null,null,null,null,null,null,null,null,null,null,null,null,null,null,null,null,null,null,null,null,null,null,null,0,null,null,null,null,null,null,null,null,null,null,null,null,null,null,null,null,null,null,null,null,null,null,null,null,null,null,null,null,null,null,null,null,null,null,null,null,null,null,null,null,null,null,null,null,null,null,null,null,null,null,null,null,null,null,null,null,null,null,null,null,null,null,null,null,null,null,null,0,{"$f":"IF($A27=0,\" \",VLOOKUP($A27,Salaries!$B$5:$G$104,6))","v":" "},"",0,7]
[null,0,null,null,null,null,null,null,null,null,null,null,null,null,null,null,null,null,null,null,null,null,null,null,null,null,null,null,null,null,null,null,null,0,null,null,null,null,null,null,null,null,null,null,null,null,null,null,null,null,null,null,null,null,null,null,null,null,null,null,null,null,null,null,null,null,null,null,null,null,null,null,null,null,null,null,null,null,null,null,null,null,null,null,null,null,null,null,null,null,null,null,null,null,null,null,null,null,null,null,null,0,{"$f":"IF($A28=0,\" \",VLOOKUP($A28,Salaries!$B$5:$G$104,6))","v":" "},"",0,8]
[null,0,null,null,null,null,null,null,null,null,null,null,null,null,null,null,null,null,null,null,null,null,null,null,null,null,null,null,null,null,null,null,null,0,null,null,null,null,null,null,null,null,null,null,null,null,null,null,null,null,null,null,null,null,null,null,null,null,null,null,null,null,null,null,null,null,null,null,null,null,null,null,null,null,null,null,null,null,null,null,null,null,null,null,null,null,null,null,null,null,null,null,null,null,null,null,null,null,null,null,null,0,{"$f":"IF($A29=0,\" \",VLOOKUP($A29,Salaries!$B$5:$G$104,6))","v":" "},"",0,9]
[null,0,null,null,null,null,null,null,null,null,null,null,null,null,null,null,null,null,null,null,null,null,null,null,null,null,null,null,null,null,null,null,null,0,null,null,null,null,null,null,null,null,null,null,null,null,null,null,null,null,null,null,null,null,null,null,null,null,null,null,null,null,null,null,null,null,null,null,null,null,null,null,null,null,null,null,null,null,null,null,null,null,null,null,null,null,null,null,null,null,null,null,null,null,null,null,null,null,null,null,null,0,{"$f":"IF($A30=0,\" \",VLOOKUP($A30,Salaries!$B$5:$G$104,6))","v":" "},"",0,10]
[null,0,null,null,null,null,null,null,null,null,null,null,null,null,null,null,null,null,null,null,null,null,null,null,null,null,null,null,null,null,null,null,null,0,null,null,null,null,null,null,null,null,null,null,null,null,null,null,null,null,null,null,null,null,null,null,null,null,null,null,null,null,null,null,null,null,null,null,null,null,null,null,null,null,null,null,null,null,null,null,null,null,null,null,null,null,null,null,null,null,null,null,null,null,null,null,null,null,null,null,null,0,{"$f":"IF($A31=0,\" \",VLOOKUP($A31,Salaries!$B$5:$G$104,6))","v":" "},"",0,11]
[null,0,null,null,null,null,null,null,null,null,null,null,null,null,null,null,null,null,null,null,null,null,null,null,null,null,null,null,null,null,null,null,null,0,null,null,null,null,null,null,null,null,null,null,null,null,null,null,null,null,null,null,null,null,null,null,null,null,null,null,null,null,null,null,null,null,null,null,null,null,null,null,null,null,null,null,null,null,null,null,null,null,null,null,null,null,null,null,null,null,null,null,null,null,null,null,null,null,null,null,null,0,{"$f":"IF($A32=0,\" \",VLOOKUP($A32,Salaries!$B$5:$G$104,6))","v":" "},"",0,12]
[null,0,null,null,null,null,null,null,null,null,null,null,null,null,null,null,null,null,null,null,null,null,null,null,null,null,null,null,null,null,null,null,null,0,null,null,null,null,null,null,null,null,null,null,null,null,null,null,null,null,null,null,null,null,null,null,null,null,null,null,null,null,null,null,null,null,null,null,null,null,null,null,null,null,null,null,null,null,null,null,null,null,null,null,null,null,null,null,null,null,null,null,null,null,null,null,null,null,null,null,null,0,{"$f":"IF($A33=0,\" \",VLOOKUP($A33,Salaries!$B$5:$G$104,6))","v":" "},"",0,13]
[null,0,null,null,null,null,null,null,null,null,null,null,null,null,null,null,null,null,null,null,null,null,null,null,null,null,null,null,null,null,null,null,null,0,null,null,null,null,null,null,null,null,null,null,null,null,null,null,null,null,null,null,null,null,null,null,null,null,null,null,null,null,null,null,null,null,null,null,null,null,null,null,null,null,null,null,null,null,null,null,null,null,null,null,null,null,null,null,null,null,null,null,null,null,null,null,null,null,null,null,null,0,{"$f":"IF($A34=0,\" \",VLOOKUP($A34,Salaries!$B$5:$G$104,6))","v":" "},"",0,14]
[null,0,null,null,null,null,null,null,null,null,null,null,null,null,null,null,null,null,null,null,null,null,null,null,null,null,null,null,null,null,null,null,null,0,null,null,null,null,null,null,null,null,null,null,null,null,null,null,null,null,null,null,null,null,null,null,null,null,null,null,null,null,null,null,null,null,null,null,null,null,null,null,null,null,null,null,null,null,null,null,null,null,null,null,null,null,null,null,null,null,null,null,null,null,null,null,null,null,null,null,null,0,{"$f":"IF($A35=0,\" \",VLOOKUP($A35,Salaries!$B$5:$G$104,6))","v":" "},"",0,15]
[null,0,null,null,null,null,null,null,null,null,null,null,null,null,null,null,null,null,null,null,null,null,null,null,null,null,null,null,null,null,null,null,null,0,null,null,null,null,null,null,null,null,null,null,null,null,null,null,null,null,null,null,null,null,null,null,null,null,null,null,null,null,null,null,null,null,null,null,null,null,null,null,null,null,null,null,null,null,null,null,null,null,null,null,null,null,null,null,null,null,null,null,null,null,null,null,null,null,null,null,null,0,{"$f":"IF($A36=0,\" \",VLOOKUP($A36,Salaries!$B$5:$G$104,6))","v":" "},"",0,16]
[null,0,null,null,null,null,null,null,null,null,null,null,null,null,null,null,null,null,null,null,null,null,null,null,null,null,null,null,null,null,null,null,null,0,null,null,null,null,null,null,null,null,null,null,null,null,null,null,null,null,null,null,null,null,null,null,null,null,null,null,null,null,null,null,null,null,null,null,null,null,null,null,null,null,null,null,null,null,null,null,null,null,null,null,null,null,null,null,null,null,null,null,null,null,null,null,null,null,null,null,null,0,{"$f":"IF($A37=0,\" \",VLOOKUP($A37,Salaries!$B$5:$G$104,6))","v":" "},"",0,17]
[null,0,null,null,null,null,null,null,null,null,null,null,null,null,null,null,null,null,null,null,null,null,null,null,null,null,null,null,null,null,null,null,null,0,null,null,null,null,null,null,null,null,null,null,null,null,null,null,null,null,null,null,null,null,null,null,null,null,null,null,null,null,null,null,null,null,null,null,null,null,null,null,null,null,null,null,null,null,null,null,null,null,null,null,null,null,null,null,null,null,null,null,null,null,null,null,null,null,null,null,null,0,{"$f":"IF($A38=0,\" \",VLOOKUP($A38,Salaries!$B$5:$G$104,6))","v":" "},"",0,18]
[null,0,null,null,null,null,null,null,null,null,null,null,null,null,null,null,null,null,null,null,null,null,null,null,null,null,null,null,null,null,null,null,null,0,null,null,null,null,null,null,null,null,null,null,null,null,null,null,null,null,null,null,null,null,null,null,null,null,null,null,null,null,null,null,null,null,null,null,null,null,null,null,null,null,null,null,null,null,null,null,null,null,null,null,null,null,null,null,null,null,null,null,null,null,null,null,null,null,null,null,null,0,{"$f":"IF($A39=0,\" \",VLOOKUP($A39,Salaries!$B$5:$G$104,6))","v":" "},"",0,19]
[null,0,null,null,null,null,null,null,null,null,null,null,null,null,null,null,null,null,null,null,null,null,null,null,null,null,null,null,null,null,null,null,null,0,null,null,null,null,null,null,null,null,null,null,null,null,null,null,null,null,null,null,null,null,null,null,null,null,null,null,null,null,null,null,null,null,null,null,null,null,null,null,null,null,null,null,null,null,null,null,null,null,null,null,null,null,null,null,null,null,null,null,null,null,null,null,null,null,null,null,null,0,{"$f":"IF($A40=0,\" \",VLOOKUP($A40,Salaries!$B$5:$G$104,6))","v":" "},"",0,20]
[null,0,null,null,null,null,null,null,null,null,null,null,null,null,null,null,null,null,null,null,null,null,null,null,null,null,null,null,null,null,null,null,null,0,null,null,null,null,null,null,null,null,null,null,null,null,null,null,null,null,null,null,null,null,null,null,null,null,null,null,null,null,null,null,null,null,null,null,null,null,null,null,null,null,null,null,null,null,null,null,null,null,null,null,null,null,null,null,null,null,null,null,null,null,null,null,null,null,null,null,null,0,{"$f":"IF($A41=0,\" \",VLOOKUP($A41,Salaries!$B$5:$G$104,6))","v":" "},"",0,21]
[null,0,null,null,null,null,null,null,null,null,null,null,null,null,null,null,null,null,null,null,null,null,null,null,null,null,null,null,null,null,null,null,null,0,null,null,null,null,null,null,null,null,null,null,null,null,null,null,null,null,null,null,null,null,null,null,null,null,null,null,null,null,null,null,null,null,null,null,null,null,null,null,null,null,null,null,null,null,null,null,null,null,null,null,null,null,null,null,null,null,null,null,null,null,null,null,null,null,null,null,null,0,{"$f":"IF($A42=0,\" \",VLOOKUP($A42,Salaries!$B$5:$G$104,6))","v":" "},"",0,22]
[null,0,null,null,null,null,null,null,null,null,null,null,null,null,null,null,null,null,null,null,null,null,null,null,null,null,null,null,null,null,null,null,null,0,null,null,null,null,null,null,null,null,null,null,null,null,null,null,null,null,null,null,null,null,null,null,null,null,null,null,null,null,null,null,null,null,null,null,null,null,null,null,null,null,null,null,null,null,null,null,null,null,null,null,null,null,null,null,null,null,null,null,null,null,null,null,null,null,null,null,null,0,{"$f":"IF($A43=0,\" \",VLOOKUP($A43,Salaries!$B$5:$G$104,6))","v":" "},"",0,23]
[null,0,null,null,null,null,null,null,null,null,null,null,null,null,null,null,null,null,null,null,null,null,null,null,null,null,null,null,null,null,null,null,null,0,null,null,null,null,null,null,null,null,null,null,null,null,null,null,null,null,null,null,null,null,null,null,null,null,null,null,null,null,null,null,null,null,null,null,null,null,null,null,null,null,null,null,null,null,null,null,null,null,null,null,null,null,null,null,null,null,null,null,null,null,null,null,null,null,null,null,null,0,{"$f":"IF($A44=0,\" \",VLOOKUP($A44,Salaries!$B$5:$G$104,6))","v":" "},"",0,24]
[null,0,null,null,null,null,null,null,null,null,null,null,null,null,null,null,null,null,null,null,null,null,null,null,null,null,null,null,null,null,null,null,null,0,null,null,null,null,null,null,null,null,null,null,null,null,null,null,null,null,null,null,null,null,null,null,null,null,null,null,null,null,null,null,null,null,null,null,null,null,null,null,null,null,null,null,null,null,null,null,null,null,null,null,null,null,null,null,null,null,null,null,null,null,null,null,null,null,null,null,null,0,{"$f":"IF($A45=0,\" \",VLOOKUP($A45,Salaries!$B$5:$G$104,6))","v":" "},"",0,25]
[null,0,null,null,null,null,null,null,null,null,null,null,null,null,null,null,null,null,null,null,null,null,null,null,null,null,null,null,null,null,null,null,null,0,null,null,null,null,null,null,null,null,null,null,null,null,null,null,null,null,null,null,null,null,null,null,null,null,null,null,null,null,null,null,null,null,null,null,null,null,null,null,null,null,null,null,null,null,null,null,null,null,null,null,null,null,null,null,null,null,null,null,null,null,null,null,null,null,null,null,null,0,{"$f":"IF($A46=0,\" \",VLOOKUP($A46,Salaries!$B$5:$G$104,6))","v":" "},"",0,26]
[null,0,null,null,null,null,null,null,null,null,null,null,null,null,null,null,null,null,null,null,null,null,null,null,null,null,null,null,null,null,null,null,null,0,null,null,null,null,null,null,null,null,null,null,null,null,null,null,null,null,null,null,null,null,null,null,null,null,null,null,null,null,null,null,null,null,null,null,null,null,null,null,null,null,null,null,null,null,null,null,null,null,null,null,null,null,null,null,null,null,null,null,null,null,null,null,null,null,null,null,null,0,{"$f":"IF($A47=0,\" \",VLOOKUP($A47,Salaries!$B$5:$G$104,6))","v":" "},"",0,27]
[null,0,null,null,null,null,null,null,null,null,null,null,null,null,null,null,null,null,null,null,null,null,null,null,null,null,null,null,null,null,null,null,null,0,null,null,null,null,null,null,null,null,null,null,null,null,null,null,null,null,null,null,null,null,null,null,null,null,null,null,null,null,null,null,null,null,null,null,null,null,null,null,null,null,null,null,null,null,null,null,null,null,null,null,null,null,null,null,null,null,null,null,null,null,null,null,null,null,null,null,null,0,{"$f":"IF($A48=0,\" \",VLOOKUP($A48,Salaries!$B$5:$G$104,6))","v":" "},"",0,28]
[null,0,null,null,null,null,null,null,null,null,null,null,null,null,null,null,null,null,null,null,null,null,null,null,null,null,null,null,null,null,null,null,null,0,null,null,null,null,null,null,null,null,null,null,null,null,null,null,null,null,null,null,null,null,null,null,null,null,null,null,null,null,null,null,null,null,null,null,null,null,null,null,null,null,null,null,null,null,null,null,null,null,null,null,null,null,null,null,null,null,null,null,null,null,null,null,null,null,null,null,null,0,{"$f":"IF($A49=0,\" \",VLOOKUP($A49,Salaries!$B$5:$G$104,6))","v":" "},"",0,29]
[null,0,null,null,null,null,null,null,null,null,null,null,null,null,null,null,null,null,null,null,null,null,null,null,null,null,null,null,null,null,null,null,null,0,null,null,null,null,null,null,null,null,null,null,null,null,null,null,null,null,null,null,null,null,null,null,null,null,null,null,null,null,null,null,null,null,null,null,null,null,null,null,null,null,null,null,null,null,null,null,null,null,null,null,null,null,null,null,null,null,null,null,null,null,null,null,null,null,null,null,null,0,{"$f":"IF($A50=0,\" \",VLOOKUP($A50,Salaries!$B$5:$G$104,6))","v":" "},"",0,30]
[null,0,null,null,null,null,null,null,null,null,null,null,null,null,null,null,null,null,null,null,null,null,null,null,null,null,null,null,null,null,null,null,null,0,null,null,null,null,null,null,null,null,null,null,null,null,null,null,null,null,null,null,null,null,null,null,null,null,null,null,null,null,null,null,null,null,null,null,null,null,null,null,null,null,null,null,null,null,null,null,null,null,null,null,null,null,null,null,null,null,null,null,null,null,null,null,null,null,null,null,null,0,{"$f":"IF($A51=0,\" \",VLOOKUP($A51,Salaries!$B$5:$G$104,6))","v":" "},"",0,31]
[null,0,null,null,null,null,null,null,null,null,null,null,null,null,null,null,null,null,null,null,null,null,null,null,null,null,null,null,null,null,null,null,null,0,null,null,null,null,null,null,null,null,null,null,null,null,null,null,null,null,null,null,null,null,null,null,null,null,null,null,null,null,null,null,null,null,null,null,null,null,null,null,null,null,null,null,null,null,null,null,null,null,null,null,null,null,null,null,null,null,null,null,null,null,null,null,null,null,null,null,null,0,{"$f":"IF($A52=0,\" \",VLOOKUP($A52,Salaries!$B$5:$G$104,6))","v":" "},"",0,32]
[null,0,null,null,null,null,null,null,null,null,null,null,null,null,null,null,null,null,null,null,null,null,null,null,null,null,null,null,null,null,null,null,null,0,null,null,null,null,null,null,null,null,null,null,null,null,null,null,null,null,null,null,null,null,null,null,null,null,null,null,null,null,null,null,null,null,null,null,null,null,null,null,null,null,null,null,null,null,null,null,null,null,null,null,null,null,null,null,null,null,null,null,null,null,null,null,null,null,null,null,null,0,{"$f":"IF($A53=0,\" \",VLOOKUP($A53,Salaries!$B$5:$G$104,6))","v":" "},"",0,33]
[null,0,null,null,null,null,null,null,null,null,null,null,null,null,null,null,null,null,null,null,null,null,null,null,null,null,null,null,null,null,null,null,null,0,null,null,null,null,null,null,null,null,null,null,null,null,null,null,null,null,null,null,null,null,null,null,null,null,null,null,null,null,null,null,null,null,null,null,null,null,null,null,null,null,null,null,null,null,null,null,null,null,null,null,null,null,null,null,null,null,null,null,null,null,null,null,null,null,null,null,null,0,{"$f":"IF($A54=0,\" \",VLOOKUP($A54,Salaries!$B$5:$G$104,6))","v":" "},"",0,34]
[null,0,null,null,null,null,null,null,null,null,null,null,null,null,null,null,null,null,null,null,null,null,null,null,null,null,null,null,null,null,null,null,null,0,null,null,null,null,null,null,null,null,null,null,null,null,null,null,null,null,null,null,null,null,null,null,null,null,null,null,null,null,null,null,null,null,null,null,null,null,null,null,null,null,null,null,null,null,null,null,null,null,null,null,null,null,null,null,null,null,null,null,null,null,null,null,null,null,null,null,null,0,{"$f":"IF($A55=0,\" \",VLOOKUP($A55,Salaries!$B$5:$G$104,6))","v":" "},"",0,35]
[null,0,null,null,null,null,null,null,null,null,null,null,null,null,null,null,null,null,null,null,null,null,null,null,null,null,null,null,null,null,null,null,null,0,null,null,null,null,null,null,null,null,null,null,null,null,null,null,null,null,null,null,null,null,null,null,null,null,null,null,null,null,null,null,null,null,null,null,null,null,null,null,null,null,null,null,null,null,null,null,null,null,null,null,null,null,null,null,null,null,null,null,null,null,null,null,null,null,null,null,null,0,{"$f":"IF($A56=0,\" \",VLOOKUP($A56,Salaries!$B$5:$G$104,6))","v":" "},"",0,36]
[null,0,null,null,null,null,null,null,null,null,null,null,null,null,null,null,null,null,null,null,null,null,null,null,null,null,null,null,null,null,null,null,null,0,null,null,null,null,null,null,null,null,null,null,null,null,null,null,null,null,null,null,null,null,null,null,null,null,null,null,null,null,null,null,null,null,null,null,null,null,null,null,null,null,null,null,null,null,null,null,null,null,null,null,null,null,null,null,null,null,null,null,null,null,null,null,null,null,null,null,null,0,{"$f":"IF($A57=0,\" \",VLOOKUP($A57,Salaries!$B$5:$G$104,6))","v":" "},"",0,37]
[null,0,null,null,null,null,null,null,null,null,null,null,null,null,null,null,null,null,null,null,null,null,null,null,null,null,null,null,null,null,null,null,null,0,null,null,null,null,null,null,null,null,null,null,null,null,null,null,null,null,null,null,null,null,null,null,null,null,null,null,null,null,null,null,null,null,null,null,null,null,null,null,null,null,null,null,null,null,null,null,null,null,null,null,null,null,null,null,null,null,null,null,null,null,null,null,null,null,null,null,null,0,{"$f":"IF($A58=0,\" \",VLOOKUP($A58,Salaries!$B$5:$G$104,6))","v":" "},"",0,38]
[null,0,null,null,null,null,null,null,null,null,null,null,null,null,null,null,null,null,null,null,null,null,null,null,null,null,null,null,null,null,null,null,null,0,null,null,null,null,null,null,null,null,null,null,null,null,null,null,null,null,null,null,null,null,null,null,null,null,null,null,null,null,null,null,null,null,null,null,null,null,null,null,null,null,null,null,null,null,null,null,null,null,null,null,null,null,null,null,null,null,null,null,null,null,null,null,null,null,null,null,null,0,{"$f":"IF($A59=0,\" \",VLOOKUP($A59,Salaries!$B$5:$G$104,6))","v":" "},"",0,39]
[null,0,null,null,null,null,null,null,null,null,null,null,null,null,null,null,null,null,null,null,null,null,null,null,null,null,null,null,null,null,null,null,null,0,null,null,null,null,null,null,null,null,null,null,null,null,null,null,null,null,null,null,null,null,null,null,null,null,null,null,null,null,null,null,null,null,null,null,null,null,null,null,null,null,null,null,null,null,null,null,null,null,null,null,null,null,null,null,null,null,null,null,null,null,null,null,null,null,null,null,null,0,{"$f":"IF($A60=0,\" \",VLOOKUP($A60,Salaries!$B$5:$G$104,6))","v":" "},"",0,40]
[null,0,null,null,null,null,null,null,null,null,null,null,null,null,null,null,null,null,null,null,null,null,null,null,null,null,null,null,null,null,null,null,null,0,null,null,null,null,null,null,null,null,null,null,null,null,null,null,null,null,null,null,null,null,null,null,null,null,null,null,null,null,null,null,null,null,null,null,null,null,null,null,null,null,null,null,null,null,null,null,null,null,null,null,null,null,null,null,null,null,null,null,null,null,null,null,null,null,null,null,null,0,{"$f":"IF($A61=0,\" \",VLOOKUP($A61,Salaries!$B$5:$G$104,6))","v":" "},"",0,41]
[null,0,null,null,null,null,null,null,null,null,null,null,null,null,null,null,null,null,null,null,null,null,null,null,null,null,null,null,null,null,null,null,null,0,null,null,null,null,null,null,null,null,null,null,null,null,null,null,null,null,null,null,null,null,null,null,null,null,null,null,null,null,null,null,null,null,null,null,null,null,null,null,null,null,null,null,null,null,null,null,null,null,null,null,null,null,null,null,null,null,null,null,null,null,null,null,null,null,null,null,null,0,{"$f":"IF($A62=0,\" \",VLOOKUP($A62,Salaries!$B$5:$G$104,6))","v":" "},"",0,42]
[null,0,null,null,null,null,null,null,null,null,null,null,null,null,null,null,null,null,null,null,null,null,null,null,null,null,null,null,null,null,null,null,null,0,null,null,null,null,null,null,null,null,null,null,null,null,null,null,null,null,null,null,null,null,null,null,null,null,null,null,null,null,null,null,null,null,null,null,null,null,null,null,null,null,null,null,null,null,null,null,null,null,null,null,null,null,null,null,null,null,null,null,null,null,null,null,null,null,null,null,null,0,{"$f":"IF($A63=0,\" \",VLOOKUP($A63,Salaries!$B$5:$G$104,6))","v":" "},"",0,43]
[null,0,null,null,null,null,null,null,null,null,null,null,null,null,null,null,null,null,null,null,null,null,null,null,null,null,null,null,null,null,null,null,null,0,null,null,null,null,null,null,null,null,null,null,null,null,null,null,null,null,null,null,null,null,null,null,null,null,null,null,null,null,null,null,null,null,null,null,null,null,null,null,null,null,null,null,null,null,null,null,null,null,null,null,null,null,null,null,null,null,null,null,null,null,null,null,null,null,null,null,null,0,{"$f":"IF($A64=0,\" \",VLOOKUP($A64,Salaries!$B$5:$G$104,6))","v":" "},"",0,44]
[null,0,null,null,null,null,null,null,null,null,null,null,null,null,null,null,null,null,null,null,null,null,null,null,null,null,null,null,null,null,null,null,null,0,null,null,null,null,null,null,null,null,null,null,null,null,null,null,null,null,null,null,null,null,null,null,null,null,null,null,null,null,null,null,null,null,null,null,null,null,null,null,null,null,null,null,null,null,null,null,null,null,null,null,null,null,null,null,null,null,null,null,null,null,null,null,null,null,null,null,null,0,{"$f":"IF($A65=0,\" \",VLOOKUP($A65,Salaries!$B$5:$G$104,6))","v":" "},"",0,45]
[null,0,null,null,null,null,null,null,null,null,null,null,null,null,null,null,null,null,null,null,null,null,null,null,null,null,null,null,null,null,null,null,null,0,null,null,null,null,null,null,null,null,null,null,null,null,null,null,null,null,null,null,null,null,null,null,null,null,null,null,null,null,null,null,null,null,null,null,null,null,null,null,null,null,null,null,null,null,null,null,null,null,null,null,null,null,null,null,null,null,null,null,null,null,null,null,null,null,null,null,null,0,{"$f":"IF($A66=0,\" \",VLOOKUP($A66,Salaries!$B$5:$G$104,6))","v":" "},"",0,46]
[null,0,null,null,null,null,null,null,null,null,null,null,null,null,null,null,null,null,null,null,null,null,null,null,null,null,null,null,null,null,null,null,null,0,null,null,null,null,null,null,null,null,null,null,null,null,null,null,null,null,null,null,null,null,null,null,null,null,null,null,null,null,null,null,null,null,null,null,null,null,null,null,null,null,null,null,null,null,null,null,null,null,null,null,null,null,null,null,null,null,null,null,null,null,null,null,null,null,null,null,null,0,{"$f":"IF($A67=0,\" \",VLOOKUP($A67,Salaries!$B$5:$G$104,6))","v":" "},"",0,47]
[null,0,null,null,null,null,null,null,null,null,null,null,null,null,null,null,null,null,null,null,null,null,null,null,null,null,null,null,null,null,null,null,null,0,null,null,null,null,null,null,null,null,null,null,null,null,null,null,null,null,null,null,null,null,null,null,null,null,null,null,null,null,null,null,null,null,null,null,null,null,null,null,null,null,null,null,null,null,null,null,null,null,null,null,null,null,null,null,null,null,null,null,null,null,null,null,null,null,null,null,null,0,{"$f":"IF($A68=0,\" \",VLOOKUP($A68,Salaries!$B$5:$G$104,6))","v":" "},"",0,48]
[null,0,null,null,null,null,null,null,null,null,null,null,null,null,null,null,null,null,null,null,null,null,null,null,null,null,null,null,null,null,null,null,null,0,null,null,null,null,null,null,null,null,null,null,null,null,null,null,null,null,null,null,null,null,null,null,null,null,null,null,null,null,null,null,null,null,null,null,null,null,null,null,null,null,null,null,null,null,null,null,null,null,null,null,null,null,null,null,null,null,null,null,null,null,null,null,null,null,null,null,null,0,{"$f":"IF($A69=0,\" \",VLOOKUP($A69,Salaries!$B$5:$G$104,6))","v":" "},"",0,49]
[null,0,null,null,null,null,null,null,null,null,null,null,null,null,null,null,null,null,null,null,null,null,null,null,null,null,null,null,null,null,null,null,null,0,null,null,null,null,null,null,null,null,null,null,null,null,null,null,null,null,null,null,null,null,null,null,null,null,null,null,null,null,null,null,null,null,null,null,null,null,null,null,null,null,null,null,null,null,null,null,null,null,null,null,null,null,null,null,null,null,null,null,null,null,null,null,null,null,null,null,null,0,{"$f":"IF($A70=0,\" \",VLOOKUP($A70,Salaries!$B$5:$G$104,6))","v":" "},"",0,50]
[null,0,null,null,null,null,null,null,null,null,null,null,null,null,null,null,null,null,null,null,null,null,null,null,null,null,null,null,null,null,null,null,null,0,null,null,null,null,null,null,null,null,null,null,null,null,null,null,null,null,null,null,null,null,null,null,null,null,null,null,null,null,null,null,null,null,null,null,null,null,null,null,null,null,null,null,null,null,null,null,null,null,null,null,null,null,null,null,null,null,null,null,null,null,null,null,null,null,null,null,null,0,{"$f":"IF($A71=0,\" \",VLOOKUP($A71,Salaries!$B$5:$G$104,6))","v":" "},"",0,51]
[null,0,null,null,null,null,null,null,null,null,null,null,null,null,null,null,null,null,null,null,null,null,null,null,null,null,null,null,null,null,null,null,null,0,null,null,null,null,null,null,null,null,null,null,null,null,null,null,null,null,null,null,null,null,null,null,null,null,null,null,null,null,null,null,null,null,null,null,null,null,null,null,null,null,null,null,null,null,null,null,null,null,null,null,null,null,null,null,null,null,null,null,null,null,null,null,null,null,null,null,null,0,{"$f":"IF($A72=0,\" \",VLOOKUP($A72,Salaries!$B$5:$G$104,6))","v":" "},"",0,52]
[null,0,null,null,null,null,null,null,null,null,null,null,null,null,null,null,null,null,null,null,null,null,null,null,null,null,null,null,null,null,null,null,null,0,null,null,null,null,null,null,null,null,null,null,null,null,null,null,null,null,null,null,null,null,null,null,null,null,null,null,null,null,null,null,null,null,null,null,null,null,null,null,null,null,null,null,null,null,null,null,null,null,null,null,null,null,null,null,null,null,null,null,null,null,null,null,null,null,null,null,null,0,{"$f":"IF($A73=0,\" \",VLOOKUP($A73,Salaries!$B$5:$G$104,6))","v":" "},"",0,53]
[null,0,null,null,null,null,null,null,null,null,null,null,null,null,null,null,null,null,null,null,null,null,null,null,null,null,null,null,null,null,null,null,null,0,null,null,null,null,null,null,null,null,null,null,null,null,null,null,null,null,null,null,null,null,null,null,null,null,null,null,null,null,null,null,null,null,null,null,null,null,null,null,null,null,null,null,null,null,null,null,null,null,null,null,null,null,null,null,null,null,null,null,null,null,null,null,null,null,null,null,null,0,{"$f":"IF($A74=0,\" \",VLOOKUP($A74,Salaries!$B$5:$G$104,6))","v":" "},"",0,54]
[null,0,null,null,null,null,null,null,null,null,null,null,null,null,null,null,null,null,null,null,null,null,null,null,null,null,null,null,null,null,null,null,null,0,null,null,null,null,null,null,null,null,null,null,null,null,null,null,null,null,null,null,null,null,null,null,null,null,null,null,null,null,null,null,null,null,null,null,null,null,null,null,null,null,null,null,null,null,null,null,null,null,null,null,null,null,null,null,null,null,null,null,null,null,null,null,null,null,null,null,null,0,{"$f":"IF($A75=0,\" \",VLOOKUP($A75,Salaries!$B$5:$G$104,6))","v":" "},"",0,55]
[null,0,null,null,null,null,null,null,null,null,null,null,null,null,null,null,null,null,null,null,null,null,null,null,null,null,null,null,null,null,null,null,null,0,null,null,null,null,null,null,null,null,null,null,null,null,null,null,null,null,null,null,null,null,null,null,null,null,null,null,null,null,null,null,null,null,null,null,null,null,null,null,null,null,null,null,null,null,null,null,null,null,null,null,null,null,null,null,null,null,null,null,null,null,null,null,null,null,null,null,null,0,{"$f":"IF($A76=0,\" \",VLOOKUP($A76,Salaries!$B$5:$G$104,6))","v":" "},"",0,56]
[null,0,null,null,null,null,null,null,null,null,null,null,null,null,null,null,null,null,null,null,null,null,null,null,null,null,null,null,null,null,null,null,null,0,null,null,null,null,null,null,null,null,null,null,null,null,null,null,null,null,null,null,null,null,null,null,null,null,null,null,null,null,null,null,null,null,null,null,null,null,null,null,null,null,null,null,null,null,null,null,null,null,null,null,null,null,null,null,null,null,null,null,null,null,null,null,null,null,null,null,null,0,{"$f":"IF($A77=0,\" \",VLOOKUP($A77,Salaries!$B$5:$G$104,6))","v":" "},"",0,57]
[null,0,null,null,null,null,null,null,null,null,null,null,null,null,null,null,null,null,null,null,null,null,null,null,null,null,null,null,null,null,null,null,null,0,null,null,null,null,null,null,null,null,null,null,null,null,null,null,null,null,null,null,null,null,null,null,null,null,null,null,null,null,null,null,null,null,null,null,null,null,null,null,null,null,null,null,null,null,null,null,null,null,null,null,null,null,null,null,null,null,null,null,null,null,null,null,null,null,null,null,null,0,{"$f":"IF($A78=0,\" \",VLOOKUP($A78,Salaries!$B$5:$G$104,6))","v":" "},"",0,58]
[null,0,null,null,null,null,null,null,null,null,null,null,null,null,null,null,null,null,null,null,null,null,null,null,null,null,null,null,null,null,null,null,null,0,null,null,null,null,null,null,null,null,null,null,null,null,null,null,null,null,null,null,null,null,null,null,null,null,null,null,null,null,null,null,null,null,null,null,null,null,null,null,null,null,null,null,null,null,null,null,null,null,null,null,null,null,null,null,null,null,null,null,null,null,null,null,null,null,null,null,null,0,{"$f":"IF($A79=0,\" \",VLOOKUP($A79,Salaries!$B$5:$G$104,6))","v":" "},"",0,59]
[null,0,null,null,null,null,null,null,null,null,null,null,null,null,null,null,null,null,null,null,null,null,null,null,null,null,null,null,null,null,null,null,null,0,null,null,null,null,null,null,null,null,null,null,null,null,null,null,null,null,null,null,null,null,null,null,null,null,null,null,null,null,null,null,null,null,null,null,null,null,null,null,null,null,null,null,null,null,null,null,null,null,null,null,null,null,null,null,null,null,null,null,null,null,null,null,null,null,null,null,null,0,{"$f":"IF($A80=0,\" \",VLOOKUP($A80,Salaries!$B$5:$G$104,6))","v":" "},"",0,60]
[null,0,null,null,null,null,null,null,null,null,null,null,null,null,null,null,null,null,null,null,null,null,null,null,null,null,null,null,null,null,null,null,null,0,null,null,null,null,null,null,null,null,null,null,null,null,null,null,null,null,null,null,null,null,null,null,null,null,null,null,null,null,null,null,null,null,null,null,null,null,null,null,null,null,null,null,null,null,null,null,null,null,null,null,null,null,null,null,null,null,null,null,null,null,null,null,null,null,null,null,null,0,{"$f":"IF($A81=0,\" \",VLOOKUP($A81,Salaries!$B$5:$G$104,6))","v":" "},"",0,61]
[null,0,null,null,null,null,null,null,null,null,null,null,null,null,null,null,null,null,null,null,null,null,null,null,null,null,null,null,null,null,null,null,null,0,null,null,null,null,null,null,null,null,null,null,null,null,null,null,null,null,null,null,null,null,null,null,null,null,null,null,null,null,null,null,null,null,null,null,null,null,null,null,null,null,null,null,null,null,null,null,null,null,null,null,null,null,null,null,null,null,null,null,null,null,null,null,null,null,null,null,null,0,{"$f":"IF($A82=0,\" \",VLOOKUP($A82,Salaries!$B$5:$G$104,6))","v":" "},"",0,62]
[null,0,null,null,null,null,null,null,null,null,null,null,null,null,null,null,null,null,null,null,null,null,null,null,null,null,null,null,null,null,null,null,null,0,null,null,null,null,null,null,null,null,null,null,null,null,null,null,null,null,null,null,null,null,null,null,null,null,null,null,null,null,null,null,null,null,null,null,null,null,null,null,null,null,null,null,null,null,null,null,null,null,null,null,null,null,null,null,null,null,null,null,null,null,null,null,null,null,null,null,null,0,{"$f":"IF($A83=0,\" \",VLOOKUP($A83,Salaries!$B$5:$G$104,6))","v":" "},"",0,63]
[null,0,null,null,null,null,null,null,null,null,null,null,null,null,null,null,null,null,null,null,null,null,null,null,null,null,null,null,null,null,null,null,null,0,null,null,null,null,null,null,null,null,null,null,null,null,null,null,null,null,null,null,null,null,null,null,null,null,null,null,null,null,null,null,null,null,null,null,null,null,null,null,null,null,null,null,null,null,null,null,null,null,null,null,null,null,null,null,null,null,null,null,null,null,null,null,null,null,null,null,null,0,{"$f":"IF($A84=0,\" \",VLOOKUP($A84,Salaries!$B$5:$G$104,6))","v":" "},"",0,64]
[null,{"$f":"COUNTA(C85:AG85)-CX85-DA85","v":0},null,null,null,null,null,null,null,null,null,null,null,null,null,null,null,null,null,null,null,null,null,null,null,null,null,null,null,null,null,null,null,{"$f":"B85*8","v":0},null,null,null,null,null,null,null,null,null,null,null,null,null,null,null,null,null,null,null,null,null,null,null,null,null,null,null,null,null,null,null,null,null,null,null,null,null,null,null,null,null,null,null,null,null,null,null,null,null,null,null,null,null,null,null,null,null,null,null,null,null,null,null,null,null,null,null,{"$f":"COUNTIF(C85:AG85,\"CP\")","v":0},{"$f":"IF($A85=0,\" \",VLOOKUP($A85,Salaries!$B$5:$G$104,6))","v":" "},{"$f":"IFERROR(CY85/8,\"\")","v":""},{"$f":"COUNTIF(C85:AG85,\"MAL\")+COUNTIF(C85:AG85,\"AT\")","v":0},65]
[null,0,null,null,null,null,null,null,null,null,null,null,null,null,null,null,null,null,null,null,null,null,null,null,null,null,null,null,null,null,null,null,null,0,null,null,null,null,null,null,null,null,null,null,null,null,null,null,null,null,null,null,null,null,null,null,null,null,null,null,null,null,null,null,null,null,null,null,null,null,null,null,null,null,null,null,null,null,null,null,null,null,null,null,null,null,null,null,null,null,null,null,null,null,null,null,null,null,null,null,null,0,{"$f":"IF($A86=0,\" \",VLOOKUP($A86,Salaries!$B$5:$G$104,6))","v":" "},"",0,66]
[null,0,null,null,null,null,null,null,null,null,null,null,null,null,null,null,null,null,null,null,null,null,null,null,null,null,null,null,null,null,null,null,null,0,null,null,null,null,null,null,null,null,null,null,null,null,null,null,null,null,null,null,null,null,null,null,null,null,null,null,null,null,null,null,null,null,null,null,null,null,null,null,null,null,null,null,null,null,null,null,null,null,null,null,null,null,null,null,null,null,null,null,null,null,null,null,null,null,null,null,null,0,{"$f":"IF($A87=0,\" \",VLOOKUP($A87,Salaries!$B$5:$G$104,6))","v":" "},"",0,67]
[null,0,null,null,null,null,null,null,null,null,null,null,null,null,null,null,null,null,null,null,null,null,null,null,null,null,null,null,null,null,null,null,null,0,null,null,null,null,null,null,null,null,null,null,null,null,null,null,null,null,null,null,null,null,null,null,null,null,null,null,null,null,null,null,null,null,null,null,null,null,null,null,null,null,null,null,null,null,null,null,null,null,null,null,null,null,null,null,null,null,null,null,null,null,null,null,null,null,null,null,null,0,{"$f":"IF($A88=0,\" \",VLOOKUP($A88,Salaries!$B$5:$G$104,6))","v":" "},"",0,68]
[null,0,null,null,null,null,null,null,null,null,null,null,null,null,null,null,null,null,null,null,null,null,null,null,null,null,null,null,null,null,null,null,null,0,null,null,null,null,null,null,null,null,null,null,null,null,null,null,null,null,null,null,null,null,null,null,null,null,null,null,null,null,null,null,null,null,null,null,null,null,null,null,null,null,null,null,null,null,null,null,null,null,null,null,null,null,null,null,null,null,null,null,null,null,null,null,null,null,null,null,null,0,{"$f":"IF($A89=0,\" \",VLOOKUP($A89,Salaries!$B$5:$G$104,6))","v":" "},"",0,69]

{"sheet":"Aout","index":4,"n_rows":89,"n_cols":107,"rows_kept":89,"cut":false,"hidden":false,"merged":[[3,103,3,104],[0,2,3,32],[3,105,3,106]]}
[null,null,"AOUT",null,null,null,null,null,null,null,null,null,null,null,null,null,null,null,null,null,null,null,null,null,null,null,null,null,null,null,null,null,null,null,null,null,null,null,null,null,null,null,null,null,null,null,null,null,null,null,null,null,null,null,null,null,null,null,null,null,null,null,null,null,null,null,null,null,null,null,null,null,null,null,null,null,null,null,null,null,null,null,null,null,null,null,null,null,null,null,null,null,null,null,null,null,null,null,null,null,1]
[]
[]
[null,null,null,null,null,null,null,null,null,null,null,null,null,null,null,null,null,null,null,null,null,null,null,null,null,null,null,null,null,null,null,null,null,"Mois",null,null,null,null,null,null,null,null,null,null,null,null,null,null,null,null,null,null,null,null,null,null,null,null,null,null,null,null,null,null,null,null,null,null,null,null,null,null,null,null,null,null,null,null,null,null,null,null,null,null,null,null,null,null,null,null,null,null,null,null,null,null,null,null,null,null,null,"CP",null,"Solde année",null,"Maladie"]
[null,"J",1,2,3,4,5,6,7,8,9,10,11,12,13,14,15,16,17,18,19,20,21,22,23,24,25,26,27,28,29,30,31,"H",null,null,null,null,null,null,null,null,null,null,null,null,null,null,null,null,null,null,null,null,null,null,null,null,null,null,null,null,null,null,null,null,null,null,null,null,null,null,null,null,null,null,null,null,null,null,null,null,null,null,null,null,null,null,null,null,null,null,null,null,null,null,null,null,null,null,null,"J",null,"H","J","J","H Théo"]
["Jacques",{"$f":"COUNTA(C6:AG6)-CX6-DB6","v":20},"X","X","X",null,null,null,"X","X","X","X",null,null,"X","X","X","X",null,null,"X","X","X","X",null,null,"X","X","X","X",null,null,"X",{"$f":"B6*8","v":160},null,null,null,null,null,null,null,null,null,null,null,null,null,null,null,null,null,null,null,null,null,null,null,null,null,null,null,null,null,null,null,null,null,null,null,null,null,null,null,null,null,null,null,null,null,null,null,null,null,null,null,null,null,null,null,null,null,null,null,null,null,null,null,null,null,null,null,{"$f":"COUNTIF(C6:AG6,\"CP\")","v":0},{"$f":"IF($A6=0,\" \",VLOOKUP($A6,Salaries!$B$5:$G$104,6))","v":8},{"$f":"IF($A6=0,\" \",VLOOKUP($A6,Salaries!$B$5:$G$104,6))","v":8},{"$f":"IFERROR(CZ6/8,\"\")","v":1},{"$f":"COUNTIF(C6:AG6,\"MAL\")+COUNTIF(C6:AG6,\"AT\")","v":0},0]
["Pierre",{"$f":"COUNTA(C7:AG7)-CX7-DB7","v":17},null,null,null,"X","X","X",null,null,"X","X","X","X",null,null,null,"X","X","X",null,null,"X","X","X",null,null,null,"X","X","X","X",null,{"$f":"B7*8","v":136},null,null,null,null,null,null,null,null,null,null,null,null,null,null,null,null,null,null,null,null,null,null,null,null,null,null,null,null,null,null,null,null,null,null,null,null,null,null,null,null,null,null,null,null,null,null,null,null,null,null,null,null,null,null,null,null,null,null,null,null,null,null,null,null,null,null,null,{"$f":"COUNTIF(C7:AG7,\"CP\")","v":0},{"$f":"IF($A7=0,\" \",VLOOKUP($A7,Salaries!$B$5:$G$104,6))","v":-8},{"$f":"IF($A7=0,\" \",VLOOKUP($A7,Salaries!$B$5:$G$104,6))","v":-8},{"$f":"IFERROR(CZ7/8,\"\")","v":-1},{"$f":"COUNTIF(C7:AG7,\"MAL\")+COUNTIF(C7:AG7,\"AT\")","v":0},0]
["Paul",11,null,null,null,null,null,null,null,null,null,null,null,null,null,null,null,null,"X","X","X","X",null,null,"X","X","X","X",null,null,"X","X","X",88,null,null,null,null,null,null,null,null,null,null,null,null,null,null,null,null,null,null,null,null,null,null,null,null,null,null,null,null,null,null,null,null,null,null,null,null,null,null,null,null,null,null,null,null,null,null,null,null,null,null,null,null,null,null,null,null,null,null,null,null,null,null,null,null,null,null,null,0,{"$f":"IF($A8=0,\" \",VLOOKUP($A8,Salaries!$B$5:$G$104,6))","v":-136},{"$f":"IF($A8=0,\" \",VLOOKUP($A8,Salaries!$B$5:$G$104,6))","v":-136},-17,0,0]
["Paul",8,"X","X","X",null,null,"X","X","X",null,null,"X","X",null,null,null,null,null,null,null,null,null,null,null,null,null,null,null,null,null,null,null,64,null,null,null,null,null,null,null,null,null,null,null,null,null,null,null,null,null,null,null,null,null,null,null,null,null,null,null,null,null,null,null,null,null,null,null,null,null,null,null,null,null,null,null,null,null,null,null,null,null,null,null,null,null,null,null,null,null,null,null,null,null,null,null,null,null,null,null,0,{"$f":"IF($A9=0,\" \",VLOOKUP($A9,Salaries!$B$5:$G$104,6))","v":-136},{"$f":"IF($A9=0,\" \",VLOOKUP($A9,Salaries!$B$5:$G$104,6))","v":-136},-17,0,0]
["Albert",7,null,null,null,"X","X",null,null,null,null,null,null,null,"X","X","X",null,null,null,null,null,null,null,null,"X",null,null,null,null,null,null,"X",56,null,null,null,null,null,null,null,null,null,null,null,null,null,null,null,null,null,null,null,null,null,null,null,null,null,null,null,null,null,null,null,null,null,null,null,null,null,null,null,null,null,null,null,null,null,null,null,null,null,null,null,null,null,null,null,null,null,null,null,null,null,null,null,null,null,null,null,0,{"$f":"IF($A10=0,\" \",VLOOKUP($A10,Salaries!$B$5:$G$104,6))","v":0},{"$f":"IF($A10=0,\" \",VLOOKUP($A10,Salaries!$B$5:$G$104,6))","v":0},0,0]
[0,0,null,null,null,null,null,null,null,null,null,null,null,null,null,null,null,null,null,null,null,null,null,null,null,null,null,null,null,null,null,null,null,0,null,null,null,null,null,null,null,null,null,null,null,null,null,null,null,null,null,null,null,null,null,null,null,null,null,null,null,null,null,null,null,null,null,null,null,null,null,null,null,null,null,null,null,null,null,null,null,null,null,null,null,null,null,null,null,null,null,null,null,null,null,null,null,null,null,null,null,0,{"$f":"IF($A11=0,\" \",VLOOKUP($A11,Salaries!$B$5:$G$104,6))","v":" "},{"$f":"IF($A11=0,\" \",VLOOKUP($A11,Salaries!$B$5:$G$104,6))","v":" "},"",0,0]
[null,0,null,null,null,null,null,null,null,null,null,null,null,null,null,null,null,null,null,null,null,null,null,null,null,null,null,null,null,null,null,null,null,0,null,null,null,null,null,null,null,null,null,null,null,null,null,null,null,null,null,null,null,null,null,null,null,null,null,null,null,null,null,null,null,null,null,null,null,null,null,null,null,null,null,null,null,null,null,null,null,null,null,null,null,null,null,null,null,null,null,null,null,null,null,null,null,null,null,null,null,0,{"$f":"IF($A12=0,\" \",VLOOKUP($A12,Salaries!$B$5:$G$104,6))","v":" "},{"$f":"IF($A12=0,\" \",VLOOKUP($A12,Salaries!$B$5:$G$104,6))","v":" "},"",0,0]
[null,0,null,null,null,null,null,null,null,null,null,null,null,null,null,null,null,null,null,null,null,null,null,null,null,null,null,null,null,null,null,null,null,0,null,null,null,null,null,null,null,null,null,null,null,null,null,null,null,null,null,null,null,null,null,null,null,null,null,null,null,null,null,null,null,null,null,null,null,null,null,null,null,null,null,null,null,null,null,null,null,null,null,null,null,null,null,null,null,null,null,null,null,null,null,null,null,null,null,null,null,0,{"$f":"IF($A13=0,\" \",VLOOKUP($A13,Salaries!$B$5:$G$104,6))","v":" "},{"$f":"IF($A13=0,\" \",VLOOKUP($A13,Salaries!$B$5:$G$104,6))","v":" "},"",0,0]
[null,0,null,null,null,null,null,null,null,null,null,null,null,null,null,null,null,null,null,null,null,null,null,null,null,null,null,null,null,null,null,null,null,0,null,null,null,null,null,null,null,null,null,null,null,null,null,null,null,null,null,null,null,null,null,null,null,null,null,null,null,null,null,null,null,null,null,null,null,null,null,null,null,null,null,null,null,null,null,null,null,null,null,null,null,null,null,null,null,null,null,null,null,null,null,null,null,null,null,null,null,0,{"$f":"IF($A14=0,\" \",VLOOKUP($A14,Salaries!$B$5:$G$104,6))","v":" "},{"$f":"IF($A14=0,\" \",VLOOKUP($A14,Salaries!$B$5:$G$104,6))","v":" "},"",0,0]
[null,0,null,null,null,null,null,null,null,null,null,null,null,null,null,null,null,null,null,null,null,null,null,null,null,null,null,null,null,null,null,null,null,0,null,null,null,null,null,null,null,null,null,null,null,null,null,null,null,null,null,null,null,null,null,null,null,null,null,null,null,null,null,null,null,null,null,null,null,null,null,null,null,null,null,null,null,null,null,null,null,null,null,null,null,null,null,null,null,null,null,null,null,null,null,null,null,null,null,null,null,0,{"$f":"IF($A15=0,\" \",VLOOKUP($A15,Salaries!$B$5:$G$104,6))","v":" "},{"$f":"IF($A15=0,\" \",VLOOKUP($A15,Salaries!$B$5:$G$104,6))","v":" "},"",0,0]
[null,0,null,null,null,null,null,null,null,null,null,null,null,null,null,null,null,null,null,null,null,null,null,null,null,null,null,null,null,null,null,null,null,0,null,null,null,null,null,null,null,null,null,null,null,null,null,null,null,null,null,null,null,null,null,null,null,null,null,null,null,null,null,null,null,null,null,null,null,null,null,null,null,null,null,null,null,null,null,null,null,null,null,null,null,null,null,null,null,null,null,null,null,null,null,null,null,null,null,null,null,0,{"$f":"IF($A16=0,\" \",VLOOKUP($A16,Salaries!$B$5:$G$104,6))","v":" "},{"$f":"IF($A16=0,\" \",VLOOKUP($A16,Salaries!$B$5:$G$104,6))","v":" "},"",0,0]
[null,0,null,null,null,null,null,null,null,null,null,null,null,null,null,null,null,null,null,null,null,null,null,null,null,null,null,null,null,null,null,null,null,0,null,null,null,null,null,null,null,null,null,null,null,null,null,null,null,null,null,null,null,null,null,null,null,null,null,null,null,null,null,null,null,null,null,null,null,null,null,null,null,null,null,null,null,null,null,null,null,null,null,null,null,null,null,null,null,null,null,null,null,null,null,null,null,null,null,null,null,0,{"$f":"IF($A17=0,\" \",VLOOKUP($A17,Salaries!$B$5:$G$104,6))","v":" "},{"$f":"IF($A17=0,\" \",VLOOKUP($A17,Salaries!$B$5:$G$104,6))","v":" "},"",0,0]
[null,0,null,null,null,null,null,null,null,null,null,null,null,null,null,null,null,null,null,null,null,null,null,null,null,null,null,null,null,null,null,null,null,0,null,null,null,null,null,null,null,null,null,null,null,null,null,null,null,null,null,null,null,null,null,null,null,null,null,null,null,null,null,null,null,null,null,null,null,null,null,null,null,null,null,null,null,null,null,null,null,null,null,null,null,null,null,null,null,null,null,null,null,null,null,null,null,null,null,null,null,0,{"$f":"IF($A18=0,\" \",VLOOKUP($A18,Salaries!$B$5:$G$104,6))","v":" "},{"$f":"IF($A18=0,\" \",VLOOKUP($A18,Salaries!$B$5:$G$104,6))","v":" "},"",0,0]
[null,0,null,null,null,null,null,null,null,null,null,null,null,null,null,null,null,null,null,null,null,null,null,null,null,null,null,null,null,null,null,null,null,0,null,null,null,null,null,null,null,null,null,null,null,null,null,null,null,null,null,null,null,null,null,null,null,null,null,null,null,null,null,null,null,null,null,null,null,null,null,null,null,null,null,null,null,null,null,null,null,null,null,null,null,null,null,null,null,null,null,null,null,null,null,null,null,null,null,null,null,0,{"$f":"IF($A19=0,\" \",VLOOKUP($A19,Salaries!$B$5:$G$104,6))","v":" "},{"$f":"IF($A19=0,\" \",VLOOKUP($A19,Salaries!$B$5:$G$104,6))","v":" "},"",0,0]
[null,0,null,null,null,null,null,null,null,null,null,null,null,null,null,null,null,null,null,null,null,null,null,null,null,null,null,null,null,null,null,null,null,0,null,null,null,null,null,null,null,null,null,null,null,null,null,null,null,null,null,null,null,null,null,null,null,null,null,null,null,null,null,null,null,null,null,null,null,null,null,null,null,null,null,null,null,null,null,null,null,null,null,null,null,null,null,null,null,null,null,null,null,null,null,null,null,null,null,null,null,0,{"$f":"IF($A20=0,\" \",VLOOKUP($A20,Salaries!$B$5:$G$104,6))","v":" "},{"$f":"IF($A20=0,\" \",VLOOKUP($A20,Salaries!$B$5:$G$104,6))","v":" "},"",0,0]
[null,{"$f":"COUNTA(C21:AG21)-CX21-DB21","v":0},null,null,null,null,null,null,null,null,null,null,null,null,null,null,null,null,null,null,null,null,null,null,null,null,null,null,null,null,null,null,null,{"$f":"B21*8","v":0},null,null,null,null,null,null,null,null,null,null,null,null,null,null,null,null,null,null,null,null,null,null,null,null,null,null,null,null,null,null,null,null,null,null,null,null,null,null,null,null,null,null,null,null,null,null,null,null,null,null,null,null,null,null,null,null,null,null,null,null,null,null,null,null,null,null,null,{"$f":"COUNTIF(C21:AG21,\"CP\")","v":0},{"$f":"IF($A21=0,\" \",VLOOKUP($A21,Salaries!$B$5:$G$104,6))","v":" "},{"$f":"IF($A21=0,\" \",VLOOKUP($A21,Salaries!$B$5:$G$104,6))","v":" "},{"$f":"IFERROR(CZ21/8,\"\")","v":""},{"$f":"COUNTIF(C21:AG21,\"MAL\")+COUNTIF(C21:AG21,\"AT\")","v":0}]
[null,0,null,null,null,null,null,null,null,null,null,null,null,null,null,null,null,null,null,null,null,null,null,null,null,null,null,null,null,null,null,null,null,0,null,null,null,null,null,null,null,null,null,null,null,null,null,null,null,null,null,null,null,null,null,null,null,null,null,null,null,null,null,null,null,null,null,null,null,null,null,null,null,null,null,null,null,null,null,null,null,null,null,null,null,null,null,null,null,null,null,null,null,null,null,null,null,null,null,null,null,0,{"$f":"IF($A22=0,\" \",VLOOKUP($A22,Salaries!$B$5:$G$104,6))","v":" "},{"$f":"IF($A22=0,\" \",VLOOKUP($A22,Salaries!$B$5:$G$104,6))","v":" "},"",0]
[null,0,null,null,null,null,null,null,null,null,null,null,null,null,null,null,null,null,null,null,null,null,null,null,null,null,null,null,null,null,null,null,null,0,null,null,null,null,null,null,null,null,null,null,null,null,null,null,null,null,null,null,null,null,null,null,null,null,null,null,null,null,null,null,null,null,null,null,null,null,null,null,null,null,null,null,null,null,null,null,null,null,null,null,null,null,null,null,null,null,null,null,null,null,null,null,null,null,null,null,null,0,{"$f":"IF($A23=0,\" \",VLOOKUP($A23,Salaries!$B$5:$G$104,6))","v":" "},{"$f":"IF($A23=0,\" \",VLOOKUP($A23,Salaries!$B$5:$G$104,6))","v":" "},"",0]
[null,0,null,null,null,null,null,null,null,null,null,null,null,null,null,null,null,null,null,null,null,null,null,null,null,null,null,null,null,null,null,null,null,0,null,null,null,null,null,null,null,null,null,null,null,null,null,null,null,null,null,null,null,null,null,null,null,null,null,null,null,null,null,null,null,null,null,null,null,null,null,null,null,null,null,null,null,null,null,null,null,null,null,null,null,null,null,null,null,null,null,null,null,null,null,null,null,null,null,null,null,0,{"$f":"IF($A24=0,\" \",VLOOKUP($A24,Salaries!$B$5:$G$104,6))","v":" "},{"$f":"IF($A24=0,\" \",VLOOKUP($A24,Salaries!$B$5:$G$104,6))","v":" "},"",0]
[null,0,null,null,null,null,null,null,null,null,null,null,null,null,null,null,null,null,null,null,null,null,null,null,null,null,null,null,null,null,null,null,null,0,null,null,null,null,null,null,null,null,null,null,null,null,null,null,null,null,null,null,null,null,null,null,null,null,null,null,null,null,null,null,null,null,null,null,null,null,null,null,null,null,null,null,null,null,null,null,null,null,null,null,null,null,null,null,null,null,null,null,null,null,null,null,null,null,null,null,null,0,{"$f":"IF($A25=0,\" \",VLOOKUP($A25,Salaries!$B$5:$G$104,6))","v":" "},{"$f":"IF($A25=0,\" \",VLOOKUP($A25,Salaries!$B$5:$G$104,6))","v":" "},"",0]
[null,0,null,null,null,null,null,null,null,null,null,null,null,null,null,null,null,null,null,null,null,null,null,null,null,null,null,null,null,null,null,null,null,0,null,null,null,null,null,null,null,null,null,null,null,null,null,null,null,null,null,null,null,null,null,null,null,null,null,null,null,null,null,null,null,null,null,null,null,null,null,null,null,null,null,null,null,null,null,null,null,null,null,null,null,null,null,null,null,null,null,null,null,null,null,null,null,null,null,null,null,0,{"$f":"IF($A26=0,\" \",VLOOKUP($A26,Salaries!$B$5:$G$104,6))","v":" "},{"$f":"IF($A26=0,\" \",VLOOKUP($A26,Salaries!$B$5:$G$104,6))","v":" "},"",0]
[null,0,null,null,null,null,null,null,null,null,null,null,null,null,null,null,null,null,null,null,null,null,null,null,null,null,null,null,null,null,null,null,null,0,null,null,null,null,null,null,null,null,null,null,null,null,null,null,null,null,null,null,null,null,null,null,null,null,null,null,null,null,null,null,null,null,null,null,null,null,null,null,null,null,null,null,null,null,null,null,null,null,null,null,null,null,null,null,null,null,null,null,null,null,null,null,null,null,null,null,null,0,{"$f":"IF($A27=0,\" \",VLOOKUP($A27,Salaries!$B$5:$G$104,6))","v":" "},{"$f":"IF($A27=0,\" \",VLOOKUP($A27,Salaries!$B$5:$G$104,6))","v":" "},"",0]
[null,0,null,null,null,null,null,null,null,null,null,null,null,null,null,null,null,null,null,null,null,null,null,null,null,null,null,null,null,null,null,null,null,0,null,null,null,null,null,null,null,null,null,null,null,null,null,null,null,null,null,null,null,null,null,null,null,null,null,null,null,null,null,null,null,null,null,null,null,null,null,null,null,null,null,null,null,null,null,null,null,null,null,null,null,null,null,null,null,null,null,null,null,null,null,null,null,null,null,null,null,0,{"$f":"IF($A28=0,\" \",VLOOKUP($A28,Salaries!$B$5:$G$104,6))","v":" "},{"$f":"IF($A28=0,\" \",VLOOKUP($A28,Salaries!$B$5:$G$104,6))","v":" "},"",0]
[null,0,null,null,null,null,null,null,null,null,null,null,null,null,null,null,null,null,null,null,null,null,null,null,null,null,null,null,null,null,null,null,null,0,null,null,null,null,null,null,null,null,null,null,null,null,null,null,null,null,null,null,null,null,null,null,null,null,null,null,null,null,null,null,null,null,null,null,null,null,null,null,null,null,null,null,null,null,null,null,null,null,null,null,null,null,null,null,null,null,null,null,null,null,null,null,null,null,null,null,null,0,{"$f":"IF($A29=0,\" \",VLOOKUP($A29,Salaries!$B$5:$G$104,6))","v":" "},{"$f":"IF($A29=0,\" \",VLOOKUP($A29,Salaries!$B$5:$G$104,6))","v":" "},"",0]
[null,0,null,null,null,null,null,null,null,null,null,null,null,null,null,null,null,null,null,null,null,null,null,null,null,null,null,null,null,null,null,null,null,0,null,null,null,null,null,null,null,null,null,null,null,null,null,null,null,null,null,null,null,null,null,null,null,null,null,null,null,null,null,null,null,null,null,null,null,null,null,null,null,null,null,null,null,null,null,null,null,null,null,null,null,null,null,null,null,null,null,null,null,null,null,null,null,null,null,null,null,0,{"$f":"IF($A30=0,\" \",VLOOKUP($A30,Salaries!$B$5:$G$104,6))","v":" "},{"$f":"IF($A30=0,\" \",VLOOKUP($A30,Salaries!$B$5:$G$104,6))","v":" "},"",0]
[null,0,null,null,null,null,null,null,null,null,null,null,null,null,null,null,null,null,null,null,null,null,null,null,null,null,null,null,null,null,null,null,null,0,null,null,null,null,null,null,null,null,null,null,null,null,null,null,null,null,null,null,null,null,null,null,null,null,null,null,null,null,null,null,null,null,null,null,null,null,null,null,null,null,null,null,null,null,null,null,null,null,null,null,null,null,null,null,null,null,null,null,null,null,null,null,null,null,null,null,null,0,{"$f":"IF($A31=0,\" \",VLOOKUP($A31,Salaries!$B$5:$G$104,6))","v":" "},{"$f":"IF($A31=0,\" \",VLOOKUP($A31,Salaries!$B$5:$G$104,6))","v":" "},"",0]
[null,0,null,null,null,null,null,null,null,null,null,null,null,null,null,null,null,null,null,null,null,null,null,null,null,null,null,null,null,null,null,null,null,0,null,null,null,null,null,null,null,null,null,null,null,null,null,null,null,null,null,null,null,null,null,null,null,null,null,null,null,null,null,null,null,null,null,null,null,null,null,null,null,null,null,null,null,null,null,null,null,null,null,null,null,null,null,null,null,null,null,null,null,null,null,null,null,null,null,null,null,0,{"$f":"IF($A32=0,\" \",VLOOKUP($A32,Salaries!$B$5:$G$104,6))","v":" "},{"$f":"IF($A32=0,\" \",VLOOKUP($A32,Salaries!$B$5:$G$104,6))","v":" "},"",0]
[null,0,null,null,null,null,null,null,null,null,null,null,null,null,null,null,null,null,null,null,null,null,null,null,null,null,null,null,null,null,null,null,null,0,null,null,null,null,null,null,null,null,null,null,null,null,null,null,null,null,null,null,null,null,null,null,null,null,null,null,null,null,null,null,null,null,null,null,null,null,null,null,null,null,null,null,null,null,null,null,null,null,null,null,null,null,null,null,null,null,null,null,null,null,null,null,null,null,null,null,null,0,{"$f":"IF($A33=0,\" \",VLOOKUP($A33,Salaries!$B$5:$G$104,6))","v":" "},{"$f":"IF($A33=0,\" \",VLOOKUP($A33,Salaries!$B$5:$G$104,6))","v":" "},"",0]
[null,0,null,null,null,null,null,null,null,null,null,null,null,null,null,null,null,null,null,null,null,null,null,null,null,null,null,null,null,null,null,null,null,0,null,null,null,null,null,null,null,null,null,null,null,null,null,null,null,null,null,null,null,null,null,null,null,null,null,null,null,null,null,null,null,null,null,null,null,null,null,null,null,null,null,null,null,null,null,null,null,null,null,null,null,null,null,null,null,null,null,null,null,null,null,null,null,null,null,null,null,0,{"$f":"IF($A34=0,\" \",VLOOKUP($A34,Salaries!$B$5:$G$104,6))","v":" "},{"$f":"IF($A34=0,\" \",VLOOKUP($A34,Salaries!$B$5:$G$104,6))","v":" "},"",0]
[null,0,null,null,null,null,null,null,null,null,null,null,null,null,null,null,null,null,null,null,null,null,null,null,null,null,null,null,null,null,null,null,null,0,null,null,null,null,null,null,null,null,null,null,null,null,null,null,null,null,null,null,null,null,null,null,null,null,null,null,null,null,null,null,null,null,null,null,null,null,null,null,null,null,null,null,null,null,null,null,null,null,null,null,null,null,null,null,null,null,null,null,null,null,null,null,null,null,null,null,null,0,{"$f":"IF($A35=0,\" \",VLOOKUP($A35,Salaries!$B$5:$G$104,6))","v":" "},{"$f":"IF($A35=0,\" \",VLOOKUP($A35,Salaries!$B$5:$G$104,6))","v":" "},"",0]
[null,0,null,null,null,null,null,null,null,null,null,null,null,null,null,null,null,null,null,null,null,null,null,null,null,null,null,null,null,null,null,null,null,0,null,null,null,null,null,null,null,null,null,null,null,null,null,null,null,null,null,null,null,null,null,null,null,null,null,null,null,null,null,null,null,null,null,null,null,null,null,null,null,null,null,null,null,null,null,null,null,null,null,null,null,null,null,null,null,null,null,null,null,null,null,null,null,null,null,null,null,0,{"$f":"IF($A36=0,\" \",VLOOKUP($A36,Salaries!$B$5:$G$104,6))","v":" "},{"$f":"IF($A36=0,\" \",VLOOKUP($A36,Salaries!$B$5:$G$104,6))","v":" "},"",0]
[null,0,null,null,null,null,null,null,null,null,null,null,null,null,null,null,null,null,null,null,null,null,null,null,null,null,null,null,null,null,null,null,null,0,null,null,null,null,null,null,null,null,null,null,null,null,null,null,null,null,null,null,null,null,null,null,null,null,null,null,null,null,null,null,null,null,null,null,null,null,null,null,null,null,null,null,null,null,null,null,null,null,null,null,null,null,null,null,null,null,null,null,null,null,null,null,null,null,null,null,null,0,{"$f":"IF($A37=0,\" \",VLOOKUP($A37,Salaries!$B$5:$G$104,6))","v":" "},{"$f":"IF($A37=0,\" \",VLOOKUP($A37,Salaries!$B$5:$G$104,6))","v":" "},"",0]
[null,0,null,null,null,null,null,null,null,null,null,null,null,null,null,null,null,null,null,null,null,null,null,null,null,null,null,null,null,null,null,null,null,0,null,null,null,null,null,null,null,null,null,null,null,null,null,null,null,null,null,null,null,null,null,null,null,null,null,null,null,null,null,null,null,null,null,null,null,null,null,null,null,null,null,null,null,null,null,null,null,null,null,null,null,null,null,null,null,null,null,null,null,null,null,null,null,null,null,null,null,0,{"$f":"IF($A38=0,\" \",VLOOKUP($A38,Salaries!$B$5:$G$104,6))","v":" "},{"$f":"IF($A38=0,\" \",VLOOKUP($A38,Salaries!$B$5:$G$104,6))","v":" "},"",0]
[null,0,null,null,null,null,null,null,null,null,null,null,null,null,null,null,null,null,null,null,null,null,null,null,null,null,null,null,null,null,null,null,null,0,null,null,null,null,null,null,null,null,null,null,null,null,null,null,null,null,null,null,null,null,null,null,null,null,null,null,null,null,null,null,null,null,null,null,null,null,null,null,null,null,null,null,null,null,null,null,null,null,null,null,null,null,null,null,null,null,null,null,null,null,null,null,null,null,null,null,null,0,{"$f":"IF($A39=0,\" \",VLOOKUP($A39,Salaries!$B$5:$G$104,6))","v":" "},{"$f":"IF($A39=0,\" \",VLOOKUP($A39,Salaries!$B$5:$G$104,6))","v":" "},"",0]
[null,0,null,null,null,null,null,null,null,null,null,null,null,null,null,null,null,null,null,null,null,null,null,null,null,null,null,null,null,null,null,null,null,0,null,null,null,null,null,null,null,null,null,null,null,null,null,null,null,null,null,null,null,null,null,null,null,null,null,null,null,null,null,null,null,null,null,null,null,null,null,null,null,null,null,null,null,null,null,null,null,null,null,null,null,null,null,null,null,null,null,null,null,null,null,null,null,null,null,null,null,0,{"$f":"IF($A40=0,\" \",VLOOKUP($A40,Salaries!$B$5:$G$104,6))","v":" "},{"$f":"IF($A40=0,\" \",VLOOKUP($A40,Salaries!$B$5:$G$104,6))","v":" "},"",0]
[null,0,null,null,null,null,null,null,null,null,null,null,null,null,null,null,null,null,null,null,null,null,null,null,null,null,null,null,null,null,null,null,null,0,null,null,null,null,null,null,null,null,null,null,null,null,null,null,null,null,null,null,null,null,null,null,null,null,null,null,null,null,null,null,null,null,null,null,null,null,null,null,null,null,null,null,null,null,null,null,null,null,null,null,null,null,null,null,null,null,null,null,null,null,null,null,null,null,null,null,null,0,{"$f":"IF($A41=0,\" \",VLOOKUP($A41,Salaries!$B$5:$G$104,6))","v":" "},{"$f":"IF($A41=0,\" \",VLOOKUP($A41,Salaries!$B$5:$G$104,6))","v":" "},"",0]
[null,0,null,null,null,null,null,null,null,null,null,null,null,null,null,null,null,null,null,null,null,null,null,null,null,null,null,null,null,null,null,null,null,0,null,null,null,null,null,null,null,null,null,null,null,null,null,null,null,null,null,null,null,null,null,null,null,null,null,null,null,null,null,null,null,null,null,null,null,null,null,null,null,null,null,null,null,null,null,null,null,null,null,null,null,null,null,null,null,null,null,null,null,null,null,null,null,null,null,null,null,0,{"$f":"IF($A42=0,\" \",VLOOKUP($A42,Salaries!$B$5:$G$104,6))","v":" "},{"$f":"IF($A42=0,\" \",VLOOKUP($A42,Salaries!$B$5:$G$104,6))","v":" "},"",0]
[null,0,null,null,null,null,null,null,null,null,null,null,null,null,null,null,null,null,null,null,null,null,null,null,null,null,null,null,null,null,null,null,null,0,null,null,null,null,null,null,null,null,null,null,null,null,null,null,null,null,null,null,null,null,null,null,null,null,null,null,null,null,null,null,null,null,null,null,null,null,null,null,null,null,null,null,null,null,null,null,null,null,null,null,null,null,null,null,null,null,null,null,null,null,null,null,null,null,null,null,null,0,{"$f":"IF($A43=0,\" \",VLOOKUP($A43,Salaries!$B$5:$G$104,6))","v":" "},{"$f":"IF($A43=0,\" \",VLOOKUP($A43,Salaries!$B$5:$G$104,6))","v":" "},"",0]
[null,0,null,null,null,null,null,null,null,null,null,null,null,null,null,null,null,null,null,null,null,null,null,null,null,null,null,null,null,null,null,null,null,0,null,null,null,null,null,null,null,null,null,null,null,null,null,null,null,null,null,null,null,null,null,null,null,null,null,null,null,null,null,null,null,null,null,null,null,null,null,null,null,null,null,null,null,null,null,null,null,null,null,null,null,null,null,null,null,null,null,null,null,null,null,null,null,null,null,null,null,0,{"$f":"IF($A44=0,\" \",VLOOKUP($A44,Salaries!$B$5:$G$104,6))","v":" "},{"$f":"IF($A44=0,\" \",VLOOKUP($A44,Salaries!$B$5:$G$104,6))","v":" "},"",0]
[null,0,null,null,null,null,null,null,null,null,null,null,null,null,null,null,null,null,null,null,null,null,null,null,null,null,null,null,null,null,null,null,null,0,null,null,null,null,null,null,null,null,null,null,null,null,null,null,null,null,null,null,null,null,null,null,null,null,null,null,null,null,null,null,null,null,null,null,null,null,null,null,null,null,null,null,null,null,null,null,null,null,null,null,null,null,null,null,null,null,null,null,null,null,null,null,null,null,null,null,null,0,{"$f":"IF($A45=0,\" \",VLOOKUP($A45,Salaries!$B$5:$G$104,6))","v":" "},{"$f":"IF($A45=0,\" \",VLOOKUP($A45,Salaries!$B$5:$G$104,6))","v":" "},"",0]
[null,0,null,null,null,null,null,null,null,null,null,null,null,null,null,null,null,null,null,null,null,null,null,null,null,null,null,null,null,null,null,null,null,0,null,null,null,null,null,null,null,null,null,null,null,null,null,null,null,null,null,null,null,null,null,null,null,null,null,null,null,null,null,null,null,null,null,null,null,null,null,null,null,null,null,null,null,null,null,null,null,null,null,null,null,null,null,null,null,null,null,null,null,null,null,null,null,null,null,null,null,0,{"$f":"IF($A46=0,\" \",VLOOKUP($A46,Salaries!$B$5:$G$104,6))","v":" "},{"$f":"IF($A46=0,\" \",VLOOKUP($A46,Salaries!$B$5:$G$104,6))","v":" "},"",0]
[null,0,null,null,null,null,null,null,null,null,null,null,null,null,null,null,null,null,null,null,null,null,null,null,null,null,null,null,null,null,null,null,null,0,null,null,null,null,null,null,null,null,null,null,null,null,null,null,null,null,null,null,null,null,null,null,null,null,null,null,null,null,null,null,null,null,null,null,null,null,null,null,null,null,null,null,null,null,null,null,null,null,null,null,null,null,null,null,null,null,null,null,null,null,null,null,null,null,null,null,null,0,{"$f":"IF($A47=0,\" \",VLOOKUP($A47,Salaries!$B$5:$G$104,6))","v":" "},{"$f":"IF($A47=0,\" \",VLOOKUP($A47,Salaries!$B$5:$G$104,6))","v":" "},"",0]
[null,0,null,null,null,null,null,null,null,null,null,null,null,null,null,null,null,null,null,null,null,null,null,null,null,null,null,null,null,null,null,null,null,0,null,null,null,null,null,null,null,null,null,null,null,null,null,null,null,null,null,null,null,null,null,null,null,null,null,null,null,null,null,null,null,null,null,null,null,null,null,null,null,null,null,null,null,null,null,null,null,null,null,null,null,null,null,null,null,null,null,null,null,null,null,null,null,null,null,null,null,0,{"$f":"IF($A48=0,\" \",VLOOKUP($A48,Salaries!$B$5:$G$104,6))","v":" "},{"$f":"IF($A48=0,\" \",VLOOKUP($A48,Salaries!$B$5:$G$104,6))","v":" "},"",0]
[null,0,null,null,null,null,null,null,null,null,null,null,null,null,null,null,null,null,null,null,null,null,null,null,null,null,null,null,null,null,null,null,null,0,null,null,null,null,null,null,null,null,null,null,null,null,null,null,null,null,null,null,null,null,null,null,null,null,null,null,null,null,null,null,null,null,null,null,null,null,null,null,null,null,null,null,null,null,null,null,null,null,null,null,null,null,null,null,null,null,null,null,null,null,null,null,null,null,null,null,null,0,{"$f":"IF($A49=0,\" \",VLOOKUP($A49,Salaries!$B$5:$G$104,6))","v":" "},{"$f":"IF($A49=0,\" \",VLOOKUP($A49,Salaries!$B$5:$G$104,6))","v":" "},"",0]
[null,0,null,null,null,null,null,null,null,null,null,null,null,null,null,null,null,null,null,null,null,null,null,null,null,null,null,null,null,null,null,null,null,0,null,null,null,null,null,null,null,null,null,null,null,null,null,null,null,null,null,null,null,null,null,null,null,null,null,null,null,null,null,null,null,null,null,null,null,null,null,null,null,null,null,null,null,null,null,null,null,null,null,null,null,null,null,null,null,null,null,null,null,null,null,null,null,null,null,null,null,0,{"$f":"IF($A50=0,\" \",VLOOKUP($A50,Salaries!$B$5:$G$104,6))","v":" "},{"$f":"IF($A50=0,\" \",VLOOKUP($A50,Salaries!$B$5:$G$104,6))","v":" "},"",0]
[null,0,null,null,null,null,null,null,null,null,null,null,null,null,null,null,null,null,null,null,null,null,null,null,null,null,null,null,null,null,null,null,null,0,null,null,null,null,null,null,null,null,null,null,null,null,null,null,null,null,null,null,null,null,null,null,null,null,null,null,null,null,null,null,null,null,null,null,null,null,null,null,null,null,null,null,null,null,null,null,null,null,null,null,null,null,null,null,null,null,null,null,null,null,null,null,null,null,null,null,null,0,{"$f":"IF($A51=0,\" \",VLOOKUP($A51,Salaries!$B$5:$G$104,6))","v":" "},{"$f":"IF($A51=0,\" \",VLOOKUP($A51,Salaries!$B$5:$G$104,6))","v":" "},"",0]
[null,0,null,null,null,null,null,null,null,null,null,null,null,null,null,null,null,null,null,null,null,null,null,null,null,null,null,null,null,null,null,null,null,0,null,null,null,null,null,null,null,null,null,null,null,null,null,null,null,null,null,null,null,null,null,null,null,null,null,null,null,null,null,null,null,null,null,null,null,null,null,null,null,null,null,null,null,null,null,null,null,null,null,null,null,null,null,null,null,null,null,null,null,null,null,null,null,null,null,null,null,0,{"$f":"IF($A52=0,\" \",VLOOKUP($A52,Salaries!$B$5:$G$104,6))","v":" "},{"$f":"IF($A52=0,\" \",VLOOKUP($A52,Salaries!$B$5:$G$104,6))","v":" "},"",0]
[null,0,null,null,null,null,null,null,null,null,null,null,null,null,null,null,null,null,null,null,null,null,null,null,null,null,null,null,null,null,null,null,null,0,null,null,null,null,null,null,null,null,null,null,null,null,null,null,null,null,null,null,null,null,null,null,null,null,null,null,null,null,null,null,null,null,null,null,null,null,null,null,null,null,null,null,null,null,null,null,null,null,null,null,null,null,null,null,null,null,null,null,null,null,null,null,null,null,null,null,null,0,{"$f":"IF($A53=0,\" \",VLOOKUP($A53,Salaries!$B$5:$G$104,6))","v":" "},{"$f":"IF($A53=0,\" \",VLOOKUP($A53,Salaries!$B$5:$G$104,6))","v":" "},"",0]
[null,0,null,null,null,null,null,null,null,null,null,null,null,null,null,null,null,null,null,null,null,null,null,null,null,null,null,null,null,null,null,null,null,0,null,null,null,null,null,null,null,null,null,null,null,null,null,null,null,null,null,null,null,null,null,null,null,null,null,null,null,null,null,null,null,null,null,null,null,null,null,null,null,null,null,null,null,null,null,null,null,null,null,null,null,null,null,null,null,null,null,null,null,null,null,null,null,null,null,null,null,0,{"$f":"IF($A54=0,\" \",VLOOKUP($A54,Salaries!$B$5:$G$104,6))","v":" "},{"$f":"IF($A54=0,\" \",VLOOKUP($A54,Salaries!$B$5:$G$104,6))","v":" "},"",0]
[null,0,null,null,null,null,null,null,null,null,null,null,null,null,null,null,null,null,null,null,null,null,null,null,null,null,null,null,null,null,null,null,null,0,null,null,null,null,null,null,null,null,null,null,null,null,null,null,null,null,null,null,null,null,null,null,null,null,null,null,null,null,null,null,null,null,null,null,null,null,null,null,null,null,null,null,null,null,null,null,null,null,null,null,null,null,null,null,null,null,null,null,null,null,null,null,null,null,null,null,null,0,{"$f":"IF($A55=0,\" \",VLOOKUP($A55,Salaries!$B$5:$G$104,6))","v":" "},{"$f":"IF($A55=0,\" \",VLOOKUP($A55,Salaries!$B$5:$G$104,6))","v":" "},"",0]
[null,0,null,null,null,null,null,null,null,null,null,null,null,null,null,null,null,null,null,null,null,null,null,null,null,null,null,null,null,null,null,null,null,0,null,null,null,null,null,null,null,null,null,null,null,null,null,null,null,null,null,null,null,null,null,null,null,null,null,null,null,null,null,null,null,null,null,null,null,null,null,null,null,null,null,null,null,null,null,null,null,null,null,null,null,null,null,null,null,null,null,null,null,null,null,null,null,null,null,null,null,0,{"$f":"IF($A56=0,\" \",VLOOKUP($A56,Salaries!$B$5:$G$104,6))","v":" "},{"$f":"IF($A56=0,\" \",VLOOKUP($A56,Salaries!$B$5:$G$104,6))","v":" "},"",0]
[null,0,null,null,null,null,null,null,null,null,null,null,null,null,null,null,null,null,null,null,null,null,null,null,null,null,null,null,null,null,null,null,null,0,null,null,null,null,null,null,null,null,null,null,null,null,null,null,null,null,null,null,null,null,null,null,null,null,null,null,null,null,null,null,null,null,null,null,null,null,null,null,null,null,null,null,null,null,null,null,null,null,null,null,null,null,null,null,null,null,null,null,null,null,null,null,null,null,null,null,null,0,{"$f":"IF($A57=0,\" \",VLOOKUP($A57,Salaries!$B$5:$G$104,6))","v":" "},{"$f":"IF($A57=0,\" \",VLOOKUP($A57,Salaries!$B$5:$G$104,6))","v":" "},"",0]
[null,0,null,null,null,null,null,null,null,null,null,null,null,null,null,null,null,null,null,null,null,null,null,null,null,null,null,null,null,null,null,null,null,0,null,null,null,null,null,null,null,null,null,null,null,null,null,null,null,null,null,null,null,null,null,null,null,null,null,null,null,null,null,null,null,null,null,null,null,null,null,null,null,null,null,null,null,null,null,null,null,null,null,null,null,null,null,null,null,null,null,null,null,null,null,null,null,null,null,null,null,0,{"$f":"IF($A58=0,\" \",VLOOKUP($A58,Salaries!$B$5:$G$104,6))","v":" "},{"$f":"IF($A58=0,\" \",VLOOKUP($A58,Salaries!$B$5:$G$104,6))","v":" "},"",0]
[null,0,null,null,null,null,null,null,null,null,null,null,null,null,null,null,null,null,null,null,null,null,null,null,null,null,null,null,null,null,null,null,null,0,null,null,null,null,null,null,null,null,null,null,null,null,null,null,null,null,null,null,null,null,null,null,null,null,null,null,null,null,null,null,null,null,null,null,null,null,null,null,null,null,null,null,null,null,null,null,null,null,null,null,null,null,null,null,null,null,null,null,null,null,null,null,null,null,null,null,null,0,{"$f":"IF($A59=0,\" \",VLOOKUP($A59,Salaries!$B$5:$G$104,6))","v":" "},{"$f":"IF($A59=0,\" \",VLOOKUP($A59,Salaries!$B$5:$G$104,6))","v":" "},"",0]
[null,0,null,null,null,null,null,null,null,null,null,null,null,null,null,null,null,null,null,null,null,null,null,null,null,null,null,null,null,null,null,null,null,0,null,null,null,null,null,null,null,null,null,null,null,null,null,null,null,null,null,null,null,null,null,null,null,null,null,null,null,null,null,null,null,null,null,null,null,null,null,null,null,null,null,null,null,null,null,null,null,null,null,null,null,null,null,null,null,null,null,null,null,null,null,null,null,null,null,null,null,0,{"$f":"IF($A60=0,\" \",VLOOKUP($A60,Salaries!$B$5:$G$104,6))","v":" "},{"$f":"IF($A60=0,\" \",VLOOKUP($A60,Salaries!$B$5:$G$104,6))","v":" "},"",0]
[null,0,null,null,null,null,null,null,null,null,null,null,null,null,null,null,null,null,null,null,null,null,null,null,null,null,null,null,null,null,null,null,null,0,null,null,null,null,null,null,null,null,null,null,null,null,null,null,null,null,null,null,null,null,null,null,null,null,null,null,null,null,null,null,null,null,null,null,null,null,null,null,null,null,null,null,null,null,null,null,null,null,null,null,null,null,null,null,null,null,null,null,null,null,null,null,null,null,null,null,null,0,{"$f":"IF($A61=0,\" \",VLOOKUP($A61,Salaries!$B$5:$G$104,6))","v":" "},{"$f":"IF($A61=0,\" \",VLOOKUP($A61,Salaries!$B$5:$G$104,6))","v":" "},"",0]
[null,0,null,null,null,null,null,null,null,null,null,null,null,null,null,null,null,null,null,null,null,null,null,null,null,null,null,null,null,null,null,null,null,0,null,null,null,null,null,null,null,null,null,null,null,null,null,null,null,null,null,null,null,null,null,null,null,null,null,null,null,null,null,null,null,null,null,null,null,null,null,null,null,null,null,null,null,null,null,null,null,null,null,null,null,null,null,null,null,null,null,null,null,null,null,null,null,null,null,null,null,0,{"$f":"IF($A62=0,\" \",VLOOKUP($A62,Salaries!$B$5:$G$104,6))","v":" "},{"$f":"IF($A62=0,\" \",VLOOKUP($A62,Salaries!$B$5:$G$104,6))","v":" "},"",0]
[null,0,null,null,null,null,null,null,null,null,null,null,null,null,null,null,null,null,null,null,null,null,null,null,null,null,null,null,null,null,null,null,null,0,null,null,null,null,null,null,null,null,null,null,null,null,null,null,null,null,null,null,null,null,null,null,null,null,null,null,null,null,null,null,null,null,null,null,null,null,null,null,null,null,null,null,null,null,null,null,null,null,null,null,null,null,null,null,null,null,null,null,null,null,null,null,null,null,null,null,null,0,{"$f":"IF($A63=0,\" \",VLOOKUP($A63,Salaries!$B$5:$G$104,6))","v":" "},{"$f":"IF($A63=0,\" \",VLOOKUP($A63,Salaries!$B$5:$G$104,6))","v":" "},"",0]
[null,0,null,null,null,null,null,null,null,null,null,null,null,null,null,null,null,null,null,null,null,null,null,null,null,null,null,null,null,null,null,null,null,0,null,null,null,null,null,null,null,null,null,null,null,null,null,null,null,null,null,null,null,null,null,null,null,null,null,null,null,null,null,null,null,null,null,null,null,null,null,null,null,null,null,null,null,null,null,null,null,null,null,null,null,null,null,null,null,null,null,null,null,null,null,null,null,null,null,null,null,0,{"$f":"IF($A64=0,\" \",VLOOKUP($A64,Salaries!$B$5:$G$104,6))","v":" "},{"$f":"IF($A64=0,\" \",VLOOKUP($A64,Salaries!$B$5:$G$104,6))","v":" "},"",0]
[null,0,null,null,null,null,null,null,null,null,null,null,null,null,null,null,null,null,null,null,null,null,null,null,null,null,null,null,null,null,null,null,null,0,null,null,null,null,null,null,null,null,null,null,null,null,null,null,null,null,null,null,null,null,null,null,null,null,null,null,null,null,null,null,null,null,null,null,null,null,null,null,null,null,null,null,null,null,null,null,null,null,null,null,null,null,null,null,null,null,null,null,null,null,null,null,null,null,null,null,null,0,{"$f":"IF($A65=0,\" \",VLOOKUP($A65,Salaries!$B$5:$G$104,6))","v":" "},{"$f":"IF($A65=0,\" \",VLOOKUP($A65,Salaries!$B$5:$G$104,6))","v":" "},"",0]
[null,0,null,null,null,null,null,null,null,null,null,null,null,null,null,null,null,null,null,null,null,null,null,null,null,null,null,null,null,null,null,null,null,0,null,null,null,null,null,null,null,null,null,null,null,null,null,null,null,null,null,null,null,null,null,null,null,null,null,null,null,null,null,null,null,null,null,null,null,null,null,null,null,null,null,null,null,null,null,null,null,null,null,null,null,null,null,null,null,null,null,null,null,null,null,null,null,null,null,null,null,0,{"$f":"IF($A66=0,\" \",VLOOKUP($A66,Salaries!$B$5:$G$104,6))","v":" "},{"$f":"IF($A66=0,\" \",VLOOKUP($A66,Salaries!$B$5:$G$104,6))","v":" "},"",0]
[null,0,null,null,null,null,null,null,null,null,null,null,null,null,null,null,null,null,null,null,null,null,null,null,null,null,null,null,null,null,null,null,null,0,null,null,null,null,null,null,null,null,null,null,null,null,null,null,null,null,null,null,null,null,null,null,null,null,null,null,null,null,null,null,null,null,null,null,null,null,null,null,null,null,null,null,null,null,null,null,null,null,null,null,null,null,null,null,null,null,null,null,null,null,null,null,null,null,null,null,null,0,{"$f":"IF($A67=0,\" \",VLOOKUP($A67,Salaries!$B$5:$G$104,6))","v":" "},{"$f":"IF($A67=0,\" \",VLOOKUP($A67,Salaries!$B$5:$G$104,6))","v":" "},"",0]
[null,0,null,null,null,null,null,null,null,null,null,null,null,null,null,null,null,null,null,null,null,null,null,null,null,null,null,null,null,null,null,null,null,0,null,null,null,null,null,null,null,null,null,null,null,null,null,null,null,null,null,null,null,null,null,null,null,null,null,null,null,null,null,null,null,null,null,null,null,null,null,null,null,null,null,null,null,null,null,null,null,null,null,null,null,null,null,null,null,null,null,null,null,null,null,null,null,null,null,null,null,0,{"$f":"IF($A68=0,\" \",VLOOKUP($A68,Salaries!$B$5:$G$104,6))","v":" "},{"$f":"IF($A68=0,\" \",VLOOKUP($A68,Salaries!$B$5:$G$104,6))","v":" "},"",0]
[null,0,null,null,null,null,null,null,null,null,null,null,null,null,null,null,null,null,null,null,null,null,null,null,null,null,null,null,null,null,null,null,null,0,null,null,null,null,null,null,null,null,null,null,null,null,null,null,null,null,null,null,null,null,null,null,null,null,null,null,null,null,null,null,null,null,null,null,null,null,null,null,null,null,null,null,null,null,null,null,null,null,null,null,null,null,null,null,null,null,null,null,null,null,null,null,null,null,null,null,null,0,{"$f":"IF($A69=0,\" \",VLOOKUP($A69,Salaries!$B$5:$G$104,6))","v":" "},{"$f":"IF($A69=0,\" \",VLOOKUP($A69,Salaries!$B$5:$G$104,6))","v":" "},"",0]
[null,0,null,null,null,null,null,null,null,null,null,null,null,null,null,null,null,null,null,null,null,null,null,null,null,null,null,null,null,null,null,null,null,0,null,null,null,null,null,null,null,null,null,null,null,null,null,null,null,null,null,null,null,null,null,null,null,null,null,null,null,null,null,null,null,null,null,null,null,null,null,null,null,null,null,null,null,null,null,null,null,null,null,null,null,null,null,null,null,null,null,null,null,null,null,null,null,null,null,null,null,0,{"$f":"IF($A70=0,\" \",VLOOKUP($A70,Salaries!$B$5:$G$104,6))","v":" "},{"$f":"IF($A70=0,\" \",VLOOKUP($A70,Salaries!$B$5:$G$104,6))","v":" "},"",0]
[null,0,null,null,null,null,null,null,null,null,null,null,null,null,null,null,null,null,null,null,null,null,null,null,null,null,null,null,null,null,null,null,null,0,null,null,null,null,null,null,null,null,null,null,null,null,null,null,null,null,null,null,null,null,null,null,null,null,null,null,null,null,null,null,null,null,null,null,null,null,null,null,null,null,null,null,null,null,null,null,null,null,null,null,null,null,null,null,null,null,null,null,null,null,null,null,null,null,null,null,null,0,{"$f":"IF($A71=0,\" \",VLOOKUP($A71,Salaries!$B$5:$G$104,6))","v":" "},{"$f":"IF($A71=0,\" \",VLOOKUP($A71,Salaries!$B$5:$G$104,6))","v":" "},"",0]
[null,0,null,null,null,null,null,null,null,null,null,null,null,null,null,null,null,null,null,null,null,null,null,null,null,null,null,null,null,null,null,null,null,0,null,null,null,null,null,null,null,null,null,null,null,null,null,null,null,null,null,null,null,null,null,null,null,null,null,null,null,null,null,null,null,null,null,null,null,null,null,null,null,null,null,null,null,null,null,null,null,null,null,null,null,null,null,null,null,null,null,null,null,null,null,null,null,null,null,null,null,0,{"$f":"IF($A72=0,\" \",VLOOKUP($A72,Salaries!$B$5:$G$104,6))","v":" "},{"$f":"IF($A72=0,\" \",VLOOKUP($A72,Salaries!$B$5:$G$104,6))","v":" "},"",0]
[null,0,null,null,null,null,null,null,null,null,null,null,null,null,null,null,null,null,null,null,null,null,null,null,null,null,null,null,null,null,null,null,null,0,null,null,null,null,null,null,null,null,null,null,null,null,null,null,null,null,null,null,null,null,null,null,null,null,null,null,null,null,null,null,null,null,null,null,null,null,null,null,null,null,null,null,null,null,null,null,null,null,null,null,null,null,null,null,null,null,null,null,null,null,null,null,null,null,null,null,null,0,{"$f":"IF($A73=0,\" \",VLOOKUP($A73,Salaries!$B$5:$G$104,6))","v":" "},{"$f":"IF($A73=0,\" \",VLOOKUP($A73,Salaries!$B$5:$G$104,6))","v":" "},"",0]
[null,0,null,null,null,null,null,null,null,null,null,null,null,null,null,null,null,null,null,null,null,null,null,null,null,null,null,null,null,null,null,null,null,0,null,null,null,null,null,null,null,null,null,null,null,null,null,null,null,null,null,null,null,null,null,null,null,null,null,null,null,null,null,null,null,null,null,null,null,null,null,null,null,null,null,null,null,null,null,null,null,null,null,null,null,null,null,null,null,null,null,null,null,null,null,null,null,null,null,null,null,0,{"$f":"IF($A74=0,\" \",VLOOKUP($A74,Salaries!$B$5:$G$104,6))","v":" "},{"$f":"IF($A74=0,\" \",VLOOKUP($A74,Salaries!$B$5:$G$104,6))","v":" "},"",0]
[null,0,null,null,null,null,null,null,null,null,null,null,null,null,null,null,null,null,null,null,null,null,null,null,null,null,null,null,null,null,null,null,null,0,null,null,null,null,null,null,null,null,null,null,null,null,null,null,null,null,null,null,null,null,null,null,null,null,null,null,null,null,null,null,null,null,null,null,null,null,null,null,null,null,null,null,null,null,null,null,null,null,null,null,null,null,null,null,null,null,null,null,null,null,null,null,null,null,null,null,null,0,{"$f":"IF($A75=0,\" \",VLOOKUP($A75,Salaries!$B$5:$G$104,6))","v":" "},{"$f":"IF($A75=0,\" \",VLOOKUP($A75,Salaries!$B$5:$G$104,6))","v":" "},"",0]
[null,0,null,null,null,null,null,null,null,null,null,null,null,null,null,null,null,null,null,null,null,null,null,null,null,null,null,null,null,null,null,null,null,0,null,null,null,null,null,null,null,null,null,null,null,null,null,null,null,null,null,null,null,null,null,null,null,null,null,null,null,null,null,null,null,null,null,null,null,null,null,null,null,null,null,null,null,null,null,null,null,null,null,null,null,null,null,null,null,null,null,null,null,null,null,null,null,null,null,null,null,0,{"$f":"IF($A76=0,\" \",VLOOKUP($A76,Salaries!$B$5:$G$104,6))","v":" "},{"$f":"IF($A76=0,\" \",VLOOKUP($A76,Salaries!$B$5:$G$104,6))","v":" "},"",0]
[null,0,null,null,null,null,null,null,null,null,null,null,null,null,null,null,null,null,null,null,null,null,null,null,null,null,null,null,null,null,null,null,null,0,null,null,null,null,null,null,null,null,null,null,null,null,null,null,null,null,null,null,null,null,null,null,null,null,null,null,null,null,null,null,null,null,null,null,null,null,null,null,null,null,null,null,null,null,null,null,null,null,null,null,null,null,null,null,null,null,null,null,null,null,null,null,null,null,null,null,null,0,{"$f":"IF($A77=0,\" \",VLOOKUP($A77,Salaries!$B$5:$G$104,6))","v":" "},{"$f":"IF($A77=0,\" \",VLOOKUP($A77,Salaries!$B$5:$G$104,6))","v":" "},"",0]
[null,0,null,null,null,null,null,null,null,null,null,null,null,null,null,null,null,null,null,null,null,null,null,null,null,null,null,null,null,null,null,null,null,0,null,null,null,null,null,null,null,null,null,null,null,null,null,null,null,null,null,null,null,null,null,null,null,null,null,null,null,null,null,null,null,null,null,null,null,null,null,null,null,null,null,null,null,null,null,null,null,null,null,null,null,null,null,null,null,null,null,null,null,null,null,null,null,null,null,null,null,0,{"$f":"IF($A78=0,\" \",VLOOKUP($A78,Salaries!$B$5:$G$104,6))","v":" "},{"$f":"IF($A78=0,\" \",VLOOKUP($A78,Salaries!$B$5:$G$104,6))","v":" "},"",0]
[null,0,null,null,null,null,null,null,null,null,null,null,null,null,null,null,null,null,null,null,null,null,null,null,null,null,null,null,null,null,null,null,null,0,null,null,null,null,null,null,null,null,null,null,null,null,null,null,null,null,null,null,null,null,null,null,null,null,null,null,null,null,null,null,null,null,null,null,null,null,null,null,null,null,null,null,null,null,null,null,null,null,null,null,null,null,null,null,null,null,null,null,null,null,null,null,null,null,null,null,null,0,{"$f":"IF($A79=0,\" \",VLOOKUP($A79,Salaries!$B$5:$G$104,6))","v":" "},{"$f":"IF($A79=0,\" \",VLOOKUP($A79,Salaries!$B$5:$G$104,6))","v":" "},"",0]
[null,0,null,null,null,null,null,null,null,null,null,null,null,null,null,null,null,null,null,null,null,null,null,null,null,null,null,null,null,null,null,null,null,0,null,null,null,null,null,null,null,null,null,null,null,null,null,null,null,null,null,null,null,null,null,null,null,null,null,null,null,null,null,null,null,null,null,null,null,null,null,null,null,null,null,null,null,null,null,null,null,null,null,null,null,null,null,null,null,null,null,null,null,null,null,null,null,null,null,null,null,0,{"$f":"IF($A80=0,\" \",VLOOKUP($A80,Salaries!$B$5:$G$104,6))","v":" "},{"$f":"IF($A80=0,\" \",VLOOKUP($A80,Salaries!$B$5:$G$104,6))","v":" "},"",0]
[null,0,null,null,null,null,null,null,null,null,null,null,null,null,null,null,null,null,null,null,null,null,null,null,null,null,null,null,null,null,null,null,null,0,null,null,null,null,null,null,null,null,null,null,null,null,null,null,null,null,null,null,null,null,null,null,null,null,null,null,null,null,null,null,null,null,null,null,null,null,null,null,null,null,null,null,null,null,null,null,null,null,null,null,null,null,null,null,null,null,null,null,null,null,null,null,null,null,null,null,null,0,{"$f":"IF($A81=0,\" \",VLOOKUP($A81,Salaries!$B$5:$G$104,6))","v":" "},{"$f":"IF($A81=0,\" \",VLOOKUP($A81,Salaries!$B$5:$G$104,6))","v":" "},"",0]
[null,0,null,null,null,null,null,null,null,null,null,null,null,null,null,null,null,null,null,null,null,null,null,null,null,null,null,null,null,null,null,null,null,0,null,null,null,null,null,null,null,null,null,null,null,null,null,null,null,null,null,null,null,null,null,null,null,null,null,null,null,null,null,null,null,null,null,null,null,null,null,null,null,null,null,null,null,null,null,null,null,null,null,null,null,null,null,null,null,null,null,null,null,null,null,null,null,null,null,null,null,0,{"$f":"IF($A82=0,\" \",VLOOKUP($A82,Salaries!$B$5:$G$104,6))","v":" "},{"$f":"IF($A82=0,\" \",VLOOKUP($A82,Salaries!$B$5:$G$104,6))","v":" "},"",0]
[null,0,null,null,null,null,null,null,null,null,null,null,null,null,null,null,null,null,null,null,null,null,null,null,null,null,null,null,null,null,null,null,null,0,null,null,null,null,null,null,null,null,null,null,null,null,null,null,null,null,null,null,null,null,null,null,null,null,null,null,null,null,null,null,null,null,null,null,null,null,null,null,null,null,null,null,null,null,null,null,null,null,null,null,null,null,null,null,null,null,null,null,null,null,null,null,null,null,null,null,null,0,{"$f":"IF($A83=0,\" \",VLOOKUP($A83,Salaries!$B$5:$G$104,6))","v":" "},{"$f":"IF($A83=0,\" \",VLOOKUP($A83,Salaries!$B$5:$G$104,6))","v":" "},"",0]
[null,0,null,null,null,null,null,null,null,null,null,null,null,null,null,null,null,null,null,null,null,null,null,null,null,null,null,null,null,null,null,null,null,0,null,null,null,null,null,null,null,null,null,null,null,null,null,null,null,null,null,null,null,null,null,null,null,null,null,null,null,null,null,null,null,null,null,null,null,null,null,null,null,null,null,null,null,null,null,null,null,null,null,null,null,null,null,null,null,null,null,null,null,null,null,null,null,null,null,null,null,0,{"$f":"IF($A84=0,\" \",VLOOKUP($A84,Salaries!$B$5:$G$104,6))","v":" "},{"$f":"IF($A84=0,\" \",VLOOKUP($A84,Salaries!$B$5:$G$104,6))","v":" "},"",0]
[null,{"$f":"COUNTA(C85:AG85)-CX85-DB85","v":0},null,null,null,null,null,null,null,null,null,null,null,null,null,null,null,null,null,null,null,null,null,null,null,null,null,null,null,null,null,null,null,{"$f":"B85*8","v":0},null,null,null,null,null,null,null,null,null,null,null,null,null,null,null,null,null,null,null,null,null,null,null,null,null,null,null,null,null,null,null,null,null,null,null,null,null,null,null,null,null,null,null,null,null,null,null,null,null,null,null,null,null,null,null,null,null,null,null,null,null,null,null,null,null,null,null,{"$f":"COUNTIF(C85:AG85,\"CP\")","v":0},{"$f":"IF($A85=0,\" \",VLOOKUP($A85,Salaries!$B$5:$G$104,6))","v":" "},{"$f":"IF($A85=0,\" \",VLOOKUP($A85,Salaries!$B$5:$G$104,6))","v":" "},{"$f":"IFERROR(CZ85/8,\"\")","v":""},{"$f":"COUNTIF(C85:AG85,\"MAL\")+COUNTIF(C85:AG85,\"AT\")","v":0}]
[null,0,null,null,null,null,null,null,null,null,null,null,null,null,null,null,null,null,null,null,null,null,null,null,null,null,null,null,null,null,null,null,null,0,null,null,null,null,null,null,null,null,null,null,null,null,null,null,null,null,null,null,null,null,null,null,null,null,null,null,null,null,null,null,null,null,null,null,null,null,null,null,null,null,null,null,null,null,null,null,null,null,null,null,null,null,null,null,null,null,null,null,null,null,null,null,null,null,null,null,null,0,{"$f":"IF($A86=0,\" \",VLOOKUP($A86,Salaries!$B$5:$G$104,6))","v":" "},{"$f":"IF($A86=0,\" \",VLOOKUP($A86,Salaries!$B$5:$G$104,6))","v":" "},"",0]
[null,0,null,null,null,null,null,null,null,null,null,null,null,null,null,null,null,null,null,null,null,null,null,null,null,null,null,null,null,null,null,null,null,0,null,null,null,null,null,null,null,null,null,null,null,null,null,null,null,null,null,null,null,null,null,null,null,null,null,null,null,null,null,null,null,null,null,null,null,null,null,null,null,null,null,null,null,null,null,null,null,null,null,null,null,null,null,null,null,null,null,null,null,null,null,null,null,null,null,null,null,0,{"$f":"IF($A87=0,\" \",VLOOKUP($A87,Salaries!$B$5:$G$104,6))","v":" "},{"$f":"IF($A87=0,\" \",VLOOKUP($A87,Salaries!$B$5:$G$104,6))","v":" "},"",0]
[null,0,null,null,null,null,null,null,null,null,null,null,null,null,null,null,null,null,null,null,null,null,null,null,null,null,null,null,null,null,null,null,null,0,null,null,null,null,null,null,null,null,null,null,null,null,null,null,null,null,null,null,null,null,null,null,null,null,null,null,null,null,null,null,null,null,null,null,null,null,null,null,null,null,null,null,null,null,null,null,null,null,null,null,null,null,null,null,null,null,null,null,null,null,null,null,null,null,null,null,null,0,{"$f":"IF($A88=0,\" \",VLOOKUP($A88,Salaries!$B$5:$G$104,6))","v":" "},{"$f":"IF($A88=0,\" \",VLOOKUP($A88,Salaries!$B$5:$G$104,6))","v":" "},"",0]
[null,0,null,null,null,null,null,null,null,null,null,null,null,null,null,null,null,null,null,null,null,null,null,null,null,null,null,null,null,null,null,null,null,0,null,null,null,null,null,null,null,null,null,null,null,null,null,null,null,null,null,null,null,null,null,null,null,null,null,null,null,null,null,null,null,null,null,null,null,null,null,null,null,null,null,null,null,null,null,null,null,null,null,null,null,null,null,null,null,null,null,null,null,null,null,null,null,null,null,null,null,0,{"$f":"IF($A89=0,\" \",VLOOKUP($A89,Salaries!$B$5:$G$104,6))","v":" "},{"$f":"IF($A89=0,\" \",VLOOKUP($A89,Salaries!$B$5:$G$104,6))","v":" "},"",0]

{"sheet":"Pâques","index":5,"n_rows":79,"n_cols":32,"rows_kept":79,"cut":false,"hidden":true,"merged":[]}
[null,"Année",null,"Pâques",null,null,null,null,null,null,null,null,"Année",null,"Pâques A+1",null,null,null,null,null,null,null,null,"Année",null,"Pâques A-1"]
[null,2017,null,{"$f":"TEXT(D66,\"jj\")&\" \"&TEXT(D68,\"mmmm\")&\" \"&B2","v":"16 avril 2017"},null,null,"2017-03-22",null,null,null,null,null,2018,null,{"$f":"TEXT(O66,\"jj\")&\" \"&TEXT(O68,\"mmmm\")&\" \"&M2","v":"01 avril 2018"},null,null,"2018-03-22",null,null,null,null,null,2016,null,{"$f":"TEXT(Z66,\"jj\")&\" \"&TEXT(Z68,\"mmmm\")&\" \"&X2","v":"27 mars 2016"},null,null,"2016-03-22"]
[]
[]
[null,"Calcul de G",{"$f":"INT(B2/19)","v":106},{"$f":"19*C5","v":2014},{"$f":"B2-D5","v":3},null,null,null,"G=",{"$f":"E5","v":3},null,null,"Calcul de G",{"$f":"INT(M2/19)","v":106},{"$f":"19*N5","v":2014},{"$f":"M2-O5","v":4},null,null,null,"G=",{"$f":"P5","v":4},null,null,"Calcul de G",{"$f":"INT(X2/19)","v":106},{"$f":"19*Y5","v":2014},{"$f":"X2-Z5","v":2},null,null,null,"G=",{"$f":"AA5","v":2}]
[]
[null,"Calcul de C",{"$f":"INT(B2/100)","v":20},null,null,null,null,null,"C=",{"$f":"C7","v":20},null,null,"Calcul de C",{"$f":"INT(M2/100)","v":20},null,null,null,null,null,"C=",{"$f":"N7","v":20},null,null,"Calcul de C",{"$f":"INT(X2/100)","v":20},null,null,null,null,null,"C=",{"$f":"Y7","v":20}]
[]
[null,"Calcul de C4",{"$f":"INT(C7/4)","v":5},null,null,null,null,null,"C4=",{"$f":"C9","v":5},null,null,"Calcul de C4",{"$f":"INT(N7/4)","v":5},null,null,null,null,null,"C4=",{"$f":"N9","v":5},null,null,"Calcul de C4",{"$f":"INT(Y7/4)","v":5},null,null,null,null,null,"C4=",{"$f":"Y9","v":5}]
[]
[null,"Calcul de E",{"$f":"INT((8*J7+13)/25)","v":6},null,null,null,null,null,"E=",{"$f":"C11","v":6},null,null,"Calcul de E",{"$f":"INT((8*U7+13)/25)","v":6},null,null,null,null,null,"E=",{"$f":"N11","v":6},null,null,"Calcul de E",{"$f":"INT((8*AF7+13)/25)","v":6},null,null,null,null,null,"E=",{"$f":"Y11","v":6}]
[]
[null,"Calcul de H",{"$f":"INT((19*J5+J7-J9-J11+15)/30)","v":2},{"$f":"C13*30","v":60},{"$f":"INT(19*J5+J7-J9-J11+15)","v":81},{"$f":"E13-D13","v":21},null,null,"H=",{"$f":"F13","v":21},null,null,"Calcul de H",{"$f":"INT((19*U5+U7-U9-U11+15)/30)","v":3},{"$f":"N13*30","v":90},{"$f":"INT(19*U5+U7-U9-U11+15)","v":100},{"$f":"P13-O13","v":10},null,null,"H=",{"$f":"Q13","v":10},null,null,"Calcul de H",{"$f":"INT((19*AF5+AF7-AF9-AF11+15)/30)","v":2},{"$f":"Y13*30","v":60},{"$f":"INT(19*AF5+AF7-AF9-AF11+15)","v":62},{"$f":"AA13-Z13","v":2},null,null,"H=",{"$f":"AB13","v":2}]
[]
[null,"Calcul de K",{"$f":"INT(J13/28)","v":0},null,null,null,null,null,"K=",{"$f":"C15","v":0},null,null,"Calcul de K",{"$f":"INT(U13/28)","v":0},null,null,null,null,null,"K=",{"$f":"N15","v":0},null,null,"Calcul de K",{"$f":"INT(AF13/28)","v":0},null,null,null,null,null,"K=",{"$f":"Y15","v":0}]
[]
[null,"Calcul de P",{"$f":"INT(29/(J13+1))","v":1},null,null,null,null,null,"P=",{"$f":"C17","v":1},null,null,"Calcul de P",{"$f":"INT(29/(U13+1))","v":2},null,null,null,null,null,"P=",{"$f":"N17","v":2},null,null,"Calcul de P",{"$f":"INT(29/(AF13+1))","v":9},null,null,null,null,null,"P=",{"$f":"Y17","v":9}]
[]
[null,"Calcul de Q",{"$f":"INT((21-J5)/11)","v":1},null,null,null,null,null,"Q=",{"$f":"C19","v":1},null,null,"Calcul de Q",{"$f":"INT((21-U5)/11)","v":1},null,null,null,null,null,"Q=",{"$f":"N19","v":1},null,null,"Calcul de Q",{"$f":"INT((21-AF5)/11)","v":1},null,null,null,null,null,"Q=",{"$f":"Y19","v":1}]
[]
[null,"Calcul de I",{"$f":"(J15*J17*J19-1)*J15+J13","v":21},null,null,null,null,null,"I=",{"$f":"C21","v":21},null,null,"Calcul de I",{"$f":"(U15*U17*U19-1)*U15+U13","v":10},null,null,null,null,null,"I=",{"$f":"N21","v":10},null,null,"Calcul de I",{"$f":"(AF15*AF17*AF19-1)*AF15+AF13","v":2},null,null,null,null,null,"I=",{"$f":"Y21","v":2}]
[]
[null,"Calcul de B",{"$f":"INT(B2/4)+B2","v":2521},null,null,null,null,null,"B=",{"$f":"C23","v":2521},null,null,"Calcul de B",{"$f":"INT(M2/4)+M2","v":2522},null,null,null,null,null,"B=",{"$f":"N23","v":2522},null,null,"Calcul de B",{"$f":"INT(X2/4)+X2","v":2520},null,null,null,null,null,"B=",{"$f":"Y23","v":2520}]
[]
[null,"Calcul de J1",{"$f":"J23+J21+2+J9-J7","v":2529},null,null,null,null,null,"J1=",{"$f":"C25","v":2529},null,null,"Calcul de J1",{"$f":"U23+U21+2+U9-U7","v":2519},null,null,null,null,null,"J1=",{"$f":"N25","v":2519},null,null,"Calcul de J1",{"$f":"AF23+AF21+2+AF9-AF7","v":2509},null,null,null,null,null,"J1=",{"$f":"Y25","v":2509}]
[]
[null,"Calcul de J2",{"$f":"INT(J25/7)","v":361},{"$f":"C27*7","v":2527},{"$f":"J25-D27","v":2},null,null,null,"J2=",{"$f":"E27","v":2},null,null,"Calcul de J2",{"$f":"INT(U25/7)","v":359},{"$f":"N27*7","v":2513},{"$f":"U25-O27","v":6},null,null,null,"J2=",{"$f":"P27","v":6},null,null,"Calcul de J2",{"$f":"INT(AF25/7)","v":358},{"$f":"Y27*7","v":2506},{"$f":"AF25-Z27","v":3},null,null,null,"J2=",{"$f":"AA27","v":3}]
[]
[null,"Calcul de R",{"$f":"28+J21-J27","v":47},null,null,null,null,null,"R=",{"$f":"C29","v":47},null,null,"Calcul de R",{"$f":"28+U21-U27","v":32},null,null,null,null,null,"R=",{"$f":"N29","v":32},null,null,"Calcul de R",{"$f":"28+AF21-AF27","v":27},null,null,null,null,null,"R=",{"$f":"Y29","v":27}]
[]
[]
[null,22,{"$f":"G2+1-1","v":"2017-03-22"},null,3,null,null,null,null,null,null,null,22,{"$f":"R2+1-1","v":"2018-03-22"},null,3,null,null,null,null,null,null,null,22,{"$f":"AC2+1-1","v":"2016-03-22"},null,3]
[null,23,{"$f":"C32+1","v":"2017-03-23"},null,3,null,null,null,null,null,null,null,23,{"$f":"N32+1","v":"2018-03-23"},null,3,null,null,null,null,null,null,null,23,{"$f":"Y32+1","v":"2016-03-23"},null,3]
[null,24,{"$f":"C33+1","v":"2017-03-24"},null,3,null,null,null,null,null,null,null,24,{"$f":"N33+1","v":"2018-03-24"},null,3,null,null,null,null,null,null,null,24,{"$f":"Y33+1","v":"2016-03-24"},null,3]
[null,25,"2017-03-25",null,3,null,null,null,null,null,null,null,25,"2018-03-25",null,3,null,null,null,null,null,null,null,25,"2016-03-25",null,3]
[null,26,"2017-03-26",null,3,null,null,null,null,null,null,null,26,"2018-03-26",null,3,null,null,null,null,null,null,null,26,"2016-03-26",null,3]
[null,27,"2017-03-27",null,3,null,null,null,null,null,null,null,27,"2018-03-27",null,3,null,null,null,null,null,null,null,27,"2016-03-27",null,3]
[null,28,"2017-03-28",null,3,null,null,null,null,null,null,null,28,"2018-03-28",null,3,null,null,null,null,null,null,null,28,"2016-03-28",null,3]
[null,29,"2017-03-29",null,3,null,null,null,null,null,null,null,29,"2018-03-29",null,3,null,null,null,null,null,null,null,29,"2016-03-29",null,3]
[null,30,"2017-03-30",null,3,null,null,null,null,null,null,null,30,"2018-03-30",null,3,null,null,null,null,null,null,null,30,"2016-03-30",null,3]
[null,31,"2017-03-31",null,3,null,null,null,null,null,null,null,31,"2018-03-31",null,3,null,null,null,null,null,null,null,31,"2016-03-31",null,3]
[null,32,"2017-04-01",null,4,null,null,null,null,null,null,null,32,"2018-04-01",null,4,null,null,null,null,null,null,null,32,"2016-04-01",null,4]
[null,33,"2017-04-02",null,4,null,null,null,null,null,null,null,33,"2018-04-02",null,4,null,null,null,null,null,null,null,33,"2016-04-02",null,4]
[null,34,"2017-04-03",null,4,null,null,null,null,null,null,null,34,"2018-04-03",null,4,null,null,null,null,null,null,null,34,"2016-04-03",null,4]
[null,35,"2017-04-04",null,4,null,null,null,null,null,null,null,35,"2018-04-04",null,4,null,null,null,null,null,null,null,35,"2016-04-04",null,4]
[null,36,"2017-04-05",null,4,null,null,null,null,null,null,null,36,"2018-04-05",null,4,null,null,null,null,null,null,null,36,"2016-04-05",null,4]
[null,37,"2017-04-06",null,4,null,null,null,null,null,null,null,37,"2018-04-06",null,4,null,null,null,null,null,null,null,37,"2016-04-06",null,4]
[null,38,"2017-04-07",null,4,null,null,null,null,null,null,null,38,"2018-04-07",null,4,null,null,null,null,null,null,null,38,"2016-04-07",null,4]
[null,39,"2017-04-08",null,4,null,null,null,null,null,null,null,39,"2018-04-08",null,4,null,null,null,null,null,null,null,39,"2016-04-08",null,4]
[null,40,"2017-04-09",null,4,null,null,null,null,null,null,null,40,"2018-04-09",null,4,null,null,null,null,null,null,null,40,"2016-04-09",null,4]
[null,41,"2017-04-10",null,4,null,null,null,null,null,null,null,41,"2018-04-10",null,4,null,null,null,null,null,null,null,41,"2016-04-10",null,4]
[null,42,"2017-04-11",null,4,null,null,null,null,null,null,null,42,"2018-04-11",null,4,null,null,null,null,null,null,null,42,"2016-04-11",null,4]
[null,43,"2017-04-12",null,4,null,null,null,null,null,null,null,43,"2018-04-12",null,4,null,null,null,null,null,null,null,43,"2016-04-12",null,4]
[null,44,"2017-04-13",null,4,null,null,null,null,null,null,null,44,"2018-04-13",null,4,null,null,null,null,null,null,null,44,"2016-04-13",null,4]
[null,45,"2017-04-14",null,4,null,null,null,null,null,null,null,45,"2018-04-14",null,4,null,null,null,null,null,null,null,45,"2016-04-14",null,4]
[null,46,"2017-04-15",null,4,null,null,null,null,null,null,null,46,"2018-04-15",null,4,null,null,null,null,null,null,null,46,"2016-04-15",null,4]
[null,47,"2017-04-16",null,4,null,null,null,null,null,null,null,47,"2018-04-16",null,4,null,null,null,null,null,null,null,47,"2016-04-16",null,4]
[null,48,"2017-04-17",null,4,null,null,null,null,null,null,null,48,"2018-04-17",null,4,null,null,null,null,null,null,null,48,"2016-04-17",null,4]
[null,49,"2017-04-18",null,4,null,null,null,null,null,null,null,49,"2018-04-18",null,4,null,null,null,null,null,null,null,49,"2016-04-18",null,4]
[null,50,"2017-04-19",null,4,null,null,null,null,null,null,null,50,"2018-04-19",null,4,null,null,null,null,null,null,null,50,"2016-04-19",null,4]
[null,51,"2017-04-20",null,4,null,null,null,null,null,null,null,51,"2018-04-20",null,4,null,null,null,null,null,null,null,51,"2016-04-20",null,4]
[null,52,"2017-04-21",null,4,null,null,null,null,null,null,null,52,"2018-04-21",null,4,null,null,null,null,null,null,null,52,"2016-04-21",null,4]
[null,53,"2017-04-22",null,4,null,null,null,null,null,null,null,53,"2018-04-22",null,4,null,null,null,null,null,null,null,53,"2016-04-22",null,4]
[null,54,"2017-04-23",null,4,null,null,null,null,null,null,null,54,"2018-04-23",null,4,null,null,null,null,null,null,null,54,"2016-04-23",null,4]
[null,55,"2017-04-24","Pâques",4,null,null,null,null,null,null,null,55,"2018-04-24","Pâques",4,null,null,null,null,null,null,null,55,"2016-04-24","Pâques",4]
[null,56,"2017-04-25",{"$f":"VLOOKUP(J29,B32:C66,2)","v":"2017-04-16"},null,null,null,null,null,null,null,null,56,"2018-04-25",{"$f":"VLOOKUP(U29,M32:N66,2)","v":"2018-04-01"},null,null,null,null,null,null,null,null,56,"2016-04-25",{"$f":"VLOOKUP(AF29,X32:Y66,2)","v":"2016-03-27"}]
[null,null,null,{"$f":"TEXT(D66,\"jj\")","v":"16"},null,null,null,null,null,null,null,null,null,null,{"$f":"TEXT(O66,\"jj\")","v":"01"},null,null,null,null,null,null,null,null,null,null,{"$f":"TEXT(Z66,\"jj\")","v":"27"}]
[null,null,null,{"$f":"TEXT(D66,\"mmmm\")","v":"avril"},null,null,null,null,null,null,null,null,null,null,{"$f":"TEXT(O66,\"mmmm\")","v":"avril"},null,null,null,null,null,null,null,null,null,null,{"$f":"TEXT(Z66,\"mmmm\")","v":"mars"}]
[null,{"$f":"COUNTA(B70:B270)","v":10},263,null,null,null,null,null,null,null,null,null,{"$f":"COUNTA(M70:M270)","v":0},41,null,null,null,null,null,null,null,null,null,{"$f":"COUNTA(X70:X270)","v":0},41]
[null,"La curiosité est un vilain défaut !"]
[null,"Cliquer sans savoir où l'on va n'est pas très sérieux !"]
[null,"Tant que l'on joue on ne travaille pas !"]
[null,"Mieux vaut cliquer que ne rien faire !"]
[null,"Bravo ! Vous avez gagné le droit de cliquer !"]
[null,"Un clic à gauche, un clic à droite, et le temps passe…"]
[null,{"$f":"\"Depuis la création de ce planning \"&C69&\" personnes curieuses ont cliqué sur une barre vide !!! Etonnant non ?\"","v":"Depuis la création de ce planning 263 personnes curieuses ont cliqué sur une barre vide !!! Etonnant non ?"}]
[null,"Moins il y a d'informations sur une barre plus la tentation d'aller regarder est Grande…"]
[null,"Raté, il n'y a rien derrière cette barre. Non mais des fois !!!"]
[null,"Pourquoi venir voir ici il n'y a rien. M'enfin !!!"]